Workbook

Sheet ANALİZ
B2: İLK YARI SONUCU | R2: ANALİZ SONUÇLARI | S2: =Veri2!A21 -> Lambton Jaffas | V2: =Veri2!A46 -> Edgeworth Eagles | Y2: BTT/KG VE HT/FT-İY/MS
B3: =Veri2!A21 -> Lambton Jaffas | C3: O | D3: G | E3: B | F3: M | G3: A | H3: Y | I3: G | J3: B | K3: M | L3: A | M3: Y | N3: AV | O3: TOPL. PU | P3: ORT. PU | S3: İLK YARI | V3: MAÇ SONU
B4: GENEL | C4: =Veri3!N4 -> 7 | D4: =Veri3!O4 -> 3 | E4: =Veri3!P4 -> 3 | F4: =Veri3!Q4 -> 1 | G4: =Veri3!R4 -> 5 | H4: =Veri3!S4 -> 3 | I4: =Veri3!T4 -> 0.4285714286 | J4: =Veri3!U4 -> 0.4285714286 | K4: =Veri3!V4 -> 0.1428571429 | L4: =Veri3!W4 -> 0.7142857143 | M4: =Veri3!X4 -> 0.4285714286 | N4: =Veri3!Y4 -> 2 | O4: =Veri3!Z4 -> 12 | P4: =Veri3!AA4 -> 1.714285714 | S4: 1-X-2 | T4: SKOR | U4: ALT-ÜST | V4: 1-X-2 | W4: SKOR | X4: ALT-ÜST | Y4: KG VAR | Z4: SONUÇ
B5: İÇERDE | C5: =Veri3!N5 -> 3 | D5: =Veri3!O5 -> 1 | E5: =Veri3!P5 -> 2 | F5: =Veri3!Q5 -> 0 | G5: =Veri3!R5 -> 2 | H5: =Veri3!S5 -> 1 | I5: =Veri3!T5 -> 0.3333333333 | J5: =Veri3!U5 -> 0.6666666667 | K5: =Veri3!V5 -> 0 | L5: =Veri3!W5 -> 0.6666666667 | M5: =Veri3!X5 -> 0.3333333333 | N5: =Veri3!Y5 -> 1 | O5: =Veri3!Z5 -> 5 | P5: =Veri3!AA5 -> 1.666666667 | R5: GENEL ANALİZ - NOWGOAL5 | S5: =Veri3!AD5 -> X | T5: =Veri3!AE5 -> 1 - 1 | U5: =Veri3!AF5 -> 1.5 GOL ÜST | V5: =Veri3!AG5 -> 1 | W5: =Veri3!AH5 -> 2 - 1 | X5: =Veri3!AI5 -> 2.5 GOL ÜST | Y5: =Veri3!AJ5 -> VAR | Z5: =Veri3!AK5 -> X / 1
B6: DIŞARDA | C6: =Veri3!N6 -> 4 | D6: =Veri3!O6 -> 2 | E6: =Veri3!P6 -> 1 | F6: =Veri3!Q6 -> 1 | G6: =Veri3!R6 -> 3 | H6: =Veri3!S6 -> 2 | I6: =Veri3!T6 -> 0.5 | J6: =Veri3!U6 -> 0.25 | K6: =Veri3!V6 -> 0.25 | L6: =Veri3!W6 -> 0.75 | M6: =Veri3!X6 -> 0.5 | N6: =Veri3!Y6 -> 1 | O6: =Veri3!Z6 -> 7 | P6: =Veri3!AA6 -> 1.75 | R6: İÇ-DIŞ ANALİZ - NOWGOAL5 | S6: =Veri3!AD6 -> 1 | T6: =Veri3!AE6 -> 1 - 0 | U6: =Veri3!AF6 -> 1.5 GOL ÜST | V6: =Veri3!AG6 -> 1 | W6: =Veri3!AH6 -> 2 - 1 | X6: =Veri3!AI6 -> 2.5 GOL ÜST | Y6: =Veri3!AJ6 -> VAR | Z6: =Veri3!AK6 -> 1 / 1
B7: SON 6 MAÇ | C7: =Veri3!N7 -> 6 | D7: =Veri3!O7 -> 3 | E7: =Veri3!P7 -> 2 | F7: =Veri3!Q7 -> 1 | G7: =Veri3!R7 -> 5 | H7: =Veri3!S7 -> 3 | I7: =Veri3!T7 -> 0.5 | J7: =Veri3!U7 -> 0.3333333333 | K7: =Veri3!V7 -> 0.1666666667 | L7: =Veri3!W7 -> 0.8333333333 | M7: =Veri3!X7 -> 0.5 | N7: =Veri3!Y7 -> 2 | O7: =Veri3!Z7 -> 11 | P7: =Veri3!AA7 -> 1.833333333 | R7: SON 6 ANALİZİ - NOWGOAL5 | S7: =Veri3!AD7 -> X | T7: =Veri3!AE7 -> 1 - 1 | U7: =Veri3!AF7 -> 1.5 GOL ÜST | V7: =Veri3!AG7 -> 1 | W7: =Veri3!AH7 -> 2 - 1 | X7: =Veri3!AI7 -> 2.5 GOL ÜST | Y7: =Veri3!AJ7 -> VAR | Z7: =Veri3!AK7 -> X / 1
R8: SON 15 ANALİZİ - MOST | S8: =Most!H9 -> X | T8: =Most!G9 -> 1 - 1 | U8: =Most!G17 -> 1.5 GOL ÜST | V8: =Most!N9 -> 1 | W8: =Most!O9 -> 2 - 1 | X8: =Most!L17 -> 2.5 GOL ÜST | Y8: =Most!J6 -> VAR | Z8: =Most!J8 -> X / 1
B9: =Veri2!A46 -> Edgeworth Eagles | C9: O | D9: G | E9: B | F9: M | G9: A | H9: Y | I9: G | J9: B | K9: M | L9: A | M9: Y | N9: AV | O9: TOPL. PU | P9: ORT. PU
B10: GENEL | C10: =Veri3!N10 -> 9 | D10: =Veri3!O10 -> 3 | E10: =Veri3!P10 -> 2 | F10: =Veri3!Q10 -> 4 | G10: =Veri3!R10 -> 8 | H10: =Veri3!S10 -> 6 | I10: =Veri3!T10 -> 0.3333333333 | J10: =Veri3!U10 -> 0.2222222222 | K10: =Veri3!V10 -> 0.4444444444 | L10: =Veri3!W10 -> 0.8888888889 | M10: =Veri3!X10 -> 0.6666666667 | N10: =Veri3!Y10 -> 2 | O10: =Veri3!Z10 -> 11 | P10: =Veri3!AA10 -> 1.222222222
B11: İÇERDE | C11: =Veri3!N11 -> 4 | D11: =Veri3!O11 -> 2 | E11: =Veri3!P11 -> 1 | F11: =Veri3!Q11 -> 1 | G11: =Veri3!R11 -> 4 | H11: =Veri3!S11 -> 1 | I11: =Veri3!T11 -> 0.5 | J11: =Veri3!U11 -> 0.25 | K11: =Veri3!V11 -> 0.25 | L11: =Veri3!W11 -> 1 | M11: =Veri3!X11 -> 0.25 | N11: =Veri3!Y11 -> 3 | O11: =Veri3!Z11 -> 7 | P11: =Veri3!AA11 -> 1.75 | U11: =Veri2!AS114 -> -2 | V11: =Veri2!AT114 -> MOST'A GÖRE RİSKLİ
B12: DIŞARDA | C12: =Veri3!N12 -> 5 | D12: =Veri3!O12 -> 1 | E12: =Veri3!P12 -> 1 | F12: =Veri3!Q12 -> 3 | G12: =Veri3!R12 -> 4 | H12: =Veri3!S12 -> 5 | I12: =Veri3!T12 -> 0.2 | J12: =Veri3!U12 -> 0.2 | K12: =Veri3!V12 -> 0.6 | L12: =Veri3!W12 -> 0.8 | M12: =Veri3!X12 -> 1 | N12: =Veri3!Y12 -> -1 | O12: =Veri3!Z12 -> 4 | P12: =Veri3!AA12 -> 0.8
B13: SON 6 MAÇ | C13: =Veri3!N13 -> 6 | D13: =Veri3!O13 -> 3 | E13: =Veri3!P13 -> 0 | F13: =Veri3!Q13 -> 3 | G13: =Veri3!R13 -> 8 | H13: =Veri3!S13 -> 5 | I13: =Veri3!T13 -> 0.5 | J13: =Veri3!U13 -> 0 | K13: =Veri3!V13 -> 0.5 | L13: =Veri3!W13 -> 1.333333333 | M13: =Veri3!X13 -> 0.8333333333 | N13: =Veri3!Y13 -> 3 | O13: =Veri3!Z13 -> 9 | P13: =Veri3!AA13 -> 1.5 | V13: =Most!G20 -> İY1 | W13: =Most!L20 -> MS1
B15: MAÇ SONUCU
B16: =B3 -> Lambton Jaffas | C16: O | D16: G | E16: B | F16: M | G16: A | H16: Y | I16: G | J16: B | K16: M | L16: A | M16: Y | N16: AV | O16: TOPL. PU | P16: ORT. PU
B17: GENEL | C17: =Veri3!N17 -> 7 | D17: =Veri3!O17 -> 4 | E17: =Veri3!P17 -> 2 | F17: =Veri3!Q17 -> 1 | G17: =Veri3!R17 -> 10 | H17: =Veri3!S17 -> 7 | I17: =Veri3!T17 -> 0.5714285714 | J17: =Veri3!U17 -> 0.2857142857 | K17: =Veri3!V17 -> 0.1428571429 | L17: =Veri3!W17 -> 1.428571429 | M17: =Veri3!X17 -> 1 | N17: =Veri3!Y17 -> 3 | O17: =Veri3!Z17 -> 14 | P17: =Veri3!AA17 -> 2
B18: İÇERDE | C18: =Veri3!N18 -> 3 | D18: =Veri3!O18 -> 1 | E18: =Veri3!P18 -> 2 | F18: =Veri3!Q18 -> 0 | G18: =Veri3!R18 -> 4 | H18: =Veri3!S18 -> 3 | I18: =Veri3!T18 -> 0.3333333333 | J18: =Veri3!U18 -> 0.6666666667 | K18: =Veri3!V18 -> 0 | L18: =Veri3!W18 -> 1.333333333 | M18: =Veri3!X18 -> 1 | N18: =Veri3!Y18 -> 1 | O18: =Veri3!Z18 -> 5 | P18: =Veri3!AA18 -> 1.666666667
B19: DIŞARDA | C19: =Veri3!N19 -> 4 | D19: =Veri3!O19 -> 3 | E19: =Veri3!P19 -> 0 | F19: =Veri3!Q19 -> 1 | G19: =Veri3!R19 -> 6 | H19: =Veri3!S19 -> 4 | I19: =Veri3!T19 -> 0.75 | J19: =Veri3!U19 -> 0 | K19: =Veri3!V19 -> 0.25 | L19: =Veri3!W19 -> 1.5 | M19: =Veri3!X19 -> 1 | N19: =Veri3!Y19 -> 2 | O19: =Veri3!Z19 -> 9 | P19: =Veri3!AA19 -> 2.25
B20: SON 6 MAÇ | C20: =Veri3!N20 -> 6 | D20: =Veri3!O20 -> 3 | E20: =Veri3!P20 -> 2 | F20: =Veri3!Q20 -> 1 | G20: =Veri3!R20 -> 8 | H20: =Veri3!S20 -> 6 | I20: =Veri3!T20 -> 0.5 | J20: =Veri3!U20 -> 0.3333333333 | K20: =Veri3!V20 -> 0.1666666667 | L20: =Veri3!W20 -> 1.333333333 | M20: =Veri3!X20 -> 1 | N20: =Veri3!Y20 -> 2 | O20: =Veri3!Z20 -> 11 | P20: =Veri3!AA20 -> 1.833333333
B22: =B9 -> Edgeworth Eagles | C22: O | D22: G | E22: B | F22: M | G22: A | H22: Y | I22: G | J22: B | K22: M | L22: A | M22: Y | N22: AV | O22: TOPL. PU | P22: ORT. PU
B23: GENEL | C23: =Veri3!N23 -> 9 | D23: =Veri3!O23 -> 4 | E23: =Veri3!P23 -> 1 | F23: =Veri3!Q23 -> 4 | G23: =Veri3!R23 -> 14 | H23: =Veri3!S23 -> 16 | I23: =Veri3!T23 -> 0.4444444444 | J23: =Veri3!U23 -> 0.1111111111 | K23: =Veri3!V23 -> 0.4444444444 | L23: =Veri3!W23 -> 1.555555556 | M23: =Veri3!X23 -> 1.777777778 | N23: =Veri3!Y23 -> -2 | O23: =Veri3!Z23 -> 13 | P23: =Veri3!AA23 -> 1.444444444
B24: İÇERDE | C24: =Veri3!N24 -> 4 | D24: =Veri3!O24 -> 2 | E24: =Veri3!P24 -> 1 | F24: =Veri3!Q24 -> 1 | G24: =Veri3!R24 -> 6 | H24: =Veri3!S24 -> 4 | I24: =Veri3!T24 -> 0.5 | J24: =Veri3!U24 -> 0.25 | K24: =Veri3!V24 -> 0.25 | L24: =Veri3!W24 -> 1.5 | M24: =Veri3!X24 -> 1 | N24: =Veri3!Y24 -> 2 | O24: =Veri3!Z24 -> 7 | P24: =Veri3!AA24 -> 1.75
B25: DIŞARDA | C25: =Veri3!N25 -> 5 | D25: =Veri3!O25 -> 2 | E25: =Veri3!P25 -> 0 | F25: =Veri3!Q25 -> 3 | G25: =Veri3!R25 -> 8 | H25: =Veri3!S25 -> 12 | I25: =Veri3!T25 -> 0.4 | J25: =Veri3!U25 -> 0 | K25: =Veri3!V25 -> 0.6 | L25: =Veri3!W25 -> 1.6 | M25: =Veri3!X25 -> 2.4 | N25: =Veri3!Y25 -> -4 | O25: =Veri3!Z25 -> 6 | P25: =Veri3!AA25 -> 1.2
B26: SON 6 MAÇ | C26: =Veri3!N26 -> 6 | D26: =Veri3!O26 -> 3 | E26: =Veri3!P26 -> 1 | F26: =Veri3!Q26 -> 2 | G26: =Veri3!R26 -> 12 | H26: =Veri3!S26 -> 11 | I26: =Veri3!T26 -> 0.5 | J26: =Veri3!U26 -> 0.1666666667 | K26: =Veri3!V26 -> 0.3333333333 | L26: =Veri3!W26 -> 2 | M26: =Veri3!X26 -> 1.833333333 | N26: =Veri3!Y26 -> 1 | O26: =Veri3!Z26 -> 10 | P26: =Veri3!AA26 -> 1.666666667

Sheet Veri1
U1: FORMÜLLÜ HÜCRE SİLMEYİNİZ !!!
A4: Skip Navigation Links
A6: Betistuta
A7: Futbol
A8: Basketbol
A9: Voleybol
A10: Hentbol
A11: BuzHokeyi
A12: Beyzbol
A13: Tenis
A14: BOYZ(F)
A15: BOYZ(B)
A16: Orandelli
A17: Gol Oldu mu ?
A18: Iletisim
A19: < | B19: June 2022 | C19: >
A20: Sun | B20: Mon | C20: Tue | D20: Wed | E20: Thu | F20: Fri | G20: Sat
A21: 29 | B21: 30 | C21: 31 | D21: 1 | E21: 2 | F21: 3 | G21: 4
A22: 5 | B22: 6 | C22: 7 | D22: 8 | E22: 9 | F22: 10 | G22: 11
A23: 12 | B23: 13 | C23: 14 | D23: 15 | E23: 16 | F23: 17 | G23: 18
A24: 19 | B24: 20 | C24: 21 | D24: 22 | E24: 23 | F24: 24 | G24: 25
A25: 26 | B25: 27 | C25: 28 | D25: 29 | E25: 30 | F25: 1 | G25: 2
A26: 3 | B26: 4 | C26: 5 | D26: 6 | E26: 7 | F26: 8 | G26: 9
B27: Tüm LiglerSadece İddaa MaçlarıABD-MLSABD-USLABD-USL Lig 1AFC U23 Sampiyonasi-Çeyrek FinalArjantin-Premier Lig 2. AsamaArjantin-Prim B Metro ClausuraArjantin-Torneo Federal A GüneyArjantin-Torneo Federal A KuzeyArjantin-Ulusal Primera LigAvrupa U21 Sampiyonasi-Eleme Turu Grup 8Avustralya-Ulusal Premier Lig Kuzey YGGAvustralya-Ulusal Premier Lig Yeni Güney GallerBelarus-1.LigBolivya-Premier Lig Apertura FinalBrezilya-AmapaenseBrezilya-Serie ABrezilya-Serie BBrezilya-Serie CBrezilya-Serie D Grup 1Brezilya-Serie D Grup 2Brezilya-Serie D Grup 3Brezilya-Serie D Grup 4Brezilya-Serie D Grup 5Brezilya-Serie D Grup 7Brezilya-Serie D Grup 8Çek Cumhuriyeti-3.Lig CFL AÇek Cumhuriyeti-3.Lig CFL BÇin Halk Cumhuriyeti-1.LigÇin Halk Cumhuriyeti-Süper LigCONCACAF Uluslar Ligi-Lig A Grup ACONCACAF Uluslar Ligi-Lig B Grup ACONCACAF Uluslar Ligi-Lig B Grup BCONCACAF Uluslar Ligi-Lig C Grup AFinlandiya-Kakkonen Grup AFinlandiya-Kakkonen Grup BFinlandiya-Kakkonen Grup CFinlandiya-YkkönenGana-Premier LigGüney Kore-K Lig 2Güney Kore-K3 LigiHazirlik-ÜlkelerIsveç-1.Lig KuzeyIsveç-2.Lig Norra GötalandIsveç-2.Lig Norra SvealandIsveç-2.Lig Södra GötalandIsveç-2.Lig Södra SvealandIsveç-2.Lig Vastra GötalandItalya-Serie C Yükselme Play Off FinalJaponya-Futbol LigiJaponya-J2 LigJaponya-J3 LigKanada-Premier LigKenya-Süper LigKolombiya-Primera A Apertura Quadrangular Grup AKolombiya-Primera A Apertura Quadrangular Grup BLetonya-Kupa 2.TurLitvanya-1.LigNijerya-NPFLNorveç-2.Lig Grup 1Norveç-2.Lig Grup 2Norveç-3.Lig Grup 1Norveç-3.Lig Grup 2Norveç-3.Lig Grup 5Norveç-3.Lig Grup 6Paraguay-Intermedia LigParaguay-Profesyonel Lig AperturaPeru-2.Lig AperturaUEFA Uluslar Ligi-A Ligi Grup 2UEFA Uluslar Ligi-B Ligi Grup 4UEFA Uluslar Ligi-C Ligi Grup 2UEFA Uluslar Ligi-C Ligi Grup 4UEFA Uluslar Ligi-D Ligi Grup 2Venezuela-Premier Lig
A29: Maç Sayısı: 113, Oynanan : 0, Yön:0, Skor : 0, Başarı : %NaN
A30: Kod | B30: Saat | C30: EvSahibi | D30: MS | E30: Deplasman | F30: IY | G30: Lig | H30: MSBS | I30: MS1 | J30: MS0 | K30: MS2 | L30: MSTG1 | M30: MSTG2 | N30: IYBS | O30: IY1 | P30: IY0 | Q30: IY2 | R30: IYTG1 | S30: IYTG2 | U30: - İşaret Bul | V30: MSBS EV | W30: MSBS DEP | X30: MSBS TOP. GOL | Y30: MS BAHİS OYNA | Z30: - İşaret Bul | AA30: IYBS EV | AB30: IYBS DEP | AC30: IYBS TOP. GOL | AD30: İY BAHİS OYNA | AE30: 2.5 GOL ÜST BANKO | AF30: MAK | AG30: MS1 | AH30: MS0 | AI30: MS2
AF31: 0 | AG31: 0 | AH31: 0 | AI31: 0
A32: 763767 | B32: 00:00:00 | C32: CA Sarmiento | D32: v | E32: Argentinos Juni | G32: Arjantin | H32: 1 - 2 | I32: 23.8 | J32: 33.4 | K32: 42.7 | L32: 36 | M32: 64 | N32: 0-1 | O32: 23.9 | P32: 33.4 | Q32: 42.7 | R32: 36 | S32: 64 | U32: =IF(H32=""," ",SEARCH("-",H32)) -> 3 | V32: =IF(H32=""," ",LEFT(H32,U32-1)) -> 1 | W32: =IF(H32=""," ",MID(H32,U32+1,4)) -> 2 | X32: =IF(H32=""," ",V32+W32) -> 3 | Y32: =IF(H32=""," ",IF(X32>=4,"OK","NOT OK")) -> NOT OK | Z32: =IF(N32=""," ",SEARCH("-",N32)) -> 2 | AA32: =IF(N32=""," ",LEFT(N32,Z32-1)) -> 0 | AB32: =IF(N32=""," ",MID(N32,Z32+1,4)) -> 1 | AC32: =IF(N32=""," ",AA32+AB32) -> 1 | AD32: =IF(N32=""," ",IF(AC32>=2,"OK","NOT OK")) -> NOT OK | AE32: =IF(H32=""," ",IF(AND(Y32="OK",AD32="OK"),"OYNA",IF(Y32=AD32,"OYNAMA",IF(Y32=AD32,"OYNA","OYNAMA")))) -> OYNAMA | AF32: =IF(H32="","0",IF(OR(AG32>=65,AH32>=55,AI32>=65),MAX(AG32:AI32),0))*1 -> 0 | AG32: =IF(H32="","0",SUBSTITUTE(I32,".",","))*1 -> 23.8 | AH32: =IF(H32="","0",SUBSTITUTE(J32,".",","))*1 -> 33.4 | AI32: =IF(H32="","0",SUBSTITUTE(K32,".",","))*1 -> 42.7
A33: 754688 | B33: 00:00:00 | C33: Nautico RR | D33: v | E33: Sao Raimundo AM | G33: Brezilya | H33: 1 - 3 | I33: 19.1 | J33: 27.7 | K33: 53.1 | L33: 27 | M33: 73 | N33: 0-1 | O33: 19.3 | P33: 27.1 | Q33: 53.6 | R33: 27 | S33: 73 | U33: =IF(H33=""," ",SEARCH("-",H33)) -> 3 | V33: =IF(H33=""," ",LEFT(H33,U33-1)) -> 1 | W33: =IF(H33=""," ",MID(H33,U33+1,4)) -> 3 | X33: =IF(H33=""," ",V33+W33) -> 4 | Y33: =IF(H33=""," ",IF(X33>=4,"OK","NOT OK")) -> OK | Z33: =IF(N33=""," ",SEARCH("-",N33)) -> 2 | AA33: =IF(N33=""," ",LEFT(N33,Z33-1)) -> 0 | AB33: =IF(N33=""," ",MID(N33,Z33+1,4)) -> 1 | AC33: =IF(N33=""," ",AA33+AB33) -> 1 | AD33: =IF(N33=""," ",IF(AC33>=2,"OK","NOT OK")) -> NOT OK | AE33: =IF(H33=""," ",IF(AND(Y33="OK",AD33="OK"),"OYNA",IF(Y33=AD33,"OYNAMA",IF(Y33=AD33,"OYNA","OYNAMA")))) -> OYNAMA | AF33: 0 | AG33: =IF(H33="","0",SUBSTITUTE(I33,".",","))*1 -> 19.1 | AH33: =IF(H33="","0",SUBSTITUTE(J33,".",","))*1 -> 27.7 | AI33: =IF(H33="","0",SUBSTITUTE(K33,".",","))*1 -> 53.1
A34: 747403 | B34: 00:00:00 | C34: Deportivo La Gu | D34: v | E34: Portuguesa FC | G34: Venezuela | H34: 0 - 2 | I34: 17.4 | J34: 31.3 | K34: 51.3 | L34: 25 | M34: 75 | N34: 0-1 | O34: 18.7 | P34: 26.2 | Q34: 55 | R34: 25 | S34: 75 | U34: 3 | V34: 0 | W34: 2 | X34: 2 | Y34: NOT OK | Z34: 2 | AA34: 0 | AB34: 1 | AC34: 1 | AD34: NOT OK | AE34: OYNAMA | AF34: 0 | AG34: 17.4 | AH34: 31.3 | AI34: 51.3
A35: 747184 | B35: 00:30:00 | C35: Operario PR | D35: v | E35: Bahia | G35: Brezilya | H35: 0 - 2 | I35: 20.1 | J35: 32.1 | K35: 47.9 | L35: 30 | M35: 70 | N35: 0-1 | O35: 21.2 | P35: 29.7 | Q35: 49.2 | R35: 30 | S35: 70 | U35: 3 | V35: 0 | W35: 2 | X35: 2 | Y35: NOT OK | Z35: 2 | AA35: 0 | AB35: 1 | AC35: 1 | AD35: NOT OK | AE35: OYNAMA | AF35: 0 | AG35: 20.1 | AH35: 32.1 | AI35: 47.9
A36: 747198 | B36: 00:30:00 | C36: Tocantinopolis | D36: v | E36: 4 De Julho | G36: Brezilya | H36: 2 - 0 | I36: 56.1 | J36: 29.3 | K36: 14.5 | L36: 79 | M36: 21 | N36: 1-0 | O36: 52.4 | P36: 27.8 | Q36: 19.8 | R36: 73 | S36: 27 | U36: 3 | V36: 2 | W36: 0 | X36: 2 | Y36: NOT OK | Z36: 2 | AA36: 1 | AB36: 0 | AC36: 1 | AD36: NOT OK | AE36: OYNAMA | AF36: 0 | AG36: 56.1 | AH36: 29.3 | AI36: 14.5
A37: 747398 | B37: 01:00:00 | C37: Monterey Bay | D37: v | E37: San Antonio | G37: ABD | H37: 1 - 2 | I37: 20.9 | J37: 32.1 | K37: 47 | L37: 31 | M37: 69 | N37: 0-1 | O37: 23.7 | P37: 33.2 | Q37: 43.1 | R37: 36 | S37: 64 | U37: 3 | V37: 1 | W37: 2 | X37: 3 | Y37: NOT OK | Z37: 2 | AA37: 0 | AB37: 1 | AC37: 1 | AD37: NOT OK | AE37: OYNAMA | AF37: 0 | AG37: 20.9 | AH37: 32.1 | AI37: 47
A38: 747868 | B38: 01:00:00 | C38: Cuiaba | D38: v | E38: Bragantino | G38: Brezilya | H38: 1 - 0 | I38: 51 | J38: 32.5 | K38: 16.6 | L38: 75 | M38: 25 | N38: 1-0 | O38: 53.4 | P38: 27.2 | Q38: 19.4 | R38: 73 | S38: 27 | U38: 3 | V38: 1 | W38: 0 | X38: 1 | Y38: NOT OK | Z38: 2 | AA38: 1 | AB38: 0 | AC38: 1 | AD38: NOT OK | AE38: OYNAMA | AF38: 0 | AG38: 51 | AH38: 32.5 | AI38: 16.6
A39: 747869 | B39: 01:00:00 | C39: Fluminense | D39: v | E39: Atletico Goiani | G39: Brezilya | H39: 2 - 0 | I39: 61.8 | J39: 27.6 | K39: 10.6 | L39: 85 | M39: 15 | N39: 1-0 | O39: 63.6 | P39: 21.2 | Q39: 15.1 | R39: 81 | S39: 19 | U39: 3 | V39: 2 | W39: 0 | X39: 2 | Y39: NOT OK | Z39: 2 | AA39: 1 | AB39: 0 | AC39: 1 | AD39: NOT OK | AE39: OYNAMA | AF39: 0 | AG39: 61.8 | AH39: 27.6 | AI39: 10.6
A40: 747872 | B40: 01:00:00 | C40: Atletico Mineir | D40: v | E40: Santos | G40: Brezilya | H40: 2 - 0 | I40: 51.3 | J40: 30.8 | K40: 17.8 | L40: 74 | M40: 26 | N40: 1-0 | O40: 63 | P40: 21.6 | Q40: 15.4 | R40: 80 | S40: 20 | U40: 3 | V40: 2 | W40: 0 | X40: 2 | Y40: NOT OK | Z40: 2 | AA40: 1 | AB40: 0 | AC40: 1 | AD40: NOT OK | AE40: OYNAMA | AF40: 0 | AG40: 51.3 | AH40: 30.8 | AI40: 17.8
A41: 753005 | B41: 01:00:00 | C41: CSE | D41: v | E41: Santa Cruz | G41: Brezilya | H41: 1 - 0 | I41: 41.9 | J41: 38.1 | K41: 20 | L41: 67 | M41: 33 | N41: 1-0 | O41: 45.6 | P41: 31.8 | Q41: 22.7 | R41: 67 | S41: 33 | U41: 3 | V41: 1 | W41: 0 | X41: 1 | Y41: NOT OK | Z41: 2 | AA41: 1 | AB41: 0 | AC41: 1 | AD41: NOT OK | AE41: OYNAMA | AF41: 0 | AG41: 41.9 | AH41: 38.1 | AI41: 20
A42: 747216 | B42: 01:00:00 | C42: Oeste | D42: v | E42: Nova Iguaçu | G42: Brezilya | H42: 1 - 1 | I42: 33.3 | J42: 39.3 | K42: 27.4 | L42: 55 | M42: 45 | N42: 0-0 | O42: 34.7 | P42: 38.1 | Q42: 27.2 | R42: 56 | S42: 44 | U42: 3 | V42: 1 | W42: 1 | X42: 2 | Y42: NOT OK | Z42: 2 | AA42: 0 | AB42: 0 | AC42: 0 | AD42: NOT OK | AE42: OYNAMA | AF42: 0 | AG42: 33.3 | AH42: 39.3 | AI42: 27.4
A43: 747265 | B43: 01:00:00 | C43: Sint Maarten | D43: v | E43: Turks ve Caicos | G43: CONCACAF Ulusla | H43: 4 - 3 | I43: 38.4 | J43: 32.9 | K43: 28.7 | L43: 57 | M43: 43 | N43: 2-2 | O43: 35.9 | P43: 37.4 | Q43: 26.7 | R43: 57 | S43: 43 | U43: 3 | V43: 4 | W43: 3 | X43: 7 | Y43: OK | Z43: 2 | AA43: 2 | AB43: 2 | AC43: 4 | AD43: OK | AE43: OYNA | AF43: 0 | AG43: 38.4 | AH43: 32.9 | AI43: 28.7
A44: 757027 | B44: 01:00:00 | C44: Junior | D44: v | E44: Atletico Bucara | G44: Kolombiya | H44: 2 - 1 | I44: 44.1 | J44: 33.5 | K44: 22.4 | L44: 66 | M44: 34 | N44: 1-0 | O44: 45.5 | P44: 31.8 | Q44: 22.7 | R44: 67 | S44: 33 | U44: 3 | V44: 2 | W44: 1 | X44: 3 | Y44: NOT OK | Z44: 2 | AA44: 1 | AB44: 0 | AC44: 1 | AD44: NOT OK | AE44: OYNAMA | AF44: 0 | AG44: 44.1 | AH44: 33.5 | AI44: 22.4
A45: 714472 | B45: 01:30:00 | C45: Richmond Kicker | D45: v | E45: Charlotte Indep | G45: ABD | H45: 1 - 1 | I45: 36.9 | J45: 37.9 | K45: 25.2 | L45: 59 | M45: 41 | N45: 1-0 | O45: 37.9 | P45: 36.2 | Q45: 25.9 | R45: 59 | S45: 41 | U45: 3 | V45: 1 | W45: 1 | X45: 2 | Y45: NOT OK | Z45: 2 | AA45: 1 | AB45: 0 | AC45: 1 | AD45: NOT OK | AE45: OYNAMA | AF45: 0 | AG45: 36.9 | AH45: 37.9 | AI45: 25.2
A46: 747394 | B46: 02:00:00 | C46: Charleston Batt | D46: v | E46: Pittsburgh Rive | G46: ABD | H46: 1 - 2 | I46: 21.3 | J46: 31.5 | K46: 47.2 | L46: 31 | M46: 69 | N46: 0-1 | O46: 22 | P46: 30.8 | Q46: 47.2 | R46: 32 | S46: 68 | U46: 3 | V46: 1 | W46: 2 | X46: 3 | Y46: NOT OK | Z46: 2 | AA46: 0 | AB46: 1 | AC46: 1 | AD46: NOT OK | AE46: OYNAMA | AF46: 0 | AG46: 21.3 | AH46: 31.5 | AI46: 47.2
A47: 747397 | B47: 02:00:00 | C47: Miami FC | D47: v | E47: Tampa Bay Rowdi | G47: ABD | H47: 1 - 1 | I47: 31.3 | J47: 39.6 | K47: 29.2 | L47: 52 | M47: 48 | N47: 1-1 | O47: 34.9 | P47: 38 | Q47: 27.1 | R47: 56 | S47: 44 | U47: 3 | V47: 1 | W47: 1 | X47: 2 | Y47: NOT OK | Z47: 2 | AA47: 1 | AB47: 1 | AC47: 2 | AD47: OK | AE47: OYNAMA | AF47: 0 | AG47: 31.3 | AH47: 39.6 | AI47: 29.2
A48: 747400 | B48: 02:15:00 | C48: Zamora | D48: v | E48: Monagas | G48: Venezuela | H48: 2 - 0 | I48: 47.9 | J48: 32.9 | K48: 19.2 | L48: 71 | M48: 29 | N48: 1-0 | O48: 50 | P48: 29.2 | Q48: 20.8 | R48: 71 | S48: 29 | U48: 3 | V48: 2 | W48: 0 | X48: 2 | Y48: NOT OK | Z48: 2 | AA48: 1 | AB48: 0 | AC48: 1 | AD48: NOT OK | AE48: OYNAMA | AF48: 0 | AG48: 47.9 | AH48: 32.9 | AI48: 19.2
A49: 747395 | B49: 02:30:00 | C49: Atlanta United | D49: v | E49: Loudoun United | G49: ABD | H49: 2 - 2 | I49: 35.1 | J49: 35.6 | K49: 29.3 | L49: 55 | M49: 45 | N49: 1-1 | O49: 29.1 | P49: 40.8 | Q49: 30.1 | R49: 49 | S49: 51 | U49: 3 | V49: 2 | W49: 2 | X49: 4 | Y49: OK | Z49: 2 | AA49: 1 | AB49: 1 | AC49: 2 | AD49: OK | AE49: OYNA | AF49: 0 | AG49: 35.1 | AH49: 35.6 | AI49: 29.3
A50: 747399 | B50: 02:30:00 | C50: Detroit City | D50: v | E50: Sacramento Repu | G50: ABD | H50: 1 - 2 | I50: 24 | J50: 34.3 | K50: 41.7 | L50: 37 | M50: 63 | N50: 0-1 | O50: 23.4 | P50: 32.8 | Q50: 43.7 | R50: 35 | S50: 65 | U50: 3 | V50: 1 | W50: 2 | X50: 3 | Y50: NOT OK | Z50: 2 | AA50: 0 | AB50: 1 | AC50: 1 | AD50: NOT OK | AE50: OYNAMA | AF50: 0 | AG50: 24 | AH50: 34.3 | AI50: 41.7
A51: 763763 | B51: 02:30:00 | C51: River Plate | D51: v | E51: Atletico Tucuma | G51: Arjantin | H51: 4 - 0 | I51: 73.1 | J51: 17.5 | K51: 9.5 | L51: 89 | M51: 11 | N51: 2-0 | O51: 75.9 | P51: 14.1 | Q51: 10 | R51: 88 | S51: 12 | U51: 3 | V51: 4 | W51: 0 | X51: 4 | Y51: OK | Z51: 2 | AA51: 2 | AB51: 0 | AC51: 2 | AD51: OK | AE51: OYNA | AF51: 73.1 | AG51: 73.1 | AH51: 17.5 | AI51: 9.5
A52: 765150 | B52: 02:30:00 | C52: Montserrat | D52: v | E52: Bermuda | G52: CONCACAF Ulusla | H52: 2 - 3 | I52: 25.5 | J52: 31.6 | K52: 42.9 | L52: 37 | M52: 63 | N52: 1-1 | O52: 34.7 | P52: 38.1 | Q52: 27.2 | R52: 56 | S52: 44 | U52: 3 | V52: 2 | W52: 3 | X52: 5 | Y52: OK | Z52: 2 | AA52: 1 | AB52: 1 | AC52: 2 | AD52: OK | AE52: =IF(H52=""," ",IF(AND(Y52="OK",AD52="OK"),"OYNA",IF(Y52=AD52,"OYNAMA",IF(Y52=AD52,"OYNA","OYNAMA")))) -> OYNA | AF52: 0 | AG52: 25.5 | AH52: 31.6 | AI52: 42.9
A53: 747389 | B53: 03:00:00 | C53: Nashville SC | D53: v | E53: San Jose Earthq | G53: ABD | H53: 3 - 1 | I53: 47 | J53: 30.3 | K53: 22.7 | L53: 67 | M53: 33 | N53: 1-0 | O53: 48.8 | P53: 29.9 | Q53: 21.3 | R53: 70 | S53: 30 | U53: 3 | V53: 3 | W53: 1 | X53: 4 | Y53: OK | Z53: 2 | AA53: 1 | AB53: 0 | AC53: 1 | AD53: NOT OK | AE53: OYNAMA | AF53: 0 | AG53: 47 | AH53: 30.3 | AI53: 22.7
A54: 747393 | B54: 03:00:00 | C54: Forward Madison | D54: v | E54: Greenville Triu | G54: ABD | H54: 1 - 1 | I54: 33.6 | J54: 41.5 | K54: 24.8 | L54: 58 | M54: 42 | N54: 0-0 | O54: 33.1 | P54: 39 | Q54: 27.9 | R54: 54 | S54: 46 | U54: 3 | V54: 1 | W54: 1 | X54: 2 | Y54: NOT OK | Z54: 2 | AA54: 0 | AB54: 0 | AC54: 0 | AD54: NOT OK | AE54: OYNAMA | AF54: 0 | AG54: 33.6 | AH54: 41.5 | AI54: 24.8
A55: 747850 | B55: 03:00:00 | C55: Central Norte | D55: v | E55: Racing Cordoba | G55: Arjantin | H55: 2 - 1 | I55: 39.6 | J55: 35.8 | K55: 24.6 | L55: 62 | M55: 38 | N55: 1-0 | O55: 51.1 | P55: 28.5 | Q55: 20.4 | R55: 72 | S55: 28 | U55: 3 | V55: 2 | W55: 1 | X55: 3 | Y55: NOT OK | Z55: 2 | AA55: 1 | AB55: 0 | AC55: 1 | AD55: NOT OK | AE55: OYNAMA | AF55: 0 | AG55: 39.6 | AH55: 35.8 | AI55: 24.6
A56: 747870 | B56: 03:00:00 | C56: Internacional | D56: v | E56: Flamengo | G56: Brezilya | H56: 2 - 1 | I56: 44.9 | J56: 32 | K56: 23.1 | L56: 66 | M56: 34 | N56: 1-0 | O56: 45 | P56: 32.1 | Q56: 22.9 | R56: 66 | S56: 34 | U56: 3 | V56: 2 | W56: 1 | X56: 3 | Y56: NOT OK | Z56: 2 | AA56: 1 | AB56: 0 | AC56: 1 | AD56: NOT OK | AE56: OYNAMA | AF56: 0 | AG56: 44.9 | AH56: 32 | AI56: 23.1
A57: 770741 | B57: 03:00:00 | C57: Ekvador | D57: v | E57: Mali | G57: Hazirlik | H57: 1 - 0 | I57: 41.5 | J57: 37.1 | K57: 21.3 | L57: 66 | M57: 34 | N57: 0-0 | O57: 33.9 | P57: 38.5 | Q57: 27.5 | R57: 55 | S57: 45 | U57: 3 | V57: 1 | W57: 0 | X57: 1 | Y57: NOT OK | Z57: 2 | AA57: 0 | AB57: 0 | AC57: 0 | AD57: NOT OK | AE57: OYNAMA | AF57: 0 | AG57: 41.5 | AH57: 37.1 | AI57: 21.3
A58: 757026 | B58: 03:30:00 | C58: Millonarios | D58: v | E58: Atletico Nacion | G58: Kolombiya | H58: 1 - 1 | I58: 31.7 | J58: 41.5 | K58: 26.8 | L58: 54 | M58: 46 | N58: 1-0 | O58: 39.7 | P58: 35.2 | Q58: 25.1 | R58: 61 | S58: 39 | U58: 3 | V58: 1 | W58: 1 | X58: 2 | Y58: NOT OK | Z58: 2 | AA58: 1 | AB58: 0 | AC58: 1 | AD58: NOT OK | AE58: OYNAMA | AF58: 0 | AG58: 31.7 | AH58: 41.5 | AI58: 26.8
A59: 747390 | B59: 04:00:00 | C59: Northern Colora | D59: v | E59: Tormenta | G59: ABD | H59: 1 - 2 | I59: 20.6 | J59: 30.1 | K59: 49.3 | L59: 30 | M59: 70 | N59: 0-1 | O59: 21.2 | P59: 29.7 | Q59: 49.1 | R59: 30 | S59: 70 | U59: 3 | V59: 1 | W59: 2 | X59: 3 | Y59: NOT OK | Z59: 2 | AA59: 0 | AB59: 1 | AC59: 1 | AD59: NOT OK | AE59: OYNAMA | AF59: 0 | AG59: 20.6 | AH59: 30.1 | AI59: 49.3
A60: 747975 | B60: 05:00:00 | C60: San Diego Loyal | D60: v | E60: Hartford Athlet | G60: ABD | H60: 2 - 1 | I60: 41.2 | J60: 33.1 | K60: 25.7 | L60: 62 | M60: 38 | N60: 1-0 | O60: 45.1 | P60: 32 | Q60: 22.9 | R60: 66 | S60: 34 | U60: 3 | V60: 2 | W60: 1 | X60: 3 | Y60: NOT OK | Z60: 2 | AA60: 1 | AB60: 0 | AC60: 1 | AD60: NOT OK | AE60: OYNAMA | AF60: 0 | AG60: 41.2 | AH60: 33.1 | AI60: 25.7
A61: 747978 | B61: 05:00:00 | C61: Oakland Roots | D61: v | E61: Rio Grande Vall | G61: ABD | H61: 2 - 2 | I61: 35.2 | J61: 36.7 | K61: 28.1 | L61: 56 | M61: 44 | N61: 1-0 | O61: 38.1 | P61: 36.1 | Q61: 25.8 | R61: 59 | S61: 41 | U61: 3 | V61: 2 | W61: 2 | X61: 4 | Y61: OK | Z61: 2 | AA61: 1 | AB61: 0 | AC61: 1 | AD61: NOT OK | AE61: OYNAMA | AF61: 0 | AG61: 35.2 | AH61: 36.7 | AI61: 28.1
A62: 747391 | B62: 05:00:00 | C62: Tucson | D62: v | E62: Union Omaha | G62: ABD | H62: 0 - 2 | I62: 19.7 | J62: 31.6 | K62: 48.6 | L62: 29 | M62: 71 | N62: 0-1 | O62: 18.1 | P62: 25.4 | Q62: 56.4 | R62: 24 | S62: 76 | U62: 3 | V62: 0 | W62: 2 | X62: 2 | Y62: NOT OK | Z62: 2 | AA62: 0 | AB62: 1 | AC62: 1 | AD62: NOT OK | AE62: OYNAMA | AF62: 0 | AG62: 19.7 | AH62: 31.6 | AI62: 48.6
A63: 747267 | B63: 05:00:00 | C63: Meksika | D63: v | E63: Surinam | G63: CONCACAF Ulusla | H63: 0 - 3 | I63: 2.3 | J63: 15.9 | K63: 81.8 | L63: 3 | M63: 97 | N63: 0-1 | O63: 6.2 | P63: 8.7 | Q63: 85.1 | R63: 7 | S63: 93 | U63: 3 | V63: 0 | W63: 3 | X63: 3 | Y63: NOT OK | Z63: 2 | AA63: 0 | AB63: 1 | AC63: 1 | AD63: NOT OK | AE63: OYNAMA | AF63: 81.8 | AG63: 2.3 | AH63: 15.9 | AI63: 81.8
A64: 747979 | B64: 05:30:00 | C64: Las Vegas Light | D64: v | E64: Orange County S | G64: ABD | H64: 1 - 2 | I64: 23.5 | J64: 31.8 | K64: 44.7 | L64: 34 | M64: 66 | N64: 0-1 | O64: 23.1 | P64: 32.3 | Q64: 44.6 | R64: 34 | S64: 66 | U64: 3 | V64: 1 | W64: 2 | X64: 3 | Y64: NOT OK | Z64: 2 | AA64: 0 | AB64: 1 | AC64: 1 | AD64: NOT OK | AE64: OYNAMA | AF64: 0 | AG64: 23.5 | AH64: 31.8 | AI64: 44.7
A65: 747976 | B65: 05:30:00 | C65: Phoenix Rising | D65: v | E65: El Paso Locomot | G65: ABD | H65: 2 - 2 | I65: 29.8 | J65: 37.2 | K65: 33.1 | L65: 47 | M65: 53 | N65: 1-1 | O65: 32.9 | P65: 39.1 | Q65: 28 | R65: 54 | S65: 46 | U65: 3 | V65: 2 | W65: 2 | X65: 4 | Y65: OK | Z65: 2 | AA65: 1 | AB65: 1 | AC65: 2 | AD65: OK | AE65: OYNA | AF65: 0 | AG65: 29.8 | AH65: 37.2 | AI65: 33.1
A66: 747977 | B66: 05:30:00 | C66: LA Galaxy II | D66: v | E66: Colorado Spring | G66: ABD | H66: 2 - 2 | I66: 28.3 | J66: 36.3 | K66: 35.4 | L66: 45 | M66: 55 | N66: 0-1 | O66: 25.6 | P66: 35.9 | Q66: 38.5 | R66: 40 | S66: 60 | U66: 3 | V66: 2 | W66: 2 | X66: 4 | Y66: OK | Z66: 2 | AA66: 0 | AB66: 1 | AC66: 1 | AD66: NOT OK | AE66: OYNAMA | AF66: 0 | AG66: 28.3 | AH66: 36.3 | AI66: 35.4
A67: 747392 | B67: 05:30:00 | C67: Central Valley | D67: v | E67: Chattanooga Red | G67: ABD | H67: 1 - 1 | I67: 28.9 | J67: 39.9 | K67: 31.2 | L67: 48 | M67: 52 | N67: 0-0 | O67: 31.4 | P67: 40 | Q67: 28.6 | R67: 52 | S67: 48 | U67: 3 | V67: 1 | W67: 1 | X67: 2 | Y67: NOT OK | Z67: 2 | AA67: 0 | AB67: 0 | AC67: 0 | AD67: NOT OK | AE67: OYNAMA | AF67: 0 | AG67: 28.9 | AH67: 39.9 | AI67: 31.2
A68: 747860 | B68: 07:00:00 | C68: Valentine Phoen | D68: v | E68: Adamstown Roseb | G68: Avustralya | H68: 3 - 1 | I68: 47.1 | J68: 30.6 | K68: 22.3 | L68: 68 | M68: 32 | N68: 1-0 | O68: 43.4 | P68: 33 | Q68: 23.6 | R68: 65 | S68: 35 | U68: 3 | V68: 3 | W68: 1 | X68: 4 | Y68: OK | Z68: 2 | AA68: 1 | AB68: 0 | AC68: 1 | AD68: NOT OK | AE68: OYNAMA | AF68: 0 | AG68: =IF(H68="","0",SUBSTITUTE(I68,".",","))*1 -> 47.1 | AH68: 30.6 | AI68: 22.3
A69: 747922 | B69: 07:00:00 | C69: Renofa Yamaguch | D69: v | E69: Fagiano Okayama | G69: Japonya | H69: 1 - 1 | I69: 23.5 | J69: 39.3 | K69: 37.2 | L69: 39 | M69: 61 | N69: 0-1 | O69: 23.6 | P69: 33 | Q69: 43.4 | R69: 35 | S69: 65 | U69: 3 | V69: 1 | W69: 1 | X69: 2 | Y69: NOT OK | Z69: 2 | AA69: 0 | AB69: 1 | AC69: 1 | AD69: NOT OK | AE69: OYNAMA | AF69: 0 | AG69: 23.5 | AH69: 39.3 | AI69: 37.2
A70: 747930 | B70: 07:00:00 | C70: Azul Claro Numa | D70: v | E70: Yokohama SCC | G70: Japonya | H70: 2 - 1 | I70: 46 | J70: 32.3 | K70: 21.7 | L70: 68 | M70: 32 | N70: 1-0 | O70: 42.9 | P70: 33.3 | Q70: 23.8 | R70: 64 | S70: 36 | U70: 3 | V70: 2 | W70: 1 | X70: 3 | Y70: NOT OK | Z70: 2 | AA70: 1 | AB70: 0 | AC70: 1 | AD70: NOT OK | AE70: OYNAMA | AF70: 0 | AG70: 46 | AH70: 32.3 | AI70: 21.7
A71: 747866 | B71: 08:00:00 | C71: Blacktown City | D71: v | E71: APIA Leichhardt | G71: Avustralya | H71: 2 - 1 | I71: 41.5 | J71: 33.2 | K71: 25.3 | L71: 62 | M71: 38 | N71: 1-0 | O71: 50.2 | P71: 29.1 | Q71: 20.8 | R71: 71 | S71: 29 | U71: 3 | V71: 2 | W71: 1 | X71: 3 | Y71: NOT OK | Z71: 2 | AA71: 1 | AB71: 0 | AC71: 1 | AD71: NOT OK | AE71: OYNAMA | AF71: 0 | AG71: 41.5 | AH71: 33.2 | AI71: 25.3
A72: 747867 | B72: 08:00:00 | C72: Sydney United | D72: v | E72: North Shore Mar | G72: Avustralya | H72: 2 - 2 | I72: 32.4 | J72: 36.9 | K72: 30.7 | L72: 51 | M72: 49 | N72: 1-1 | O72: 26.8 | P72: 37.5 | Q72: 35.7 | R72: 43 | S72: 57 | U72: 3 | V72: 2 | W72: 2 | X72: 4 | Y72: OK | Z72: 2 | AA72: 1 | AB72: 1 | AC72: 2 | AD72: OK | AE72: OYNA | AF72: 0 | AG72: 32.4 | AH72: 36.9 | AI72: 30.7
A73: 747924 | B73: 08:00:00 | C73: Machida Zelvia | D73: v | E73: Roasso Kumamoto | G73: Japonya | H73: 1 - 0 | I73: 41.4 | J73: 37.4 | K73: 21.3 | L73: 66 | M73: 34 | N73: 1-0 | O73: 44.2 | P73: 32.6 | Q73: 23.3 | R73: 65 | S73: 35 | U73: 3 | V73: 1 | W73: 0 | X73: 1 | Y73: NOT OK | Z73: 2 | AA73: 1 | AB73: 0 | AC73: 1 | AD73: NOT OK | AE73: OYNAMA | AF73: 0 | AG73: 41.4 | AH73: 37.4 | AI73: 21.3
A74: 747925 | B74: 08:00:00 | C74: Blaublitz Akita | D74: v | E74: Omiya Ardija | G74: Japonya | H74: 0 - 1 | I74: 19.7 | J74: 33.9 | K74: 46.4 | L74: 30 | M74: 70 | N74: 0-1 | O74: 17.1 | P74: 24 | Q74: 58.9 | R74: 23 | S74: 77 | U74: 3 | V74: 0 | W74: 1 | X74: 1 | Y74: NOT OK | Z74: 2 | AA74: 0 | AB74: 1 | AC74: 1 | AD74: NOT OK | AE74: OYNAMA | AF74: 0 | AG74: 19.7 | AH74: 33.9 | AI74: 46.4
A75: 747926 | B75: 08:00:00 | C75: Mito HollyHock | D75: v | E75: Montedio Yamaga | G75: Japonya | H75: 1 - 1 | I75: 29.5 | J75: 41.6 | K75: 28.9 | L75: 51 | M75: 49 | N75: 0-0 | O75: 29.1 | P75: 40.7 | Q75: 30.2 | R75: 49 | S75: 51 | U75: 3 | V75: 1 | W75: 1 | X75: 2 | Y75: NOT OK | Z75: 2 | AA75: 0 | AB75: 0 | AC75: 0 | AD75: NOT OK | AE75: OYNAMA | AF75: 0 | AG75: 29.5 | AH75: 41.6 | AI75: 28.9
A76: 747927 | B76: 08:00:00 | C76: Tegevajaro Miya | D76: v | E76: Kataller Toyama | G76: Japonya | H76: 2 - 1 | I76: 51.6 | J76: 29.2 | K76: 19.2 | L76: 73 | M76: 27 | N76: 1-0 | O76: 55.2 | P76: 26.1 | Q76: 18.7 | R76: 75 | S76: 25 | U76: 3 | V76: 2 | W76: 1 | X76: 3 | Y76: NOT OK | Z76: 2 | AA76: 1 | AB76: 0 | AC76: 1 | AD76: NOT OK | AE76: OYNAMA | AF76: 0 | AG76: 51.6 | AH76: 29.2 | AI76: 19.2
A77: 747928 | B77: 08:00:00 | C77: Vanraure Hachin | D77: v | E77: Gainare Tottori | G77: Japonya | H77: 2 - 0 | I77: 43.8 | J77: 34.3 | K77: 21.8 | L77: 67 | M77: 33 | N77: 1-0 | O77: 52.5 | P77: 27.7 | Q77: 19.8 | R77: 73 | S77: 27 | U77: 3 | V77: 2 | W77: 0 | X77: 2 | Y77: NOT OK | Z77: 2 | AA77: 1 | AB77: 0 | AC77: 1 | AD77: NOT OK | AE77: OYNAMA | AF77: 0 | AG77: 43.8 | AH77: 34.3 | AI77: 21.8
A78: 747931 | B78: 08:00:00 | C78: FC Gifu | D78: v | E78: Kagoshima Unite | G78: Japonya | H78: 0 - 2 | I78: 18.8 | J78: 31.6 | K78: 49.6 | L78: 27 | M78: 73 | N78: 0-1 | O78: 16.1 | P78: 22.5 | Q78: 61.4 | R78: 21 | S78: 79 | U78: 3 | V78: 0 | W78: 2 | X78: 2 | Y78: NOT OK | Z78: 2 | AA78: 0 | AB78: 1 | AC78: 1 | AD78: NOT OK | AE78: OYNAMA | AF78: 0 | AG78: 18.8 | AH78: 31.6 | AI78: 49.6
A79: 747932 | B79: 08:00:00 | C79: Kamatamare Sanu | D79: v | E79: Iwaki | G79: Japonya | H79: 1 - 1 | I79: 34.5 | J79: 39.1 | K79: 26.5 | L79: 57 | M79: 43 | N79: 1-0 | O79: 39.1 | P79: 35.5 | Q79: 25.4 | R79: 61 | S79: 39 | U79: 3 | V79: 1 | W79: 1 | X79: 2 | Y79: NOT OK | Z79: 2 | AA79: 1 | AB79: 0 | AC79: 1 | AD79: NOT OK | AE79: OYNAMA | AF79: 0 | AG79: 34.5 | AH79: 39.1 | AI79: 26.5
A80: 747933 | B80: 08:00:00 | C80: Giravanz Kitaky | D80: v | E80: Fukushima Unite | G80: Japonya | H80: 1 - 0 | I80: 39.5 | J80: 37.1 | K80: 23.4 | L80: 63 | M80: 37 | N80: 1-0 | O80: 40.6 | P80: 34.6 | Q80: 24.7 | R80: 62 | S80: 38 | U80: 3 | V80: 1 | W80: 0 | X80: 1 | Y80: NOT OK | Z80: 2 | AA80: 1 | AB80: 0 | AC80: 1 | AD80: NOT OK | AE80: OYNAMA | AF80: 0 | AG80: 39.5 | AH80: 37.1 | AI80: 23.4
A81: 747837 | B81: 09:00:00 | C81: Rockdale City S | D81: v | E81: Marconi Stallio | G81: Avustralya | H81: 1 - 2 | I81: 23.2 | J81: 32.5 | K81: 44.3 | L81: 34 | M81: 66 | N81: 0-1 | O81: 24.3 | P81: 34 | Q81: 41.8 | R81: 37 | S81: 63 | U81: 3 | V81: 1 | W81: 2 | X81: 3 | Y81: NOT OK | Z81: 2 | AA81: 0 | AB81: 1 | AC81: 1 | AD81: NOT OK | AE81: OYNAMA | AF81: 0 | AG81: 23.2 | AH81: 32.5 | AI81: 44.3
A82: 747960 | B82: 10:00:00 | C82: Siheung Citizen | D82: v | E82: Gangneung City | G82: Güney Kore | H82: 2 - 1 | I82: 40.9 | J82: 33.7 | K82: 25.4 | L82: 62 | M82: 38 | N82: 1-0 | O82: 50 | P82: 29.2 | Q82: 20.8 | R82: 71 | S82: 29 | U82: 3 | V82: 2 | W82: 1 | X82: 3 | Y82: NOT OK | Z82: 2 | AA82: 1 | AB82: 0 | AC82: 1 | AD82: NOT OK | AE82: OYNAMA | AF82: 0 | AG82: 40.9 | AH82: 33.7 | AI82: 25.4
A83: 747934 | B83: 10:00:00 | C83: Parceiro Nagano | D83: v | E83: Ehime FC | G83: Japonya | H83: 1 - 1 | I83: 22.3 | J83: 39.7 | K83: 37.9 | L83: 37 | M83: 63 | N83: 0-1 | O83: 23.8 | P83: 33.3 | Q83: 42.9 | R83: 36 | S83: 64 | U83: 3 | V83: 1 | W83: 1 | X83: 2 | Y83: NOT OK | Z83: 2 | AA83: 0 | AB83: 1 | AC83: 1 | AD83: NOT OK | AE83: OYNAMA | AF83: 0 | AG83: 22.3 | AH83: 39.7 | AI83: 37.9
A84: 747929 | B84: 10:00:00 | C84: Imabari | D84: v | E84: Sagamihara | G84: Japonya | H84: 0 - 1 | I84: 23.7 | J84: 37.2 | K84: 39.1 | L84: 38 | M84: 62 | N84: 0-1 | O84: 24.1 | P84: 33.7 | Q84: 42.2 | R84: 36 | S84: 64 | U84: 3 | V84: 0 | W84: 1 | X84: 1 | Y84: NOT OK | Z84: 2 | AA84: 0 | AB84: 1 | AC84: 1 | AD84: NOT OK | AE84: OYNAMA | AF84: 0 | AG84: 23.7 | AH84: 37.2 | AI84: 39.1
A85: 747959 | B85: 11:00:00 | C85: Yangju Citizen | D85: v | E85: Busan Transport | G85: Güney Kore | H85: 0 - 1 | I85: 19.2 | J85: 36.6 | K85: 44.2 | L85: 30 | M85: 70 | N85: 0-1 | O85: 23.8 | P85: 33.3 | Q85: 42.9 | R85: 36 | S85: 64 | U85: 3 | V85: 0 | W85: 1 | X85: 1 | Y85: NOT OK | Z85: 2 | AA85: 0 | AB85: 1 | AC85: 1 | AD85: NOT OK | AE85: OYNAMA | AF85: 0 | AG85: 19.2 | AH85: 36.6 | AI85: 44.2
A86: 747957 | B86: 12:00:00 | C86: Seoul E-Land | D86: v | E86: Busan I Park | G86: Güney Kore | H86: 1 - 2 | I86: 24.4 | J86: 33 | K86: 42.6 | L86: 37 | M86: 63 | N86: 0-1 | O86: 25.5 | P86: 35.6 | Q86: 38.9 | R86: 40 | S86: 60 | U86: 3 | V86: 1 | W86: 2 | X86: 3 | Y86: NOT OK | Z86: 2 | AA86: 0 | AB86: 1 | AC86: 1 | AD86: NOT OK | AE86: OYNAMA | AF86: 0 | AG86: 24.4 | AH86: 33 | AI86: 42.6
A87: 747923 | B87: 12:00:00 | C87: ThespaKusatsu G | D87: v | E87: Tochigi SC | G87: Japonya | H87: 1 - 0 | I87: 47.8 | J87: 35.1 | K87: 17.1 | L87: 74 | M87: 26 | N87: 1-0 | O87: 52.3 | P87: 27.8 | Q87: 19.9 | R87: 72 | S87: 28 | U87: 3 | V87: 1 | W87: 0 | X87: 1 | Y87: NOT OK | Z87: 2 | AA87: 1 | AB87: 0 | AC87: 1 | AD87: NOT OK | AE87: OYNAMA | AF87: 0 | AG87: 47.8 | AH87: 35.1 | AI87: 17.1
A88: 747921 | B88: 12:00:00 | C88: Tokyo Verdy | D88: v | E88: Grulla Morioka | G88: Japonya | H88: 2 - 1 | I88: 39.7 | J88: 35.2 | K88: 25.1 | L88: 61 | M88: 39 | N88: 1-0 | O88: 41.5 | P88: 34.1 | Q88: 24.4 | R88: 63 | S88: 37 | U88: 3 | V88: 2 | W88: 1 | X88: 3 | Y88: NOT OK | Z88: 2 | AA88: 1 | AB88: 0 | AC88: 1 | AD88: NOT OK | AE88: OYNAMA | AF88: 0 | AG88: 39.7 | AH88: 35.2 | AI88: 25.1
A89: 764347 | B89: 12:30:00 | C89: Guangzhou R&F | D89: v | E89: Shandong Taisha | G89: Çin Halk C | H89: 1 - 3 | I89: 18.9 | J89: 26.7 | K89: 54.4 | L89: 26 | M89: 74 | N89: 0-2 | O89: 18.1 | P89: 25.4 | Q89: 56.5 | R89: 24 | S89: 76 | U89: 3 | V89: 1 | W89: 3 | X89: 4 | Y89: OK | Z89: 2 | AA89: 0 | AB89: 2 | AC89: 2 | AD89: OK | AE89: OYNA | AF89: 0 | AG89: 18.9 | AH89: 26.7 | AI89: 54.4
A90: 747958 | B90: 14:00:00 | C90: Jeonnam Dragons | D90: v | E90: Gyeongnam FC | G90: Güney Kore | H90: 2 - 1 | I90: 37.4 | J90: 36.3 | K90: 26.4 | L90: 59 | M90: 41 | N90: 1-1 | O90: 32 | P90: 39.7 | Q90: 28.3 | R90: 53 | S90: 47 | U90: 3 | V90: 2 | W90: 1 | X90: 3 | Y90: NOT OK | Z90: 2 | AA90: 1 | AB90: 1 | AC90: 2 | AD90: OK | AE90: OYNAMA | AF90: 0 | AG90: 37.4 | AH90: 36.3 | AI90: 26.4
A91: 747940 | B91: 14:00:00 | C91: Floro SK | D91: v | E91: Hönefoss BK | G91: Norveç | H91: 3 - 2 | I91: 40 | J91: 33.4 | K91: 26.5 | L91: 60 | M91: 40 | N91: 1-1 | O91: 35.6 | P91: 37.6 | Q91: 26.8 | R91: 57 | S91: 43 | U91: 3 | V91: 3 | W91: 2 | X91: 5 | Y91: OK | Z91: 2 | AA91: 1 | AB91: 1 | AC91: 2 | AD91: OK | AE91: OYNA | AF91: 0 | AG91: 40 | AH91: 33.4 | AI91: 26.5
A92: 747943 | B92: 14:00:00 | C92: Stromsgodset II | D92: v | E92: Skjervoy | G92: Norveç | H92: 5 - 0 | I92: 79.9 | J92: 13.8 | K92: 6.3 | L92: 93 | M92: 7 | N92: 2-0 | O92: 67.9 | P92: 18.7 | Q92: 13.4 | R92: 84 | S92: 16 | U92: 3 | V92: 5 | W92: 0 | X92: 5 | Y92: OK | Z92: 2 | AA92: 2 | AB92: 0 | AC92: 2 | AD92: OK | AE92: OYNA | AF92: =IF(H92="","0",IF(OR(AG92>=65,AH92>=55,AI92>=65),MAX(AG92:AI92),0))*1 -> 79.9 | AG92: 79.9 | AH92: 13.8 | AI92: 6.3
A93: 764348 | B93: 14:30:00 | C93: Changchun YaTai | D93: v | E93: Dalian Pro | G93: Çin Halk C | H93: 2 - 0 | I93: 50.4 | J93: 30.7 | K93: 18.9 | L93: 73 | M93: 27 | N93: 1-0 | O93: 61.4 | P93: 22.5 | Q93: 16.1 | R93: 79 | S93: 21 | U93: =IF(H93=""," ",SEARCH("-",H93)) -> 3 | V93: =IF(H93=""," ",LEFT(H93,U93-1)) -> 2 | W93: =IF(H93=""," ",MID(H93,U93+1,4)) -> 0 | X93: =IF(H93=""," ",V93+W93) -> 2 | Y93: =IF(H93=""," ",IF(X93>=4,"OK","NOT OK")) -> NOT OK | Z93: =IF(N93=""," ",SEARCH("-",N93)) -> 2 | AA93: =IF(N93=""," ",LEFT(N93,Z93-1)) -> 1 | AB93: =IF(N93=""," ",MID(N93,Z93+1,4)) -> 0 | AC93: =IF(N93=""," ",AA93+AB93) -> 1 | AD93: =IF(N93=""," ",IF(AC93>=2,"OK","NOT OK")) -> NOT OK | AE93: =IF(H93=""," ",IF(AND(Y93="OK",AD93="OK"),"OYNA",IF(Y93=AD93,"OYNAMA",IF(Y93=AD93,"OYNA","OYNAMA")))) -> OYNAMA | AF93: 0 | AG93: =IF(H93="","0",SUBSTITUTE(I93,".",","))*1 -> 50.4 | AH93: =IF(H93="","0",SUBSTITUTE(J93,".",","))*1 -> 30.7 | AI93: =IF(H93="","0",SUBSTITUTE(K93,".",","))*1 -> 18.9
A94: 764354 | B94: 14:30:00 | C94: Cangzhou Mighty | D94: v | E94: Chengdu Qianbao | G94: Çin Halk C | H94: 2 - 1 | I94: 51.1 | J94: 29.4 | K94: 19.5 | L94: 72 | M94: 28 | N94: 1-0 | O94: 52.1 | P94: 27.9 | Q94: 19.9 | R94: 72 | S94: 28 | U94: 3 | V94: 2 | W94: 1 | X94: 3 | Y94: NOT OK | Z94: 2 | AA94: 1 | AB94: 0 | AC94: 1 | AD94: NOT OK | AE94: OYNAMA | AF94: 0 | AG94: 51.1 | AH94: 29.4 | AI94: 19.5
A95: 764358 | B95: 14:30:00 | C95: Shanghai Shenhu | D95: v | E95: Wuhan Three Tow | G95: Çin Halk C | H95: 1 - 0 | I95: 45 | J95: 37.1 | K95: 17.9 | L95: 71 | M95: 29 | N95: 1-0 | O95: 50.1 | P95: 29.1 | Q95: 20.8 | R95: 71 | S95: 29 | U95: 3 | V95: 1 | W95: 0 | X95: 1 | Y95: NOT OK | Z95: 2 | AA95: 1 | AB95: 0 | AC95: 1 | AD95: NOT OK | AE95: OYNAMA | AF95: 0 | AG95: 45 | AH95: 37.1 | AI95: 17.9
A96: 763323 | B96: 15:00:00 | C96: Progress / AFA | D96: v | E96: Grobina | G96: Letonya | H96: 7 - 0 | I96: 78.4 | J96: 13.8 | K96: 7.7 | L96: 91 | M96: 9 | N96: 2-0 | O96: 56.1 | P96: 25.6 | Q96: 18.3 | R96: 75 | S96: 25 | U96: 3 | V96: 7 | W96: 0 | X96: 7 | Y96: OK | Z96: 2 | AA96: 2 | AB96: 0 | AC96: 2 | AD96: OK | AE96: OYNA | AF96: 78.4 | AG96: 78.4 | AH96: 13.8 | AI96: 7.7
A97: 747938 | B97: 15:00:00 | C97: Notodden | D97: v | E97: Staal Jorpeland | G97: Norveç | H97: 2 - 1 | I97: 38 | J97: 35.5 | K97: 26.5 | L97: 59 | M97: 41 | N97: 1-0 | O97: 38.9 | P97: 35.6 | Q97: 25.5 | R97: 60 | S97: 40 | U97: 3 | V97: 2 | W97: 1 | X97: 3 | Y97: NOT OK | Z97: 2 | AA97: 1 | AB97: 0 | AC97: 1 | AD97: NOT OK | AE97: OYNAMA | AF97: 0 | AG97: 38 | AH97: 35.5 | AI97: 26.5
A98: 747941 | B98: 15:30:00 | C98: SF Grei | D98: v | E98: Fyllingsdalen | G98: Norveç | H98: 3 - 2 | I98: 40.9 | J98: 33.1 | K98: 26 | L98: 61 | M98: 39 | N98: 1-0 | O98: 43.3 | P98: 33.1 | Q98: 23.6 | R98: 65 | S98: 35 | U98: 3 | V98: 3 | W98: 2 | X98: 5 | Y98: OK | Z98: 2 | AA98: 1 | AB98: 0 | AC98: 1 | AD98: NOT OK | AE98: OYNAMA | AF98: 0 | AG98: 40.9 | AH98: 33.1 | AI98: 26
A99: 747281 | B99: 16:00:00 | C99: Güney Kore U23 | D99: v | E99: Japonya U23 | G99: AFC U23 Sampiyo | H99: 2 - 2 | I99: 32.8 | J99: 37.1 | K99: 30.1 | L99: 52 | M99: 48 | N99: 1-1 | O99: 35.7 | P99: 37.5 | Q99: 26.8 | R99: 57 | S99: 43 | U99: 3 | V99: 2 | W99: 2 | X99: 4 | Y99: OK | Z99: 2 | AA99: 1 | AB99: 1 | AC99: 2 | AD99: OK | AE99: OYNA | AF99: 0 | AG99: 32.8 | AH99: 37.1 | AI99: 30.1
A100: 747970 | B100: 16:00:00 | C100: Pitea IF | D100: v | E100: Vasalund IF | G100: Isveç | H100: 1 - 2 | I100: 23.4 | J100: 32.4 | K100: 44.3 | L100: 34 | M100: 66 | N100: 0-1 | O100: 23.2 | P100: 32.5 | Q100: 44.3 | R100: 34 | S100: 66 | U100: 3 | V100: 1 | W100: 2 | X100: 3 | Y100: NOT OK | Z100: 2 | AA100: 0 | AB100: 1 | AC100: 1 | AD100: NOT OK | AE100: OYNAMA | AF100: 0 | AG100: 23.4 | AH100: 32.4 | AI100: 44.3
A101: 747971 | B101: 16:00:00 | C101: Haninge | D101: v | E101: Umea FC | G101: Isveç | H101: 1 - 1 | I101: 27.4 | J101: 36.8 | K101: 35.8 | L101: 43 | M101: 57 | N101: 0-1 | O101: 25.7 | P101: 35.9 | Q101: 38.4 | R101: 40 | S101: 60 | U101: 3 | V101: 1 | W101: 1 | X101: 2 | Y101: NOT OK | Z101: 2 | AA101: 0 | AB101: 1 | AC101: 1 | AD101: NOT OK | AE101: OYNAMA | AF101: 0 | AG101: 27.4 | AH101: 36.8 | AI101: 35.8
A102: 747942 | B102: 16:00:00 | C102: Mjöndalen II | D102: v | E102: Gjellerasen | G102: Norveç | H102: 2 - 2 | I102: 33.1 | J102: 37.3 | K102: 29.6 | L102: 53 | M102: 47 | N102: 1-0 | O102: 42.3 | P102: 33.7 | Q102: 24 | R102: 64 | S102: 36 | U102: 3 | V102: 2 | W102: 2 | X102: 4 | Y102: OK | Z102: 2 | AA102: 1 | AB102: 0 | AC102: 1 | AD102: NOT OK | AE102: OYNAMA | AF102: 0 | AG102: 33.1 | AH102: 37.3 | AI102: 29.6
A103: 747944 | B103: 16:00:00 | C103: Senja Silsand | D103: v | E103: Lorenskog | G103: Norveç | H103: 2 - 1 | I103: 38.9 | J103: 34.3 | K103: 26.8 | L103: 59 | M103: 41 | N103: 1-0 | O103: 37.3 | P103: 36.6 | Q103: 26.1 | R103: 59 | S103: 41 | U103: 3 | V103: 2 | W103: 1 | X103: 3 | Y103: NOT OK | Z103: 2 | AA103: 1 | AB103: 0 | AC103: 1 | AD103: NOT OK | AE103: OYNAMA | AF103: 0 | AG103: 38.9 | AH103: 34.3 | AI103: 26.8
A104: 747945 | B104: 16:00:00 | C104: Lilleström II | D104: v | E104: Bossekop | G104: Norveç | H104: 3 - 1 | I104: 58.3 | J104: 25 | K104: 16.7 | L104: 78 | M104: 22 | N104: 2-0 | O104: 59.9 | P104: 23.4 | Q104: 16.7 | R104: 78 | S104: 22 | U104: 3 | V104: 3 | W104: 1 | X104: 4 | Y104: OK | Z104: 2 | AA104: 2 | AB104: 0 | AC104: 2 | AD104: OK | AE104: OYNA | AF104: 0 | AG104: 58.3 | AH104: 25 | AI104: 16.7
A105: 747915 | B105: 16:00:00 | C105: Kuzey Irlanda | D105: v | E105: Güney Kibris | G105: UEFA Uluslar Li | H105: 1 - 0 | I105: 38.2 | J105: 37.2 | K105: 24.6 | L105: 61 | M105: 39 | N105: 1-0 | O105: 37.9 | P105: 36.2 | Q105: 25.9 | R105: 60 | S105: 40 | U105: 3 | V105: 1 | W105: 0 | X105: 1 | Y105: NOT OK | Z105: 2 | AA105: 1 | AB105: 0 | AC105: 1 | AD105: NOT OK | AE105: OYNAMA | AF105: 0 | AG105: 38.2 | AH105: 37.2 | AI105: 24.6
A106: 747952 | B106: 16:30:00 | C106: Byasen | D106: v | E106: Bodo / Glimt II | G106: Norveç | H106: 3 - 2 | I106: 39.7 | J106: 33.4 | K106: 26.9 | L106: 60 | M106: 40 | N106: 1-0 | O106: 40.9 | P106: 34.5 | Q106: 24.6 | R106: 63 | S106: 38 | U106: 3 | V106: 3 | W106: 2 | X106: 5 | Y106: OK | Z106: 2 | AA106: 1 | AB106: 0 | AC106: 1 | AD106: NOT OK | AE106: OYNAMA | AF106: 0 | AG106: 39.7 | AH106: 33.4 | AI106: 26.9
A107: 747954 | B107: 16:30:00 | C107: Trygg/Lade | D107: v | E107: Innstranden | G107: Norveç | H107: 7 - 2 | I107: 58.9 | J107: 22.6 | K107: 18.4 | L107: 76 | M107: 24 | N107: 3-1 | O107: 53.7 | P107: 27 | Q107: 19.3 | R107: 74 | S107: 26 | U107: 3 | V107: 7 | W107: 2 | X107: 9 | Y107: OK | Z107: 2 | AA107: 3 | AB107: 1 | AC107: 4 | AD107: OK | AE107: OYNA | AF107: 0 | AG107: 58.9 | AH107: 22.6 | AI107: 18.4
A108: 747183 | B108: 17:00:00 | C108: Novorizontino | D108: v | E108: Guarani FC | G108: Brezilya | H108: 1 - 1 | I108: 21.3 | J108: 42.4 | K108: 36.3 | L108: 37 | M108: 63 | N108: 0-1 | O108: 23.8 | P108: 33.3 | Q108: 42.9 | R108: 35 | S108: 65 | U108: 3 | V108: 1 | W108: 1 | X108: 2 | Y108: NOT OK | Z108: 2 | AA108: 0 | AB108: 1 | AC108: 1 | AD108: NOT OK | AE108: OYNAMA | AF108: 0 | AG108: 21.3 | AH108: 42.4 | AI108: 36.3
A109: 747939 | B109: 17:00:00 | C109: Moss | D109: v | E109: Arendal | G109: Norveç | H109: 3 - 1 | I109: 50.2 | J109: 29 | K109: 20.8 | L109: 71 | M109: 29 | N109: 1-0 | O109: 45.8 | P109: 31.6 | Q109: 22.6 | R109: 67 | S109: 33 | U109: 3 | V109: 3 | W109: 1 | X109: 4 | Y109: OK | Z109: 2 | AA109: 1 | AB109: 0 | AC109: 1 | AD109: NOT OK | AE109: OYNAMA | AF109: 0 | AG109: 50.2 | AH109: 29 | AI109: 20.8
A110: 747946 | B110: 17:00:00 | C110: Mjolner | D110: v | E110: Harstad | G110: Norveç | H110: 3 - 1 | I110: 44 | J110: 31.8 | K110: 24.1 | L110: 65 | M110: 35 | N110: 1-1 | O110: 36.7 | P110: 36.9 | Q110: 26.4 | R110: 58 | S110: 42 | U110: 3 | V110: 3 | W110: 1 | X110: 4 | Y110: OK | Z110: 2 | AA110: 1 | AB110: 1 | AC110: 2 | AD110: OK | AE110: OYNA | AF110: 0 | AG110: 44 | AH110: 31.8 | AI110: 24.1
A111: 747338 | B111: 17:00:00 | C111: Deportivo Santa | D111: v | E111: Guaraní de Trin | G111: Paraguay | H111: 1 - 1 | I111: 36 | J111: 40.2 | K111: 23.9 | L111: 60 | M111: 40 | N111: 1-0 | O111: 44.3 | P111: 32.5 | Q111: 23.2 | R111: 65 | S111: 35 | U111: 3 | V111: 1 | W111: 1 | X111: 2 | Y111: NOT OK | Z111: 2 | AA111: 1 | AB111: 0 | AC111: 1 | AD111: NOT OK | AE111: OYNAMA | AF111: 0 | AG111: 36 | AH111: 40.2 | AI111: 23.9
A112: 747339 | B112: 17:00:00 | C112: Fernando De La | D112: v | E112: 3 de Febrero | G112: Paraguay | H112: 1 - 1 | I112: 36.3 | J112: 39.3 | K112: 24.4 | L112: 60 | M112: 40 | N112: 1-0 | O112: 37.8 | P112: 36.3 | Q112: 25.9 | R112: 59 | S112: 41 | U112: 3 | V112: 1 | W112: 1 | X112: 2 | Y112: NOT OK | Z112: 2 | AA112: 1 | AB112: 0 | AC112: 1 | AD112: NOT OK | AE112: OYNAMA | AF112: 0 | AG112: 36.3 | AH112: 39.3 | AI112: 24.4
A113: 765061 | B113: 18:00:00 | C113: Ermenistan U21 | D113: v | E113: Ukrayna U21 | G113: Avrupa U21 Samp | H113: 0 - 4 | I113: 10 | J113: 18 | K113: 72 | L113: 12 | M113: 88 | N113: 0-2 | O113: 8.7 | P113: 12.2 | Q113: 79.1 | R113: 10 | S113: 90 | U113: 3 | V113: 0 | W113: 4 | X113: 4 | Y113: OK | Z113: 2 | AA113: 0 | AB113: 2 | AC113: 2 | AD113: OK | AE113: OYNA | AF113: 72 | AG113: 10 | AH113: 18 | AI113: 72
A114: 747955 | B114: 18:00:00 | C114: Kjelsas | D114: v | E114: SK Traeff | G114: Norveç | H114: 3 - 2 | I114: 36.4 | J114: 35 | K114: 28.6 | L114: 56 | M114: 44 | N114: 2-1 | O114: 37.8 | P114: 36.3 | Q114: 25.9 | R114: 59 | S114: 41 | U114: 3 | V114: 3 | W114: 2 | X114: 5 | Y114: OK | Z114: 2 | AA114: 2 | AB114: 1 | AC114: 3 | AD114: OK | AE114: OYNA | AF114: 0 | AG114: 36.4 | AH114: 35 | AI114: 28.6
A115: 747897 | B115: 18:30:00 | C115: PeKa | D115: v | E115: NJS | G115: Finlandiya | H115: 2 - 0 | I115: 58.6 | J115: 27.9 | K115: 13.4 | L115: 81 | M115: 19 | N115: 1-0 | O115: 55.1 | P115: 26.2 | Q115: 18.7 | R115: 75 | S115: 25 | U115: 3 | V115: 2 | W115: 0 | X115: 2 | Y115: NOT OK | Z115: 2 | AA115: 1 | AB115: 0 | AC115: 1 | AD115: NOT OK | AE115: OYNAMA | AF115: 0 | AG115: 58.6 | AH115: 27.9 | AI115: 13.4
A116: 747900 | B116: 18:30:00 | C116: GrIFK | D116: v | E116: Tampere United | G116: Finlandiya | H116: 3 - 2 | I116: 35.6 | J116: 35 | K116: 29.3 | L116: 55 | M116: 45 | N116: 1-1 | O116: 28.8 | P116: 40.3 | Q116: 31 | R116: 48 | S116: 52 | U116: 3 | V116: 3 | W116: 2 | X116: 5 | Y116: OK | Z116: 2 | AA116: 1 | AB116: 1 | AC116: 2 | AD116: OK | AE116: OYNA | AF116: 0 | AG116: 35.6 | AH116: 35 | AI116: 29.3
A117: 747899 | B117: 18:30:00 | C117: Jaro | D117: v | E117: Gnistan | G117: Finlandiya | H117: 2 - 1 | I117: 41.7 | J117: 34 | K117: 24.3 | L117: 63 | M117: 37 | N117: 1-0 | O117: 40.9 | P117: 34.5 | Q117: 24.6 | R117: 63 | S117: 37 | U117: 3 | V117: 2 | W117: 1 | X117: 3 | Y117: NOT OK | Z117: 2 | AA117: 1 | AB117: 0 | AC117: 1 | AD117: NOT OK | AE117: OYNAMA | AF117: 0 | AG117: 41.7 | AH117: 34 | AI117: 24.3
A118: 763760 | B118: 19:00:00 | C118: Colon | D118: v | E118: Union Santa Fe | G118: Arjantin | H118: 0 - 1 | I118: 21.9 | J118: 38.6 | K118: 39.5 | L118: 36 | M118: 64 | N118: 0-1 | O118: 25.2 | P118: 35.3 | Q118: 39.6 | R118: 39 | S118: 61 | U118: 3 | V118: 0 | W118: 1 | X118: 1 | Y118: NOT OK | Z118: 2 | AA118: 0 | AB118: 1 | AC118: 1 | AD118: NOT OK | AE118: OYNAMA | AF118: 0 | AG118: 21.9 | AH118: 38.6 | AI118: 39.5
A119: 747956 | B119: 19:00:00 | C119: Ullensaker / Ki | D119: v | E119: Brattvag IL | G119: Norveç | H119: 2 - 1 | I119: 44.5 | J119: 32.5 | K119: 23 | L119: 66 | M119: 34 | N119: 1-0 | O119: 44 | P119: 32.7 | Q119: 23.3 | R119: 65 | S119: 35 | U119: 3 | V119: 2 | W119: 1 | X119: 3 | Y119: NOT OK | Z119: 2 | AA119: 1 | AB119: 0 | AC119: 1 | AD119: NOT OK | AE119: OYNAMA | AF119: 0 | AG119: 44.5 | AH119: 32.5 | AI119: 23
A120: 747911 | B120: 19:00:00 | C120: Norveç | D120: v | E120: Isveç | G120: UEFA Uluslar Li | H120: 1 - 2 | I120: 25.7 | J120: 35.9 | K120: 38.5 | L120: 40 | M120: 60 | N120: 0-1 | O120: 25.3 | P120: 35.4 | Q120: 39.3 | R120: 39 | S120: 61 | U120: 3 | V120: 1 | W120: 2 | X120: 3 | Y120: NOT OK | Z120: 2 | AA120: 0 | AB120: 1 | AC120: 1 | AD120: NOT OK | AE120: OYNAMA | AF120: 0 | AG120: 25.7 | AH120: 35.9 | AI120: 38.5
A121: 747912 | B121: 19:00:00 | C121: Kuzey Makedonya | D121: v | E121: Cebelitarik | G121: UEFA Uluslar Li | H121: 1 - 0 | I121: 40.9 | J121: 38.1 | K121: 21 | L121: 66 | M121: 34 | N121: 1-0 | O121: 44.7 | P121: 32.2 | Q121: 23 | R121: 66 | S121: 34 | U121: 3 | V121: 1 | W121: 0 | X121: 1 | Y121: NOT OK | Z121: 2 | AA121: 1 | AB121: 0 | AC121: 1 | AD121: NOT OK | AE121: OYNAMA | AF121: 0 | AG121: 40.9 | AH121: 38.1 | AI121: 21
A122: 747913 | B122: 19:00:00 | C122: Gürcistan | D122: v | E122: Bulgaristan | G122: UEFA Uluslar Li | H122: 2 - 0 | I122: 51.2 | J122: 30.9 | K122: 17.9 | L122: 74 | M122: 26 | N122: 1-0 | O122: 57.4 | P122: 24.8 | Q122: 17.7 | R122: 76 | S122: 24 | U122: 3 | V122: 2 | W122: 0 | X122: 2 | Y122: NOT OK | Z122: 2 | AA122: 1 | AB122: 0 | AC122: 1 | AD122: NOT OK | AE122: OYNAMA | AF122: 0 | AG122: 51.2 | AH122: 30.9 | AI122: 17.9
A123: 747137 | B123: 20:00:00 | C123: Club Atletico M | D123: v | E123: Estudiantes Cas | G123: Arjantin | H123: 0 - 1 | I123: 18.8 | J123: 35 | K123: 46.2 | L123: 29 | M123: 71 | N123: 0-1 | O123: 24.8 | P123: 34.7 | Q123: 40.6 | R123: 38 | S123: 62 | U123: 3 | V123: 0 | W123: 1 | X123: 1 | Y123: NOT OK | Z123: 2 | AA123: 0 | AB123: 1 | AC123: 1 | AD123: NOT OK | AE123: OYNAMA | AF123: 0 | AG123: 18.8 | AH123: 35 | AI123: 46.2
A124: 747136 | B124: 20:05:00 | C124: Deportivo Madry | D124: v | E124: Belgrano Cordob | G124: Arjantin | H124: 0 - 2 | I124: 15.5 | J124: 29 | K124: 55.4 | L124: 22 | M124: 78 | N124: 0-1 | O124: 16.9 | P124: 23.6 | Q124: 59.5 | R124: 22 | S124: 78 | U124: 3 | V124: 0 | W124: 2 | X124: 2 | Y124: NOT OK | Z124: 2 | AA124: 0 | AB124: 1 | AC124: 1 | AD124: NOT OK | AE124: OYNAMA | AF124: 0 | AG124: 15.5 | AH124: 29 | AI124: 55.4
A125: 747140 | B125: 21:00:00 | C125: Deportivo Maipu | D125: v | E125: San Telmo | G125: Arjantin | H125: 2 - 0 | I125: 52.4 | J125: 29.5 | K125: 18.2 | L125: 74 | M125: 26 | N125: 1-0 | O125: 57.9 | P125: 24.6 | Q125: 17.6 | R125: 77 | S125: 23 | U125: 3 | V125: 2 | W125: 0 | X125: 2 | Y125: NOT OK | Z125: 2 | AA125: 1 | AB125: 0 | AC125: 1 | AD125: NOT OK | AE125: OYNAMA | AF125: 0 | AG125: 52.4 | AH125: 29.5 | AI125: 18.2
A126: 763748 | B126: 21:30:00 | C126: Godoy Cruz | D126: v | E126: Racing Club | G126: Arjantin | H126: 0 - 2 | I126: 21.6 | J126: 34 | K126: 44.3 | L126: 33 | M126: 67 | N126: 0-1 | O126: 25.1 | P126: 35.2 | Q126: 39.7 | R126: 39 | S126: 61 | U126: 3 | V126: 0 | W126: 2 | X126: 2 | Y126: NOT OK | Z126: 2 | AA126: 0 | AB126: 1 | AC126: 1 | AD126: NOT OK | AE126: OYNAMA | AF126: 0 | AG126: 21.6 | AH126: 34 | AI126: 44.3
A127: 747135 | B127: 21:30:00 | C127: Deportivo Moron | D127: v | E127: Villa Dalmine | G127: Arjantin | H127: 1 - 1 | I127: 30.1 | J127: 41.2 | K127: 28.7 | L127: 51 | M127: 49 | N127: 1-0 | O127: 41.5 | P127: 34.1 | Q127: 24.4 | R127: 63 | S127: 37 | U127: 3 | V127: 1 | W127: 1 | X127: 2 | Y127: NOT OK | Z127: 2 | AA127: 1 | AB127: 0 | AC127: 1 | AD127: NOT OK | AE127: OYNAMA | AF127: 0 | AG127: 30.1 | AH127: 41.2 | AI127: 28.7
A128: 747126 | B128: 21:30:00 | C128: Sacachispas | D128: v | E128: Ramon Santamari | G128: Arjantin | H128: 2 - 0 | I128: 73.2 | J128: 21.3 | K128: 5.5 | L128: 93 | M128: 7 | N128: 1-0 | O128: 73.3 | P128: 15.6 | Q128: 11.1 | R128: 87 | S128: 13 | U128: 3 | V128: 2 | W128: 0 | X128: 2 | Y128: NOT OK | Z128: 2 | AA128: 1 | AB128: 0 | AC128: 1 | AD128: NOT OK | AE128: OYNAMA | AF128: 73.2 | AG128: 73.2 | AH128: 21.3 | AI128: 5.5
A129: 747917 | B129: 21:45:00 | C129: Ispanya | D129: v | E129: Çekya | G129: UEFA Uluslar Li | H129: 2 - 0 | I129: 58.5 | J129: 28.5 | K129: 13 | L129: 82 | M129: 18 | N129: 1-0 | O129: 65.3 | P129: 20.3 | Q129: 14.5 | R129: 82 | S129: 18 | U129: 3 | V129: 2 | W129: 0 | X129: 2 | Y129: NOT OK | Z129: 2 | AA129: 1 | AB129: 0 | AC129: 1 | AD129: NOT OK | AE129: OYNAMA | AF129: 0 | AG129: 58.5 | AH129: 28.5 | AI129: 13
A130: 747918 | B130: 21:45:00 | C130: Isviçre | D130: v | E130: Portekiz | G130: UEFA Uluslar Li | H130: 2 - 1 | I130: 46 | J130: 32.4 | K130: 21.7 | L130: 68 | M130: 32 | N130: 1-0 | O130: 45.3 | P130: 31.9 | Q130: 22.8 | R130: 66 | S130: 34 | U130: 3 | V130: 2 | W130: 1 | X130: 3 | Y130: NOT OK | Z130: 2 | AA130: 1 | AB130: 0 | AC130: 1 | AD130: NOT OK | AE130: OYNAMA | AF130: 0 | AG130: 46 | AH130: 32.4 | AI130: 21.7
A131: 747910 | B131: 21:45:00 | C131: Slovenya | D131: v | E131: Sirbistan | G131: UEFA Uluslar Li | H131: 0 - 1 | I131: 25 | J131: 36.8 | K131: 38.2 | L131: 39 | M131: 61 | N131: 0-1 | O131: 25.2 | P131: 35.2 | Q131: 39.6 | R131: 39 | S131: 61 | U131: 3 | V131: 0 | W131: 1 | X131: 1 | Y131: NOT OK | Z131: 2 | AA131: 0 | AB131: 1 | AC131: 1 | AD131: NOT OK | AE131: OYNAMA | AF131: 0 | AG131: 25 | AH131: 36.8 | AI131: 38.2
A132: 747914 | B132: 21:45:00 | C132: Yunanistan | D132: v | E132: Kosova | G132: UEFA Uluslar Li | H132: 1 - 0 | I132: 45.9 | J132: 34.3 | K132: 19.8 | L132: 70 | M132: 30 | N132: 1-0 | O132: 48.5 | P132: 30 | Q132: 21.4 | R132: 69 | S132: 31 | U132: 3 | V132: 1 | W132: 0 | X132: 1 | Y132: NOT OK | Z132: 2 | AA132: 1 | AB132: 0 | AC132: 1 | AD132: NOT OK | AE132: OYNAMA | AF132: 0 | AG132: 45.9 | AH132: 34.3 | AI132: 19.8
A133: 747916 | B133: 21:45:00 | C133: Malta | D133: v | E133: San Marino | G133: UEFA Uluslar Li | H133: 3 - 0 | I133: 81.4 | J133: 15.5 | K133: 3.1 | L133: 96 | M133: 4 | N133: 1-0 | O133: 83.2 | P133: 9.8 | Q133: 7 | R133: 92 | S133: 8 | U133: 3 | V133: 3 | W133: 0 | X133: 3 | Y133: NOT OK | Z133: 2 | AA133: 1 | AB133: 0 | AC133: 1 | AD133: NOT OK | AE133: OYNAMA | AF133: 81.4 | AG133: 81.4 | AH133: 15.5 | AI133: 3.1
A134: 747974 | B134: 22:00:00 | C134: Sporting Kansas | D134: v | E134: New England Rev | G134: ABD | H134: 2 - 1 | I134: 40 | J134: 33.9 | K134: 26.1 | L134: 61 | M134: 39 | N134: 1-1 | O134: 36.1 | P134: 37.3 | Q134: 26.6 | R134: 57 | S134: 43 | U134: 3 | V134: 2 | W134: 1 | X134: 3 | Y134: NOT OK | Z134: 2 | AA134: 1 | AB134: 1 | AC134: 2 | AD134: OK | AE134: OYNAMA | AF134: 0 | AG134: 40 | AH134: 33.9 | AI134: 26.1
A135: 747123 | B135: 22:00:00 | C135: Alvarado | D135: v | E135: Club Atletico G | G135: Arjantin | H135: 1 - 0 | I135: 50.6 | J135: 33.9 | K135: 15.4 | L135: 77 | M135: 23 | N135: 1-0 | O135: 48.4 | P135: 30.1 | Q135: 21.5 | R135: 69 | S135: 31 | U135: 3 | V135: 1 | W135: 0 | X135: 1 | Y135: NOT OK | Z135: 2 | AA135: 1 | AB135: 0 | AC135: 1 | AD135: NOT OK | AE135: OYNAMA | AF135: 0 | AG135: 50.6 | AH135: 33.9 | AI135: 15.4
A136: 747139 | B136: 22:00:00 | C136: Estudiantes Rio | D136: v | E136: Deportivo Riest | G136: Arjantin | H136: 1 - 0 | I136: 49.1 | J136: 33.1 | K136: 17.9 | L136: 73 | M136: 27 | N136: 1-0 | O136: 52.7 | P136: 27.6 | Q136: 19.7 | R136: 73 | S136: 27 | U136: 3 | V136: 1 | W136: 0 | X136: 1 | Y136: NOT OK | Z136: 2 | AA136: 1 | AB136: 0 | AC136: 1 | AD136: NOT OK | AE136: OYNAMA | AF136: 0 | AG136: 49.1 | AH136: 33.1 | AI136: 17.9
A137: 747873 | B137: 22:00:00 | C137: Goias | D137: v | E137: Ceara | G137: Brezilya | H137: 0 - 2 | I137: 18.6 | J137: 31.8 | K137: 49.6 | L137: 27 | M137: 73 | N137: 0-1 | O137: 19.7 | P137: 27.6 | Q137: 52.8 | R137: 27 | S137: 73 | U137: 3 | V137: 0 | W137: 2 | X137: 2 | Y137: NOT OK | Z137: 2 | AA137: 0 | AB137: 1 | AC137: 1 | AD137: NOT OK | AE137: OYNAMA | AF137: 0 | AG137: 18.6 | AH137: 31.8 | AI137: 49.6
A138: 747877 | B138: 22:00:00 | C138: Sao Paulo | D138: v | E138: America Mineiro | G138: Brezilya | H138: 2 - 0 | I138: 65.2 | J138: 23.3 | K138: 11.6 | L138: 85 | M138: 15 | N138: 1-0 | O138: 74.4 | P138: 14.9 | Q138: 10.6 | R138: 87 | S138: 13 | U138: 3 | V138: 2 | W138: 0 | X138: 2 | Y138: NOT OK | Z138: 2 | AA138: 1 | AB138: 0 | AC138: 1 | AD138: NOT OK | AE138: OYNAMA | AF138: 65.2 | AG138: 65.2 | AH138: 23.3 | AI138: 11.6
A139: 747178 | B139: 22:00:00 | C139: Vasco da Gama | D139: v | E139: Cruzeiro | G139: Brezilya | H139: 0 - 2 | I139: 17 | J139: 29.3 | K139: 53.7 | L139: 24 | M139: 76 | N139: 0-1 | O139: 20.5 | P139: 28.6 | Q139: 50.9 | R139: 28 | S139: 72 | U139: 3 | V139: 0 | W139: 2 | X139: 2 | Y139: NOT OK | Z139: 2 | AA139: 0 | AB139: 1 | AC139: 1 | AD139: NOT OK | AE139: OYNAMA | AF139: 0 | AG139: 17 | AH139: 29.3 | AI139: 53.7
A140: 747129 | B140: 22:10:00 | C140: Temperley | D140: v | E140: Almirante Brown | G140: Arjantin | H140: 2 - 0 | I140: 49.4 | J140: 32.1 | K140: 18.6 | L140: 73 | M140: 27 | N140: 1-0 | O140: 40.3 | P140: 34.8 | Q140: 24.9 | R140: 62 | S140: 38 | U140: 3 | V140: 2 | W140: 0 | X140: 2 | Y140: NOT OK | Z140: 2 | AA140: 1 | AB140: 0 | AC140: 1 | AD140: NOT OK | AE140: OYNAMA | AF140: 0 | AG140: 49.4 | AH140: 32.1 | AI140: 18.6
A141: 765556 | B141: 22:15:00 | C141: Palermo | D141: v | E141: Padova Calcio | G141: Italya | H141: 2 - 0 | I141: 52.1 | J141: 30.2 | K141: 17.7 | L141: 75 | M141: 25 | N141: 1-0 | O141: 66.6 | P141: 19.5 | Q141: 13.9 | R141: 83 | S141: 17 | U141: 3 | V141: 2 | W141: 0 | X141: 2 | Y141: NOT OK | Z141: 2 | AA141: 1 | AB141: 0 | AC141: 1 | AD141: NOT OK | AE141: OYNAMA | AF141: 0 | AG141: 52.1 | AH141: 30.2 | AI141: 17.7
A142: 747906 | B142: 23:00:00 | C142: Küba | D142: v | E142: Antigua Ve Barb | G142: CONCACAF Ulusla | H142: 5 - 0 | I142: 87.1 | J142: 10.9 | K142: 2 | L142: 98 | M142: 2 | N142: 2-0 | O142: 90.2 | P142: 5.7 | Q142: 4.1 | R142: 96 | S142: 4 | U142: 3 | V142: 5 | W142: 0 | X142: 5 | Y142: OK | Z142: 2 | AA142: 2 | AB142: 0 | AC142: 2 | AD142: OK | AE142: OYNA | AF142: 87.1 | AG142: 87.1 | AH142: 10.9 | AI142: 2
A143: 757030 | B143: 23:00:00 | C143: Envigado | D143: v | E143: La Equidad | G143: Kolombiya | H143: 0 - 1 | I143: 22.5 | J143: 37.6 | K143: 39.9 | L143: 36 | M143: 64 | N143: 0-1 | O143: 24.3 | P143: 34 | Q143: 41.7 | R143: 37 | S143: 63 | U143: 3 | V143: 0 | W143: 1 | X143: 1 | Y143: NOT OK | Z143: 2 | AA143: 0 | AB143: 1 | AC143: 1 | AD143: NOT OK | AE143: OYNAMA | AF143: 0 | AG143: 22.5 | AH143: 37.6 | AI143: 39.9
A144: 768865 | B144: 23:30:00 | C144: Guairena | D144: v | E144: General Caballe | G144: Paraguay | H144: 3 - 0 | I144: 62 | J144: 24.1 | K144: 13.9 | L144: 82 | M144: 18 | N144: 1-0 | O144: 50.3 | P144: 29 | Q144: 20.7 | R144: 71 | S144: 29 | U144: 3 | V144: 3 | W144: 0 | X144: 3 | Y144: NOT OK | Z144: 2 | AA144: 1 | AB144: 0 | AC144: 1 | AD144: NOT OK | AE144: OYNAMA | AF144: 0 | AG144: 62 | AH144: 24.1 | AI144: 13.9
AF145: 0 | AG145: 0 | AH145: 0 | AI145: 0
AF146: 0 | AG146: 0 | AH146: 0 | AI146: 0
O147: 27.9 | P147: 39.1 | Q147: 33 | R147: 46 | S147: 54 | AF147: 0 | AG147: 0 | AH147: 0 | AI147: 0
O148: 47.3 | P148: 30.7 | Q148: 21.9 | R148: 68 | S148: 32 | AF148: 0 | AG148: 0 | AH148: 0 | AI148: 0
O149: 8.7 | P149: 12.2 | Q149: 79 | R149: 10 | S149: 90 | AF149: 0 | AG149: 0 | AH149: 0 | AI149: 0
O150: 53.7 | P150: 27 | Q150: 19.3 | R150: 73 | S150: 27 | AF150: 0 | AG150: 0 | AH150: 0 | AI150: 0
O151: 27 | P151: 37.8 | Q151: 35.2 | R151: 43 | S151: 57 | AF151: 0 | AG151: 0 | AH151: 0 | AI151: 0
O152: 25.1 | P152: 35.1 | Q152: 39.8 | R152: 39 | S152: 61 | AF152: =IF(H152="","0",IF(OR(AG152>=65,AH152>=55,AI152>=65),MAX(AG152:AI152),0))*1 -> 0 | AG152: 0 | AH152: 0 | AI152: 0
O153: 40.8 | P153: 34.5 | Q153: 24.7 | R153: 62 | S153: 38 | U153: =IF(H153=""," ",SEARCH("-",H153)) ->  | V153: =IF(H153=""," ",LEFT(H153,U153-1)) ->  | W153: =IF(H153=""," ",MID(H153,U153+1,4)) ->  | X153: =IF(H153=""," ",V153+W153) ->  | Y153: =IF(H153=""," ",IF(X153>=4,"OK","NOT OK")) ->  | Z153: =IF(N153=""," ",SEARCH("-",N153)) ->  | AA153: =IF(N153=""," ",LEFT(N153,Z153-1)) ->  | AB153: =IF(N153=""," ",MID(N153,Z153+1,4)) ->  | AC153: =IF(N153=""," ",AA153+AB153) ->  | AD153: =IF(N153=""," ",IF(AC153>=2,"OK","NOT OK")) ->  | AE153: =IF(H153=""," ",IF(AND(Y153="OK",AD153="OK"),"OYNA",IF(Y153=AD153,"OYNAMA",IF(Y153=AD153,"OYNA","OYNAMA")))) ->  | AF153: 0 | AG153: =IF(H153="","0",SUBSTITUTE(I153,".",","))*1 -> 0 | AH153: =IF(H153="","0",SUBSTITUTE(J153,".",","))*1 -> 0 | AI153: =IF(H153="","0",SUBSTITUTE(K153,".",","))*1 -> 0
O154: 31.3 | P154: 40.1 | Q154: 28.6 | R154: 52 | S154: 48 | AF154: 0 | AG154: 0 | AH154: 0 | AI154: 0
O155: 35.8 | P155: 37.5 | Q155: 26.8 | R155: 57 | S155: 43 | AF155: 0 | AG155: 0 | AH155: 0 | AI155: 0
O156: 30.1 | P156: 40.8 | Q156: 29.1 | R156: 51 | S156: 49 | AF156: 0 | AG156: 0 | AH156: 0 | AI156: 0
O157: 22.3 | P157: 31.3 | Q157: 46.4 | R157: 33 | S157: 67 | AF157: 0 | AG157: 0 | AH157: 0 | AI157: 0
O158: 56.6 | P158: 25.3 | Q158: 18.1 | R158: 76 | S158: 24 | AF158: 0 | AG158: 0 | AH158: 0 | AI158: 0
O159: 5.4 | P159: 7.5 | Q159: 87.1 | R159: 6 | S159: 94 | AF159: 0 | AG159: 0 | AH159: 0 | AI159: 0
O160: 48.8 | P160: 29.9 | Q160: 21.3 | R160: 70 | S160: 30 | AF160: 0 | AG160: 0 | AH160: 0 | AI160: 0
O161: 64.9 | P161: 20.5 | Q161: 14.6 | R161: 82 | S161: 18 | AF161: 0 | AG161: 0 | AH161: 0 | AI161: 0
O162: 51.8 | P162: 28.1 | Q162: 20.1 | R162: 72 | S162: 28 | AF162: 0 | AG162: 0 | AH162: 0 | AI162: 0
O163: 58.9 | P163: 24 | Q163: 17.1 | R163: 77 | S163: 23 | AF163: 0 | AG163: 0 | AH163: 0 | AI163: 0
O164: 37.8 | P164: 36.3 | Q164: 25.9 | R164: 59 | S164: 41 | AF164: 0 | AG164: 0 | AH164: 0 | AI164: 0
O165: 36.8 | P165: 36.9 | Q165: 26.3 | R165: 58 | S165: 42 | AF165: 0 | AG165: 0 | AH165: 0 | AI165: 0
O166: 64.6 | P166: 20.6 | Q166: 14.7 | R166: 81 | S166: 19 | AF166: 0 | AG166: 0 | AH166: 0 | AI166: 0
O167: 57.2 | P167: 25 | Q167: 17.8 | R167: 76 | S167: 24 | AF167: 0 | AG167: 0 | AH167: 0 | AI167: 0
O168: 58 | P168: 24.5 | Q168: 17.5 | R168: 77 | S168: 23 | AF168: 0 | AG168: 0 | AH168: 0 | AI168: 0
O169: 21.6 | P169: 30.2 | Q169: 48.2 | R169: 31 | S169: 69 | AF169: 0 | AG169: 0 | AH169: 0 | AI169: 0
O170: 52.7 | P170: 27.6 | Q170: 19.7 | R170: 73 | S170: 27 | AF170: 0 | AG170: 0 | AH170: 0 | AI170: 0
O171: 27.8 | P171: 38.9 | Q171: 33.4 | R171: 46 | S171: 54 | AF171: 0 | AG171: 0 | AH171: 0 | AI171: 0
O172: 21.9 | P172: 30.7 | Q172: 47.3 | R172: 32 | S172: 68 | AF172: 0 | AG172: 0 | AH172: 0 | AI172: 0
O173: 60.9 | P173: 22.8 | Q173: 16.3 | R173: 79 | S173: 21 | AF173: 0 | AG173: 0 | AH173: 0 | AI173: 0
O174: 27.5 | P174: 38.5 | Q174: 34 | R174: 44 | S174: 56 | AF174: 0 | AG174: 0 | AH174: 0 | AI174: 0
O175: 41.6 | P175: 34.1 | Q175: 24.3 | R175: 63 | S175: 37 | AF175: 0 | AG175: 0 | AH175: 0 | AI175: 0
O176: 59 | P176: 23.9 | Q176: 17.1 | R176: 77 | S176: 23 | AF176: 0 | AG176: 0 | AH176: 0 | AI176: 0
O177: 14.3 | P177: 20 | Q177: 65.7 | R177: 18 | S177: 82 | AF177: 0 | AG177: 0 | AH177: 0 | AI177: 0
O178: 37.2 | P178: 36.6 | Q178: 26.2 | R178: 58 | S178: 42 | AF178: 0 | AG178: 0 | AH178: 0 | AI178: 0
O179: 14.4 | P179: 20.2 | Q179: 65.4 | R179: 18 | S179: 82 | AF179: 0 | AG179: 0 | AH179: 0 | AI179: 0
O180: 29.4 | P180: 41.1 | Q180: 29.5 | R180: 50 | S180: 50 | AF180: 0 | AG180: 0 | AH180: 0 | AI180: 0
O181: 20 | P181: 28 | Q181: 52.1 | R181: 28 | S181: 73 | AF181: 0 | AG181: 0 | AH181: 0 | AI181: 0
O182: 58.5 | P182: 24.2 | Q182: 17.3 | R182: 77 | S182: 23 | AF182: 0 | AG182: 0 | AH182: 0 | AI182: 0
O183: 34 | P183: 38.5 | Q183: 27.5 | R183: 55 | S183: 45 | AF183: 0 | AG183: 0 | AH183: 0 | AI183: 0
O184: 29.3 | P184: 41.1 | Q184: 29.6 | R184: 49 | S184: 51 | AF184: 0 | AG184: 0 | AH184: 0 | AI184: 0
O185: 25 | P185: 35 | Q185: 40 | R185: 39 | S185: 61 | AF185: 0 | AG185: 0 | AH185: 0 | AI185: 0
O186: 34.2 | P186: 38.4 | Q186: 27.4 | R186: 56 | S186: 44 | AF186: 0 | AG186: 0 | AH186: 0 | AI186: 0
O187: 38.8 | P187: 35.7 | Q187: 25.5 | R187: 60 | S187: 40 | AF187: 0 | AG187: 0 | AH187: 0 | AI187: 0
O188: 34.6 | P188: 38.1 | Q188: 27.2 | R188: 56 | S188: 44 | AF188: 0 | AG188: 0 | AH188: 0 | AI188: 0
O189: 69.1 | P189: 18 | Q189: 12.9 | R189: 84 | S189: 16 | AF189: 0 | AG189: 0 | AH189: 0 | AI189: 0
O190: 92.5 | P190: 4.4 | Q190: 3.1 | R190: 97 | S190: 3 | AF190: 0 | AG190: 0 | AH190: 0 | AI190: 0
O191: 48.9 | P191: 29.8 | Q191: 21.3 | R191: 70 | S191: 30 | AF191: 0 | AG191: 0 | AH191: 0 | AI191: 0
O192: 37.2 | P192: 36.7 | Q192: 26.2 | R192: 59 | S192: 41 | AF192: 0 | AG192: 0 | AH192: 0 | AI192: 0
O193: 31 | P193: 40.2 | Q193: 28.7 | R193: 52 | S193: 48 | AF193: 0 | AG193: 0 | AH193: 0 | AI193: 0
O194: 13.3 | P194: 18.6 | Q194: 68.1 | R194: 16 | S194: 84 | AF194: 0 | AG194: 0 | AH194: 0 | AI194: 0
O195: 52.9 | P195: 27.5 | Q195: 19.6 | R195: 73 | S195: 27 | AF195: 0 | AG195: 0 | AH195: 0 | AI195: 0
O196: 61.4 | P196: 22.5 | Q196: 16.1 | R196: 79 | S196: 21 | AF196: 0 | AG196: 0 | AH196: 0 | AI196: 0
O197: 10.1 | P197: 14.1 | Q197: 75.8 | R197: 12 | S197: 88 | AF197: 0 | AG197: 0 | AH197: 0 | AI197: 0
O198: 54.2 | P198: 26.7 | Q198: 19.1 | R198: 74 | S198: 26 | AF198: 0 | AG198: 0 | AH198: 0 | AI198: 0
O199: 52.4 | P199: 27.8 | Q199: 19.8 | R199: 72 | S199: 28 | AF199: 0 | AG199: 0 | AH199: 0 | AI199: 0
AF200: 0 | AG200: 0 | AH200: 0 | AI200: 0
AF201: 0 | AG201: 0 | AH201: 0 | AI201: 0
O202: 25.1 | P202: 35.1 | Q202: 39.8 | R202: 39 | S202: 61 | AF202: 0 | AG202: 0 | AH202: 0 | AI202: 0
O203: 74 | P203: 15.2 | Q203: 10.9 | R203: 87 | S203: 13 | AF203: 0 | AG203: 0 | AH203: 0 | AI203: 0
O204: 27.7 | P204: 38.8 | Q204: 33.4 | R204: 45 | S204: 55 | AF204: 0 | AG204: 0 | AH204: 0 | AI204: 0
... 768 more rows

Sheet Veri2
A4: Skip Navigation Links
A6: Betistuta
A7: Futbol
A8: Basketbol
A9: Voleybol
A10: Hentbol
A11: BuzHokeyi
A12: Beyzbol
A13: Tenis
A14: BOYZ(F)
A15: BOYZ(B)
A16: Orandelli
A17: Gol Oldu mu ?
A18: Iletisim
A21: Lambton Jaffas
A25: Takım Gücü
A26: IY/MS
A27: 14.6 /27.9
A28: Sonraki Maç
A32: Avustralya-Ulusal Premier Lig Kuzey YGG
A33: 11.06.2022 / 07:30
A34: Iddaa Kodu : 771301
B35: 0.01 | C35: 0 | D35: %2
A36: IY | B36: 46.7 | C36: 2022-01-31 | D36: 2022-02-22
A37: MS | B37: 45.1 | C37: 2022-05-31 | D37: 2022-04-23
A39: Beklenen Skor (IY/MS)
A40: 1-0 /2 - 1
A41: Maç Sonucu (IY/MS) | BH41: -15 | BI41: 2.5 GOL ÜST
A42: 2-0 /3 - 0 | BH42: -14 | BI42: 2.5 GOL ÜST
BI43: 2.5 GOL ÜST
BI44: 2.5 GOL ÜST
BH45: -13 | BI45: 2.5 GOL ÜST
A46: Edgeworth Eagles | BH46: -12 | BI46: 2.5 GOL ÜST
A50: Takım Gücü
A51: IY/MS
A52: 6.9 /14.5
A53: Sonraki Maç
A58: #iddaa | B58: MS1 | C58: MS0 | D58: MS2 | F58: IY1 | G58: IY0 | H58: IY2
B59: 1968-01-01 | C59: 2025-03-01 | D59: 3.15 | F59: - | G59: - | H59: -
B60: HMS1 | C60: HMS0 | D60: HMS2 | F60: CS10 | G60: CS12 | H60: CS02
F61: 1.11 | G61: 2022-10-01 | H61: 1956-01-01
A62: TG01 | B62: TG23 | C62: TG45 | D62: TG6+ | E62: KG Y/V | F62: IY1.5 A/U | G62: 1.5 A/U | H62: 2.5 A/U | I62: 3.5 A/U
A63: 1965-04-01 | B63: 1995-01-01 | C63: 1985-02-01 | D63: 8.00 | E63: 2.14 /1.34 | F63: - /- | G63: - /- | H63: 2.10 /1.36 | I63: 1.38 /2.05
A64: 2022-01-01 | B64: 0/1 | C64: 2022-01-02 | D64: 1/0 | E64: 0/0 | F64: 2/0 | G64: 2022-02-01 | H64: 0/2 | I64: 2022-02-02
A65: - | B65: - | C65: - | D65: - | E65: - | F65: - | G65: - | H65: - | I65: -
A66: #boyz | B66: MS1 | C66: MS0 | D66: MS2 | F66: IY1 | G66: IY0 | H66: IY2 | I66: 28
B67: 54 | C67: 11 | D67: 36 | F67: 46 | G67: 36 | H67: 18
B68: HMS1 | C68: HMS0 | D68: HMS2 | F68: CS10 | G68: CS12 | H68: CS02
B69: 21 | C69: 32 | D69: 46 | F69: 64 | G69: 89 | H69: 46
A70: TG01 | B70: TG23 | C70: TG46 | D70: TG7+ | E70: KGV | F70: IY1.5 | G70: U1.5 | H70: U2.5 | I70: U3.5
A71: 11 | B71: 57 | C71: 21 | D71: 11 | E71: 68 | F71: 46 | G71: 89 | H71: 71 | I71: 32
A72: 2022-01-01 | B72: 0/1 | C72: 2022-01-02 | D72: 1/0 | E72: 0/0 | F72: 2/0 | G72: 2022-02-01 | H72: 0/2 | I72: 2022-02-02
A73: 36 | B73: 18 | C73: 0 | D73: 4 | E73: 7 | F73: 0 | G73: 7 | H73: 11 | I73: 18
AS74: =ROUND(SUM(AS93+AT93+AU93+AV93-(AS113+AT113+AU113+AV113)),0) -> 2 | AT74: =VLOOKUP(AS74,BH41:BI100,2,FALSE) -> MOST'A GÖRE RİSKLİ | BH74: -11 | BI74: 2.5 GOL ÜST
B75: Tarih | C75: EvSahibi | D75: MS | E75: Deplasman | F75: İY | AJ75: =A21 -> Lambton Jaffas | AK75: MS | AS75: 2.5 Ü | AT75: KG | AU75: 2.5 A | AV75: KGY2.5A | AX75: =AJ75 -> Lambton Jaffas | AY75: İY | BH75: -10 | BI75: 2.5 GOL ÜST
A76: D | B76: 2022-06-04 | C76: Lambton Jaffas | D76: 1 - 1 | E76: Weston Bears | F76: 1-0 | AK76: =IFERROR(IF(D76="","0",IFERROR(VALUE(TRIM(MID(D76,1,IFERROR(FIND("-",D76,1),FIND("-",D76,1))-1))),"")),"") -> 1 | AL76: =IFERROR(IF(D76="","0",IFERROR(VALUE(TRIM(MID(D76,IFERROR(FIND("-",D76,1),FIND("-",D76,1))+1,500))),"")),"") -> 1 | AM76: =IFERROR(IF(OR(AK76="",AL76=""),"",IF(C76=$AJ$75,AK76,AL76)),"") -> 1 | AN76: =IFERROR(IF(OR(AK76="",AL76=""),"",IF(C76=$AJ$75,AL76,AK76)),"") -> 1 | AO76: =IFERROR(AM76+AN76,"") -> 2 | AP76: =IFERROR(IF(OR(AM76="",AN76=""),"",IF(AM76>AN76,3,IF(AM76<AN76,0,1))),"") -> 1 | AQ76: =IFERROR(IF(AP76="","",IF(AP76=1,"D",IF(AP76=0,"L",IF(AP76=3,"W")))),"") -> D | AR76: =IFERROR(IF(AM76>AN76,18,IF(AM76=AN76,6,0)),"") -> 6 | AS76: =IF(AO76>=3,1,0) -> 0 | AT76: =IF((IF((IF(AM76>=1,1,0))>=1,1,0)+IF((IF(AN76>=1,1,0))>=1,1,0))>=2,1,0) -> 1 | AU76: =IF(AO76>=3,1,0) -> 0 | AV76: =((IF(AM76>=1,0,-0.75))+(IF(AN76>=1,0,-0.75))+IF(AO76<3,-0.75,0)) -> -0.75 | AY76: =IFERROR(IF(F76="","0",IFERROR(VALUE(TRIM(MID(F76,1,IFERROR(FIND("-",F76,1),FIND("-",F76,1))-1))),"")),"") -> 1 | AZ76: =IFERROR(IF(F76="","0",IFERROR(VALUE(TRIM(MID(F76,IFERROR(FIND("-",F76,1),FIND("-",F76,1))+1,500))),"")),"") -> 0 | BA76: =IFERROR(IF(OR(AY76="",AZ76=""),"",IF(C76=$AJ$75,AY76,AZ76)),"") -> 1 | BB76: =IFERROR(IF(OR(AY76="",AZ76=""),"",IF(C76=$AJ$75,AZ76,AY76)),"") -> 0 | BC76: =IFERROR(BA76+BB76,"") -> 1 | BD76: =IFERROR(IF(OR(BA76="",BB76=""),"",IF(BA76>BB76,3,IF(BA76<BB76,0,1))),"") -> 3 | BE76: =IFERROR(IF(BD76="","",IF(BD76=1,"D",IF(BD76=0,"L",IF(BD76=3,"W")))),"") -> W | BF76: =IFERROR(IF(BA76>BB76,18,IF(BA76=BB76,6,0)),"") -> 18 | BH76: -9 | BI76: 2.5 GOL ÜST
A77: D | B77: 2022-06-01 | C77: Adamstown Rosebuds | D77: 1 - 2 | E77: Lambton Jaffas | F77: 1-2 | AK77: =IFERROR(IF(D77="","0",IFERROR(VALUE(TRIM(MID(D77,1,IFERROR(FIND("-",D77,1),FIND("-",D77,1))-1))),"")),"") -> 1 | AL77: =IFERROR(IF(D77="","0",IFERROR(VALUE(TRIM(MID(D77,IFERROR(FIND("-",D77,1),FIND("-",D77,1))+1,500))),"")),"") -> 2 | AM77: =IFERROR(IF(OR(AK77="",AL77=""),"",IF(C77=$AJ$75,AK77,AL77)),"") -> 2 | AN77: =IFERROR(IF(OR(AK77="",AL77=""),"",IF(C77=$AJ$75,AL77,AK77)),"") -> 1 | AO77: =IFERROR(AM77+AN77,"") -> 3 | AP77: =IFERROR(IF(OR(AM77="",AN77=""),"",IF(AM77>AN77,3,IF(AM77<AN77,0,1))),"") -> 3 | AQ77: =IFERROR(IF(AP77="","",IF(AP77=1,"D",IF(AP77=0,"L",IF(AP77=3,"W")))),"") -> W | AR77: =IFERROR(IF(AM77>AN77,18,IF(AM77=AN77,6,0)),"") -> 18 | AS77: =IF(AO77>=3,1,0) -> 1 | AT77: =IF((IF((IF(AM77>=1,1,0))>=1,1,0)+IF((IF(AN77>=1,1,0))>=1,1,0))>=2,1,0) -> 1 | AU77: =IF(AO77>=3,1,0) -> 1 | AV77: =((IF(AM77>=1,0,-0.75))+(IF(AN77>=1,0,-0.75))+IF(AO77<3,-0.75,0)) -> 0 | AY77: 1 | AZ77: 2 | BA77: 2 | BB77: 1 | BC77: =IFERROR(BA77+BB77,"") -> 3 | BD77: =IFERROR(IF(OR(BA77="",BB77=""),"",IF(BA77>BB77,3,IF(BA77<BB77,0,1))),"") -> 3 | BE77: =IFERROR(IF(BD77="","",IF(BD77=1,"D",IF(BD77=0,"L",IF(BD77=3,"W")))),"") -> W | BF77: =IFERROR(IF(BA77>BB77,18,IF(BA77=BB77,6,0)),"") -> 18 | BH77: -8 | BI77: 2.5 GOL ÜST
A78: D | B78: 2022-05-07 | C78: Cooks Hill United | D78: 0 - 1 | E78: Lambton Jaffas | F78: 0-1 | AK78: 0 | AL78: 1 | AM78: 1 | AN78: 0 | AO78: 1 | AP78: 3 | AQ78: W | AR78: 18 | AS78: 0 | AT78: 0 | AU78: 0 | AV78: -1.5 | AY78: 0 | AZ78: 1 | BA78: 1 | BB78: 0 | BC78: 1 | BD78: 3 | BE78: W | BF78: 18 | BH78: -7 | BI78: 2.5 GOL ÜST
A79: D | B79: 2022-05-04 | C79: Lambton Jaffas | D79: 1 - 1 | E79: Newcastle Olympic | F79: 1-1 | AK79: 1 | AL79: 1 | AM79: 1 | AN79: 1 | AO79: 2 | AP79: 1 | AQ79: D | AR79: 6 | AS79: 0 | AT79: 1 | AU79: 0 | AV79: -0.75 | AY79: 1 | AZ79: 1 | BA79: 1 | BB79: 1 | BC79: 2 | BD79: 1 | BE79: D | BF79: 6 | BH79: -6 | BI79: 2.5 GOL ÜST
A80: D | B80: 2022-04-15 | C80: Weston Bears | D80: 0 - 2 | E80: Lambton Jaffas | F80: 0-0 | AK80: 0 | AL80: 2 | AM80: 2 | AN80: 0 | AO80: 2 | AP80: 3 | AQ80: W | AR80: 18 | AS80: 0 | AT80: 0 | AU80: 0 | AV80: -1.5 | AY80: 0 | AZ80: 0 | BA80: 0 | BB80: 0 | BC80: 0 | BD80: 1 | BE80: D | BF80: 6 | BH80: -5 | BI80: 2.5 GOL ÜST
A81: D | B81: 2022-03-27 | C81: Charlestown City B | D81: 3 - 1 | E81: Lambton Jaffas | F81: 1-0 | AK81: 3 | AL81: 1 | AM81: 1 | AN81: 3 | AO81: 4 | AP81: 0 | AQ81: L | AR81: 0 | AS81: 1 | AT81: 1 | AU81: 1 | AV81: 0 | AY81: 1 | AZ81: 0 | BA81: 0 | BB81: 1 | BC81: 1 | BD81: 0 | BE81: L | BF81: 0 | BH81: -4 | BI81: MOST'A GÖRE RİSKLİ
A82: D | B82: 2022-03-20 | C82: Lambton Jaffas | D82: 2 - 1 | E82: Broadmeadow Magic | F82: 0-0 | AK82: 2 | AL82: 1 | AM82: 2 | AN82: 1 | AO82: 3 | AP82: 3 | AQ82: W | AR82: 18 | AS82: 1 | AT82: 1 | AU82: 1 | AV82: 0 | AY82: 0 | AZ82: 0 | BA82: 0 | BB82: 0 | BC82: 0 | BD82: 1 | BE82: D | BF82: 6 | BH82: -3 | BI82: MOST'A GÖRE RİSKLİ
A83: D | B83: 2021-08-01 | C83: Lambton Jaffas | D83: 2 - 1 | E83: Broadmeadow Magic | F83: 1-0 | AK83: 2 | AL83: 1 | AM83: 2 | AN83: 1 | AO83: 3 | AP83: 3 | AQ83: W | AR83: 18 | AS83: 1 | AT83: 1 | AU83: 1 | AV83: 0 | AY83: 1 | AZ83: 0 | BA83: 1 | BB83: 0 | BC83: 1 | BD83: 3 | BE83: W | BF83: 18 | BH83: -2 | BI83: MOST'A GÖRE RİSKLİ
A84: D | B84: 2021-07-17 | C84: Newcastle Olympic | D84: 1 - 2 | E84: Lambton Jaffas | F84: 1-2 | AK84: 1 | AL84: 2 | AM84: 2 | AN84: 1 | AO84: 3 | AP84: 3 | AQ84: W | AR84: 18 | AS84: 1 | AT84: 1 | AU84: 1 | AV84: 0 | AY84: 1 | AZ84: 2 | BA84: 2 | BB84: 1 | BC84: 3 | BD84: 3 | BE84: W | BF84: 18 | BH84: -1 | BI84: MOST'A GÖRE RİSKLİ
A85: D | B85: 2021-07-10 | C85: Lambton Jaffas | D85: 5 - 1 | E85: Adamstown Rosebuds | AK85: 5 | AL85: 1 | AM85: 5 | AN85: 1 | AO85: 6 | AP85: 3 | AQ85: W | AR85: 18 | AS85: 1 | AT85: 1 | AU85: 1 | AV85: 0 | BF85: 6 | BH85: 0 | BI85: MOST'A GÖRE RİSKLİ
A86: D | B86: 2021-07-02 | C86: Lake Macquarie | D86: 2 - 3 | E86: Lambton Jaffas | F86: 1-2 | AK86: 2 | AL86: 3 | AM86: 3 | AN86: 2 | AO86: 5 | AP86: 3 | AQ86: W | AR86: 18 | AS86: 1 | AT86: 1 | AU86: 1 | AV86: 0 | AY86: 1 | AZ86: 2 | BA86: 2 | BB86: 1 | BC86: 3 | BD86: 3 | BE86: W | BF86: 18 | BH86: 1 | BI86: MOST'A GÖRE RİSKLİ
A87: D | B87: 2021-06-27 | C87: Valentine Phoenix | D87: 1 - 1 | E87: Lambton Jaffas | F87: 0-0 | AK87: 1 | AL87: 1 | AM87: 1 | AN87: 1 | AO87: 2 | AP87: 1 | AQ87: D | AR87: 6 | AS87: 0 | AT87: 1 | AU87: 0 | AV87: -0.75 | AY87: 0 | AZ87: 0 | BA87: 0 | BB87: 0 | BC87: 0 | BD87: 1 | BE87: D | BF87: 6 | BH87: 2 | BI87: MOST'A GÖRE RİSKLİ
A88: D | B88: 2021-06-05 | C88: Lambton Jaffas | D88: 4 - 1 | E88: Weston Bears | F88: 2-1 | AK88: 4 | AL88: 1 | AM88: 4 | AN88: 1 | AO88: 5 | AP88: 3 | AQ88: W | AR88: 18 | AS88: 1 | AT88: 1 | AU88: 1 | AV88: 0 | AY88: 2 | AZ88: 1 | BA88: 2 | BB88: 1 | BC88: 3 | BD88: 3 | BE88: W | BF88: 18 | BH88: 3 | BI88: MOST'A GÖRE RİSKLİ
A89: D | B89: 2021-05-29 | C89: Lambton Jaffas | D89: 2 - 1 | E89: Maitland | F89: 1-1 | AK89: 2 | AL89: 1 | AM89: 2 | AN89: 1 | AO89: 3 | AP89: 3 | AQ89: W | AR89: 18 | AS89: 1 | AT89: 1 | AU89: 1 | AV89: 0 | AY89: 1 | AZ89: 1 | BA89: 1 | BB89: 1 | BC89: 2 | BD89: 1 | BE89: D | BF89: 6 | BH89: 4 | BI89: MOST'A GÖRE RİSKLİ
A90: D | B90: 2021-05-23 | C90: Charlestown City B | D90: 0 - 6 | E90: Lambton Jaffas | F90: 0-2 | AK90: 0 | AL90: 6 | AM90: 6 | AN90: 0 | AO90: 6 | AP90: 3 | AQ90: W | AR90: 18 | AS90: 1 | AT90: 0 | AU90: 1 | AV90: -0.75 | AY90: 0 | AZ90: 2 | BA90: 2 | BB90: 0 | BC90: 2 | BD90: 3 | BE90: W | BF90: 18 | BH90: 5 | BI90: 2.5 GOL ALT
B91: G | C91: B | D91: M | E91: AG | F91: YG | BH91: 6 | BI91: 2.5 GOL ALT
A92: İlk Yarı | B92: 8 | C92: 5 | D92: 1 | E92: 15 | F92: 7 | BH92: 7 | BI92: 2.5 GOL ALT
A93: Maç Sonu | B93: 11 | C93: 3 | D93: 1 | E93: 35 | F93: 15 | AJ93: =IF(AJ113>13,"MS1",IF(AJ113>0,"ÇŞ 1-X ",IF(AJ113<-17,"MS2",IF(AJ113<-1,"ÇŞ X-2 ","MSX")))) -> MS1 | AM93: =SUM(AM76:AM92) -> 35 | AN93: =SUM(AN76:AN92) -> 15 | AR93: =SUM(AR76:AR92) -> 216 | AS93: =SUM(AS76:AS79) -> 1 | AT93: =SUM(AT76:AT79) -> 3 | AU93: =SUM(AU76:AU79) -> 1 | AV93: =SUM(AV76:AV79) -> -3 | AX93: =IF(AX113>13,"İY1",IF(AX113>0,"İY 1-X ",IF(AX113<-17,"İY2",IF(AX113<-1,"İY X-2 ","İYX")))) -> İY1 | BA93: =SUM(BA76:BA92) -> 15 | BB93: =SUM(BB76:BB92) -> 7 | BF93: =SUM(BF76:BF92) -> 180 | BH93: 8 | BI93: 2.5 GOL ALT
BH94: 9 | BI94: 2.5 GOL ALT
B95: Tarih | C95: EvSahibi | D95: MS | E95: Deplasman | F95: İY | AJ95: =A46 -> Edgeworth Eagles | AK95: MS | AS95: 2.5 Ü | AT95: KG | AU95: 2.5 A | AV95: KGY2.5A | AX95: =AJ95 -> Edgeworth Eagles | AY95: İY | BH95: 10 | BI95: 2.5 GOL ALT
A96: D | B96: 2022-06-08 | C96: Edgeworth Eagles | D96: 3 - 1 | E96: Cooks Hill United | F96: 3-0 | AK96: =IFERROR(IF(D96="","0",IFERROR(VALUE(TRIM(MID(D96,1,IFERROR(FIND("-",D96,1),FIND("-",D96,1))-1))),"")),"") -> 3 | AL96: =IFERROR(IF(D96="","0",IFERROR(VALUE(TRIM(MID(D96,IFERROR(FIND("-",D96,1),FIND("-",D96,1))+1,500))),"")),"") -> 1 | AM96: =IFERROR(IF(OR(AK96="",AL96=""),"",IF(C96=$AJ$95,AK96,AL96)),"") -> 3 | AN96: =IFERROR(IF(OR(AK96="",AL96=""),"",IF(C96=$AJ$95,AL96,AK96)),"") -> 1 | AO96: =IFERROR(AM96+AN96,"") -> 4 | AP96: =IFERROR(IF(OR(AM96="",AN96=""),"",IF(AM96>AN96,3,IF(AM96<AN96,0,1))),"") -> 3 | AQ96: =IFERROR(IF(AP96="","",IF(AP96=1,"D",IF(AP96=0,"L",IF(AP96=3,"W")))),"") -> W | AR96: =IFERROR(IF(AM96>AN96,18,IF(AM96=AN96,6,0)),"") -> 18 | AS96: =IF(AO96>=3,1,0) -> 1 | AT96: =IF((IF((IF(AM96>=1,1,0))>=1,1,0)+IF((IF(AN96>=1,1,0))>=1,1,0))>=2,1,0) -> 1 | AU96: =IF(AO96>=3,1,0) -> 1 | AV96: =((IF(AM96>=1,0,-0.75))+(IF(AN96>=1,0,-0.75))+IF(AO96<3,-0.75,0)) -> 0 | AY96: =IFERROR(IF(F96="","0",IFERROR(VALUE(TRIM(MID(F96,1,IFERROR(FIND("-",F96,1),FIND("-",F96,1))-1))),"")),"") -> 3 | AZ96: =IFERROR(IF(F96="","0",IFERROR(VALUE(TRIM(MID(F96,IFERROR(FIND("-",F96,1),FIND("-",F96,1))+1,500))),"")),"") -> 0 | BA96: =IFERROR(IF(OR(AY96="",AZ96=""),"",IF(C96=$AJ$95,AY96,AZ96)),"") -> 3 | BB96: =IFERROR(IF(OR(AY96="",AZ96=""),"",IF(C96=$AJ$95,AZ96,AY96)),"") -> 0 | BC96: =IFERROR(BA96+BB96,"") -> 3 | BD96: =IFERROR(IF(OR(BA96="",BB96=""),"",IF(BA96>BB96,3,IF(BA96<BB96,0,1))),"") -> 3 | BE96: =IFERROR(IF(BD96="","",IF(BD96=1,"D",IF(BD96=0,"L",IF(BD96=3,"W")))),"") -> W | BF96: =IFERROR(IF(BA96>BB96,18,IF(BA96=BB96,6,0)),"") -> 18 | BH96: 11 | BI96: 2.5 GOL ALT
A97: D | B97: 2022-06-05 | C97: Edgeworth Eagles | D97: 1 - 1 | E97: Adamstown Rosebuds | F97: 0-1 | AK97: =IFERROR(IF(D97="","0",IFERROR(VALUE(TRIM(MID(D97,1,IFERROR(FIND("-",D97,1),FIND("-",D97,1))-1))),"")),"") -> 1 | AL97: =IFERROR(IF(D97="","0",IFERROR(VALUE(TRIM(MID(D97,IFERROR(FIND("-",D97,1),FIND("-",D97,1))+1,500))),"")),"") -> 1 | AM97: =IFERROR(IF(OR(AK97="",AL97=""),"",IF(C97=$AJ$95,AK97,AL97)),"") -> 1 | AN97: =IFERROR(IF(OR(AK97="",AL97=""),"",IF(C97=$AJ$95,AL97,AK97)),"") -> 1 | AO97: =IFERROR(AM97+AN97,"") -> 2 | AP97: =IFERROR(IF(OR(AM97="",AN97=""),"",IF(AM97>AN97,3,IF(AM97<AN97,0,1))),"") -> 1 | AQ97: =IFERROR(IF(AP97="","",IF(AP97=1,"D",IF(AP97=0,"L",IF(AP97=3,"W")))),"") -> D | AR97: =IFERROR(IF(AM97>AN97,18,IF(AM97=AN97,6,0)),"") -> 6 | AS97: =IF(AO97>=3,1,0) -> 0 | AT97: =IF((IF((IF(AM97>=1,1,0))>=1,1,0)+IF((IF(AN97>=1,1,0))>=1,1,0))>=2,1,0) -> 1 | AU97: =IF(AO97>=3,1,0) -> 0 | AV97: =((IF(AM97>=1,0,-0.75))+(IF(AN97>=1,0,-0.75))+IF(AO97<3,-0.75,0)) -> -0.75 | AY97: 0 | AZ97: 1 | BA97: 0 | BB97: 1 | BC97: =IFERROR(BA97+BB97,"") -> 1 | BD97: =IFERROR(IF(OR(BA97="",BB97=""),"",IF(BA97>BB97,3,IF(BA97<BB97,0,1))),"") -> 0 | BE97: =IFERROR(IF(BD97="","",IF(BD97=1,"D",IF(BD97=0,"L",IF(BD97=3,"W")))),"") -> L | BF97: =IFERROR(IF(BA97>BB97,18,IF(BA97=BB97,6,0)),"") -> 0 | BH97: 12 | BI97: 2.5 GOL ALT
A98: D | B98: 2022-05-29 | C98: Valentine Phoenix | D98: 1 - 0 | E98: Edgeworth Eagles | F98: 1-0 | AK98: 1 | AL98: 0 | AM98: 0 | AN98: 1 | AO98: 1 | AP98: 0 | AQ98: L | AR98: 0 | AS98: 0 | AT98: 0 | AU98: 0 | AV98: -1.5 | AY98: 1 | AZ98: 0 | BA98: 0 | BB98: 1 | BC98: 1 | BD98: 0 | BE98: L | BF98: 0 | BH98: 13 | BI98: 2.5 GOL ALT
A99: D | B99: 2022-05-08 | C99: Edgeworth Eagles | D99: 2 - 0 | E99: Newcastle Olympic | F99: 1-0 | AK99: 2 | AL99: 0 | AM99: 2 | AN99: 0 | AO99: 2 | AP99: 3 | AQ99: W | AR99: 18 | AS99: 0 | AT99: 0 | AU99: 0 | AV99: -1.5 | AY99: 1 | AZ99: 0 | BA99: 1 | BB99: 0 | BC99: 1 | BD99: 3 | BE99: W | BF99: 18 | BH99: 14 | BI99: 2.5 GOL ALT
A100: D | B100: 2022-05-01 | C100: Lake Macquarie | D100: 2 - 4 | E100: Edgeworth Eagles | F100: 0-3 | AK100: 2 | AL100: 4 | AM100: 4 | AN100: 2 | AO100: 6 | AP100: 3 | AQ100: W | AR100: 18 | AS100: 1 | AT100: 1 | AU100: 1 | AV100: 0 | AY100: 0 | AZ100: 3 | BA100: 3 | BB100: 0 | BC100: 3 | BD100: 3 | BE100: W | BF100: 18 | BH100: 15 | BI100: 2.5 GOL ALT
A101: D | B101: 2022-04-10 | C101: Charlestown City B | D101: 6 - 2 | E101: Edgeworth Eagles | F101: 3-1 | AK101: 6 | AL101: 2 | AM101: 2 | AN101: 6 | AO101: 8 | AP101: 0 | AQ101: L | AR101: 0 | AS101: 1 | AT101: 1 | AU101: 1 | AV101: 0 | AY101: 3 | AZ101: 1 | BA101: 1 | BB101: 3 | BC101: 4 | BD101: 0 | BE101: L | BF101: 0
A102: D | B102: 2022-04-02 | C102: Broadmeadow Magic | D102: 3 - 1 | E102: Edgeworth Eagles | F102: 1-0 | AK102: 3 | AL102: 1 | AM102: 1 | AN102: 3 | AO102: 4 | AP102: 0 | AQ102: L | AR102: 0 | AS102: 1 | AT102: 1 | AU102: 1 | AV102: 0 | AY102: 1 | AZ102: 0 | BA102: 0 | BB102: 1 | BC102: 1 | BD102: 0 | BE102: L | BF102: 0
A103: D | B103: 2022-03-19 | C103: Edgeworth Eagles | D103: 0 - 2 | E103: Maitland | F103: 0-0 | AK103: 0 | AL103: 2 | AM103: 0 | AN103: 2 | AO103: 2 | AP103: 0 | AQ103: L | AR103: 0 | AS103: 0 | AT103: 0 | AU103: 0 | AV103: -1.5 | AY103: 0 | AZ103: 0 | BA103: 0 | BB103: 0 | BC103: 0 | BD103: 1 | BE103: D | BF103: 6
A104: D | B104: 2022-03-12 | C104: Adamstown Rosebuds | D104: 0 - 1 | E104: Edgeworth Eagles | F104: 0-0 | AK104: 0 | AL104: 1 | AM104: 1 | AN104: 0 | AO104: 1 | AP104: 3 | AQ104: W | AR104: 18 | AS104: 0 | AT104: 0 | AU104: 0 | AV104: -1.5 | AY104: 0 | AZ104: 0 | BA104: 0 | BB104: 0 | BC104: 0 | BD104: 1 | BE104: D | BF104: 6
A105: D | B105: 2021-08-01 | C105: Edgeworth Eagles | D105: 6 - 1 | E105: Valentine Phoenix | F105: 1-0 | AK105: 6 | AL105: 1 | AM105: 6 | AN105: 1 | AO105: 7 | AP105: 3 | AQ105: W | AR105: 18 | AS105: 1 | AT105: 1 | AU105: 1 | AV105: 0 | AY105: 1 | AZ105: 0 | BA105: 1 | BB105: 0 | BC105: 1 | BD105: 3 | BE105: W | BF105: 18
A106: D | B106: 2021-07-04 | C106: Newcastle Olympic | D106: 1 - 2 | E106: Edgeworth Eagles | F106: 0-2 | AK106: 1 | AL106: 2 | AM106: 2 | AN106: 1 | AO106: 3 | AP106: 3 | AQ106: W | AR106: 18 | AS106: 1 | AT106: 1 | AU106: 1 | AV106: 0 | AY106: 0 | AZ106: 2 | BA106: 2 | BB106: 0 | BC106: 2 | BD106: 3 | BE106: W | BF106: 18
A107: D | B107: 2021-06-05 | C107: Maitland | D107: 2 - 4 | E107: Edgeworth Eagles | F107: 2-1 | AK107: 2 | AL107: 4 | AM107: 4 | AN107: 2 | AO107: 6 | AP107: 3 | AQ107: W | AR107: 18 | AS107: 1 | AT107: 1 | AU107: 1 | AV107: 0 | AY107: 2 | AZ107: 1 | BA107: 1 | BB107: 2 | BC107: 3 | BD107: 0 | BE107: L | BF107: 0
A108: D | B108: 2021-05-30 | C108: Broadmeadow Magic | D108: 2 - 1 | E108: Edgeworth Eagles | F108: 1-0 | AK108: 2 | AL108: 1 | AM108: 1 | AN108: 2 | AO108: 3 | AP108: 0 | AQ108: L | AR108: 0 | AS108: 1 | AT108: 1 | AU108: 1 | AV108: 0 | AY108: 1 | AZ108: 0 | BA108: 0 | BB108: 1 | BC108: 1 | BD108: 0 | BE108: L | BF108: 0
A109: D | B109: 2021-05-23 | C109: Edgeworth Eagles | D109: 3 - 0 | E109: Adamstown Rosebuds | F109: 2-0 | AK109: 3 | AL109: 0 | AM109: 3 | AN109: 0 | AO109: 3 | AP109: 3 | AQ109: W | AR109: 18 | AS109: 1 | AT109: 0 | AU109: 1 | AV109: -0.75 | AY109: 2 | AZ109: 0 | BA109: 2 | BB109: 0 | BC109: 2 | BD109: 3 | BE109: W | BF109: 18
A110: D | B110: 2021-05-16 | C110: Valentine Phoenix | D110: 0 - 4 | E110: Edgeworth Eagles | F110: 0-2 | AK110: 0 | AL110: 4 | AM110: 4 | AN110: 0 | AO110: 4 | AP110: 3 | AQ110: W | AR110: 18 | AS110: 1 | AT110: 0 | AU110: 1 | AV110: -0.75 | AY110: 0 | AZ110: 2 | BA110: 2 | BB110: 0 | BC110: 2 | BD110: 3 | BE110: W | BF110: 18
B111: G | C111: B | D111: M | E111: AG | F111: YG
A112: İlk Yarı | B112: 7 | C112: 2 | D112: 6 | E112: 16 | F112: 9
A113: Maç Sonu | B113: 9 | C113: 1 | D113: 5 | E113: 34 | F113: 22 | AJ113: =AR93-AR113 -> 48 | AM113: =SUM(AM96:AM112) -> 34 | AN113: =SUM(AN96:AN112) -> 22 | AR113: =SUM(AR96:AR112) -> 168 | AS113: =SUM(AS96:AS99) -> 1 | AT113: =SUM(AT96:AT99) -> 2 | AU113: =SUM(AU96:AU99) -> 1 | AV113: =SUM(AV96:AV99) -> -3.75 | AX113: =BF93-BF113 -> 42 | BA113: =SUM(BA96:BA112) -> 16 | BB113: =SUM(BB96:BB112) -> 9 | BF113: =SUM(BF96:BF112) -> 138
AS114: =ROUND(SUM(AS148+AT148+AU148+AV148-(AS182+AT182+AU182+AV182)),0)-1 -> -2 | AT114: =VLOOKUP(AS114,BH41:BI100,2,FALSE) -> MOST'A GÖRE RİSKLİ
B115: Tarih | C115: EvSahibi | D115: MS | E115: Deplasman | F115: İY | AJ115: =A21 -> Lambton Jaffas | AK115: MS | AS115: 2.5 Ü | AT115: KG | AU115: 2.5 A | AV115: KGY2.5A | AX115: =AJ115 -> Lambton Jaffas | AY115: İY
A116: D | B116: 2022-06-04 | C116: Lambton Jaffas | D116: 1 - 1 | E116: Weston Bears | F116: 1-0 | AK116: =IFERROR(IF(D116="","0",IFERROR(VALUE(TRIM(MID(D116,1,IFERROR(FIND("-",D116,1),FIND("-",D116,1))-1))),"")),"") -> 1 | AL116: =IFERROR(IF(D116="","0",IFERROR(VALUE(TRIM(MID(D116,IFERROR(FIND("-",D116,1),FIND("-",D116,1))+1,500))),"")),"") -> 1 | AM116: =IFERROR(IF(OR(AK116="",AL116=""),"",IF(C116=$AJ$115,AK116,AL116)),"") -> 1 | AN116: =IFERROR(IF(OR(AK116="",AL116=""),"",IF(C116=$AJ$115,AL116,AK116)),"") -> 1 | AO116: =IFERROR(AM116+AN116,"") -> 2 | AP116: =IFERROR(IF(OR(AM116="",AN116=""),"",IF(AM116>AN116,3,IF(AM116<AN116,0,1))),"") -> 1 | AQ116: =IFERROR(IF(AP116="","",IF(AP116=1,"D",IF(AP116=0,"L",IF(AP116=3,"W")))),"") -> D | AR116: =IFERROR(IF(AM116>AN116,18,IF(AM116=AN116,6,0)),"") -> 6 | AS116: =IF(AO116>=3,1,0) -> 0 | AT116: =IF((IF((IF(AM116>=1,1,0))>=1,1,0)+IF((IF(AN116>=1,1,0))>=1,1,0))>=2,1,0) -> 1 | AU116: =IF(AO116>=3,1,0) -> 0 | AV116: =((IF(AM116>=1,0,-0.75))+(IF(AN116>=1,0,-0.75))+IF(AO116<3,-0.75,0)) -> -0.75 | AY116: =IFERROR(IF(F116="","0",IFERROR(VALUE(TRIM(MID(F116,1,IFERROR(FIND("-",F116,1),FIND("-",F116,1))-1))),"")),"") -> 1 | AZ116: =IFERROR(IF(F116="","0",IFERROR(VALUE(TRIM(MID(F116,IFERROR(FIND("-",F116,1),FIND("-",F116,1))+1,500))),"")),"") -> 0 | BA116: =IFERROR(IF(OR(AY116="",AZ116=""),"",IF(C116=$AJ$115,AY116,AZ116)),"") -> 1 | BB116: =IFERROR(IF(OR(AY116="",AZ116=""),"",IF(C116=$AJ$115,AZ116,AY116)),"") -> 0 | BC116: =IFERROR(BA116+BB116,"") -> 1 | BD116: =IFERROR(IF(OR(BA116="",BB116=""),"",IF(BA116>BB116,3,IF(BA116<BB116,0,1))),"") -> 3 | BE116: =IFERROR(IF(BD116="","",IF(BD116=1,"D",IF(BD116=0,"L",IF(BD116=3,"W")))),"") -> W | BF116: =IFERROR(IF(BA116>BB116,18,IF(BA116=BB116,6,0)),"") -> 18
A117: D | B117: 2022-05-04 | C117: Lambton Jaffas | D117: 1 - 1 | E117: Newcastle Olympic | F117: 1-1 | AK117: =IFERROR(IF(D117="","0",IFERROR(VALUE(TRIM(MID(D117,1,IFERROR(FIND("-",D117,1),FIND("-",D117,1))-1))),"")),"") -> 1 | AL117: =IFERROR(IF(D117="","0",IFERROR(VALUE(TRIM(MID(D117,IFERROR(FIND("-",D117,1),FIND("-",D117,1))+1,500))),"")),"") -> 1 | AM117: =IFERROR(IF(OR(AK117="",AL117=""),"",IF(C117=$AJ$115,AK117,AL117)),"") -> 1 | AN117: =IFERROR(IF(OR(AK117="",AL117=""),"",IF(C117=$AJ$115,AL117,AK117)),"") -> 1 | AO117: =IFERROR(AM117+AN117,"") -> 2 | AP117: =IFERROR(IF(OR(AM117="",AN117=""),"",IF(AM117>AN117,3,IF(AM117<AN117,0,1))),"") -> 1 | AQ117: =IFERROR(IF(AP117="","",IF(AP117=1,"D",IF(AP117=0,"L",IF(AP117=3,"W")))),"") -> D | AR117: =IFERROR(IF(AM117>AN117,18,IF(AM117=AN117,6,0)),"") -> 6 | AS117: =IF(AO117>=3,1,0) -> 0 | AT117: =IF((IF((IF(AM117>=1,1,0))>=1,1,0)+IF((IF(AN117>=1,1,0))>=1,1,0))>=2,1,0) -> 1 | AU117: =IF(AO117>=3,1,0) -> 0 | AV117: =((IF(AM117>=1,0,-0.75))+(IF(AN117>=1,0,-0.75))+IF(AO117<3,-0.75,0)) -> -0.75 | AY117: 1 | AZ117: 1 | BA117: 1 | BB117: 1 | BC117: =IFERROR(BA117+BB117,"") -> 2 | BD117: =IFERROR(IF(OR(BA117="",BB117=""),"",IF(BA117>BB117,3,IF(BA117<BB117,0,1))),"") -> 1 | BE117: =IFERROR(IF(BD117="","",IF(BD117=1,"D",IF(BD117=0,"L",IF(BD117=3,"W")))),"") -> D | BF117: =IFERROR(IF(BA117>BB117,18,IF(BA117=BB117,6,0)),"") -> 6
A118: D | B118: 2022-03-20 | C118: Lambton Jaffas | D118: 2 - 1 | E118: Broadmeadow Magic | F118: 0-0 | AK118: 2 | AL118: 1 | AM118: 2 | AN118: 1 | AO118: 3 | AP118: 3 | AQ118: W | AR118: 18 | AS118: 1 | AT118: 1 | AU118: 1 | AV118: 0 | AY118: 0 | AZ118: 0 | BA118: 0 | BB118: 0 | BC118: 0 | BD118: 1 | BE118: D | BF118: 6
A119: D | B119: 2021-08-01 | C119: Lambton Jaffas | D119: 2 - 1 | E119: Broadmeadow Magic | F119: 1-0 | AK119: 2 | AL119: 1 | AM119: 2 | AN119: 1 | AO119: 3 | AP119: 3 | AQ119: W | AR119: 18 | AS119: 1 | AT119: 1 | AU119: 1 | AV119: 0 | AY119: 1 | AZ119: 0 | BA119: 1 | BB119: 0 | BC119: 1 | BD119: 3 | BE119: W | BF119: 18
A120: D | B120: 2021-07-10 | C120: Lambton Jaffas | D120: 5 - 1 | E120: Adamstown Rosebuds | AK120: 5 | AL120: 1 | AM120: 5 | AN120: 1 | AO120: 6 | AP120: 3 | AQ120: W | AR120: 18 | AS120: 1 | AT120: 1 | AU120: 1 | AV120: 0 | AY120: 0 | AZ120: 0 | BA120: 0 | BB120: 0 | BC120: 0 | BD120: 1 | BE120: D | BF120: 6
A121: D | B121: 2021-06-05 | C121: Lambton Jaffas | D121: 4 - 1 | E121: Weston Bears | F121: 2-1 | AK121: 4 | AL121: 1 | AM121: 4 | AN121: 1 | AO121: 5 | AP121: 3 | AQ121: W | AR121: 18 | AS121: 1 | AT121: 1 | AU121: 1 | AV121: 0 | AY121: 2 | AZ121: 1 | BA121: 2 | BB121: 1 | BC121: 3 | BD121: 3 | BE121: W | BF121: 18
A122: D | B122: 2021-05-29 | C122: Lambton Jaffas | D122: 2 - 1 | E122: Maitland | F122: 1-1 | AK122: 2 | AL122: 1 | AM122: 2 | AN122: 1 | AO122: 3 | AP122: 3 | AQ122: W | AR122: 18 | AS122: 1 | AT122: 1 | AU122: 1 | AV122: 0 | AY122: 1 | AZ122: 1 | BA122: 1 | BB122: 1 | BC122: 2 | BD122: 1 | BE122: D | BF122: 6
A123: D | B123: 2021-05-08 | C123: Lambton Jaffas | D123: 1 - 2 | E123: Newcastle Olympic | F123: 1-0 | AK123: 1 | AL123: 2 | AM123: 1 | AN123: 2 | AO123: 3 | AP123: 0 | AQ123: L | AR123: 0 | AS123: 1 | AT123: 1 | AU123: 1 | AV123: 0 | AY123: 1 | AZ123: 0 | BA123: 1 | BB123: 0 | BC123: 1 | BD123: 3 | BE123: W | BF123: 18
A124: D | B124: 2021-04-17 | C124: Lambton Jaffas | D124: 2 - 1 | E124: Lake Macquarie | F124: 1-1 | AK124: 2 | AL124: 1 | AM124: 2 | AN124: 1 | AO124: 3 | AP124: 3 | AQ124: W | AR124: 18 | AS124: 1 | AT124: 1 | AU124: 1 | AV124: 0 | AY124: 1 | AZ124: 1 | BA124: 1 | BB124: 1 | BC124: 2 | BD124: 1 | BE124: D | BF124: 6
A125: D | B125: 2021-04-11 | C125: Lambton Jaffas | D125: 1 - 0 | E125: Valentine Phoenix | AK125: 1 | AL125: 0 | AM125: 1 | AN125: 0 | AO125: 1 | AP125: 3 | AQ125: W | AR125: 18 | AS125: 0 | AT125: 0 | AU125: 0 | AV125: -1.5 | AY125: 0 | AZ125: 0 | BA125: 0 | BB125: 0 | BC125: 0 | BD125: 1 | BE125: D | BF125: 6
A126: D | B126: 2021-04-02 | C126: Lambton Jaffas | D126: 0 - 2 | E126: Edgeworth Eagles | F126: 0-1 | AK126: 0 | AL126: 2 | AM126: 0 | AN126: 2 | AO126: 2 | AP126: 0 | AQ126: L | AR126: 0 | AS126: 0 | AT126: 0 | AU126: 0 | AV126: -1.5 | AY126: 0 | AZ126: 1 | BA126: 0 | BB126: 1 | BC126: 1 | BD126: 0 | BE126: L | BF126: 0
A127: D | B127: 2020-09-26 | C127: Lambton Jaffas | D127: 3 - 0 | E127: Lake Macquarie | F127: 1-0 | AK127: 3 | AL127: 0 | AM127: 3 | AN127: 0 | AO127: 3 | AP127: 3 | AQ127: W | AR127: 18 | AS127: 1 | AT127: 0 | AU127: 1 | AV127: -0.75 | AY127: 1 | AZ127: 0 | BA127: 1 | BB127: 0 | BC127: 1 | BD127: 3 | BE127: W | BF127: 18
A128: D | B128: 2020-09-12 | C128: Lambton Jaffas | D128: 0 - 0 | E128: Charlestown City B | F128: 0-0 | AK128: 0 | AL128: 0 | AM128: 0 | AN128: 0 | AO128: 0 | AP128: 1 | AQ128: D | AR128: 6 | AS128: 0 | AT128: 0 | AU128: 0 | AV128: -2.25 | AY128: 0 | AZ128: 0 | BA128: 0 | BB128: 0 | BC128: 0 | BD128: 1 | BE128: D | BF128: 6
A129: D | B129: 2020-09-06 | C129: Lambton Jaffas | D129: 3 - 1 | E129: Edgeworth Eagles | F129: 3-1 | AK129: 3 | AL129: 1 | AM129: 3 | AN129: 1 | AO129: 4 | AP129: 3 | AQ129: W | AR129: 18 | AS129: 1 | AT129: 1 | AU129: 1 | AV129: 0 | AY129: 3 | AZ129: 1 | BA129: 3 | BB129: 1 | BC129: 4 | BD129: 3 | BE129: W | BF129: 18
A130: D | B130: 2020-08-22 | C130: Lambton Jaffas | D130: 6 - 3 | E130: Adamstown Rosebuds | F130: 3-1 | AK130: 6 | AL130: 3 | AM130: 6 | AN130: 3 | AO130: 9 | AP130: 3 | AQ130: W | AR130: 18 | AS130: 1 | AT130: 1 | AU130: 1 | AV130: 0 | AY130: 3 | AZ130: 1 | BA130: 3 | BB130: 1 | BC130: 4 | BD130: 3 | BE130: W | BF130: 18
A131: D | B131: 2020-08-08 | C131: Lambton Jaffas | D131: 2 - 3 | E131: Broadmeadow Magic | F131: 0-0 | AK131: 2 | AL131: 3 | AM131: 2 | AN131: 3 | AO131: 5 | AP131: 0 | AQ131: L | AR131: 0 | AS131: 1 | AT131: 1 | AU131: 1 | AV131: 0 | AY131: 0 | AZ131: 0 | BA131: 0 | BB131: 0 | BC131: 0 | BD131: 1 | BE131: D | BF131: 6
A132: D | B132: 2020-08-01 | C132: Lambton Jaffas | D132: 2 - 2 | E132: Hamilton Olympic | F132: 2-1 | AK132: 2 | AL132: 2 | AM132: 2 | AN132: 2 | AO132: 4 | AP132: 1 | AQ132: D | AR132: 6 | AS132: 1 | AT132: 1 | AU132: 1 | AV132: 0 | AY132: 2 | AZ132: 1 | BA132: 2 | BB132: 1 | BC132: 3 | BD132: 3 | BE132: W | BF132: 18
A133: D | B133: 2020-07-18 | C133: Lambton Jaffas | D133: 2 - 3 | E133: Weston Bears | F133: 2-2 | AK133: 2 | AL133: 3 | AM133: 2 | AN133: 3 | AO133: 5 | AP133: 0 | AQ133: L | AR133: 0 | AS133: 1 | AT133: 1 | AU133: 1 | AV133: 0 | AY133: 2 | AZ133: 2 | BA133: 2 | BB133: 2 | BC133: 4 | BD133: 1 | BE133: D | BF133: 6
A134: D | B134: 2019-08-25 | C134: Lambton Jaffas | D134: 3 - 0 | E134: Edgeworth Eagles | F134: 2-0 | AK134: 3 | AL134: 0 | AM134: 3 | AN134: 0 | AO134: 3 | AP134: 3 | AQ134: W | AR134: 18 | AS134: 1 | AT134: 0 | AU134: 1 | AV134: -0.75 | AY134: 2 | AZ134: 0 | BA134: 2 | BB134: 0 | BC134: 2 | BD134: 3 | BE134: W | BF134: 18
A135: D | B135: 2019-08-07 | C135: Lambton Jaffas | D135: 1 - 1 | E135: Maitland | F135: 1-1 | AK135: 1 | AL135: 1 | AM135: 1 | AN135: 1 | AO135: 2 | AP135: 1 | AQ135: D | AR135: 6 | AS135: 0 | AT135: 1 | AU135: 0 | AV135: -0.75 | AY135: 1 | AZ135: 1 | BA135: 1 | BB135: 1 | BC135: 2 | BD135: 1 | BE135: D | BF135: 6
A136: D | B136: 2019-08-03 | C136: Lambton Jaffas | D136: 2 - 0 | E136: Broadmeadow Magic | F136: 0-0 | AK136: 2 | AL136: 0 | AM136: 2 | AN136: 0 | AO136: 2 | AP136: 3 | AQ136: W | AR136: 18 | AS136: 0 | AT136: 0 | AU136: 0 | AV136: -1.5 | AY136: 0 | AZ136: 0 | BA136: 0 | BB136: 0 | BC136: 0 | BD136: 1 | BE136: D | BF136: 6
A137: D | B137: 2019-07-27 | C137: Lambton Jaffas | D137: 3 - 0 | E137: Newcastle Jets II | F137: 1-0 | AK137: 3 | AL137: 0 | AM137: 3 | AN137: 0 | AO137: 3 | AP137: 3 | AQ137: W | AR137: 18 | AS137: 1 | AT137: 0 | AU137: 1 | AV137: -0.75 | AY137: 1 | AZ137: 0 | BA137: 1 | BB137: 0 | BC137: 1 | BD137: 3 | BE137: W | BF137: 18
A138: D | B138: 2019-07-13 | C138: Lambton Jaffas | D138: 5 - 2 | E138: Valentine Phoenix | F138: 4-2 | AK138: 5 | AL138: 2 | AM138: 5 | AN138: 2 | AO138: 7 | AP138: 3 | AQ138: W | AR138: 18 | AS138: 1 | AT138: 1 | AU138: 1 | AV138: 0 | AY138: 4 | AZ138: 2 | BA138: 4 | BB138: 2 | BC138: 6 | BD138: 3 | BE138: W | BF138: 18
A139: D | B139: 2019-06-15 | C139: Lambton Jaffas | D139: 2 - 0 | E139: Hamilton Olympic | F139: 2-0 | AK139: 2 | AL139: 0 | AM139: 2 | AN139: 0 | AO139: 2 | AP139: 3 | AQ139: W | AR139: 18 | AS139: 0 | AT139: 0 | AU139: 0 | AV139: -1.5 | AY139: 2 | AZ139: 0 | BA139: 2 | BB139: 0 | BC139: 2 | BD139: 3 | BE139: W | BF139: 18
A140: D | B140: 2019-05-18 | C140: Lambton Jaffas | D140: 2 - 2 | E140: Charlestown City B | F140: 0-0 | AK140: 2 | AL140: 2 | AM140: 2 | AN140: 2 | AO140: 4 | AP140: 1 | AQ140: D | AR140: 6 | AS140: 1 | AT140: 1 | AU140: 1 | AV140: 0 | AY140: 0 | AZ140: 0 | BA140: 0 | BB140: 0 | BC140: 0 | BD140: 1 | BE140: D | BF140: 6
A141: D | B141: 2018-08-11 | C141: Lambton Jaffas | D141: 0 - 1 | E141: Maitland | F141: 0-1 | AK141: 0 | AL141: 1 | AM141: 0 | AN141: 1 | AO141: 1 | AP141: 0 | AQ141: L | AR141: 0 | AS141: 0 | AT141: 0 | AU141: 0 | AV141: -1.5 | AY141: 0 | AZ141: 1 | BA141: 0 | BB141: 1 | BC141: 1 | BD141: 0 | BE141: L | BF141: 0
A142: D | B142: 2018-07-24 | C142: Lambton Jaffas | D142: 3 - 0 | E142: Newcastle Jets U21 | F142: 1-0 | AK142: 3 | AL142: 0 | AM142: 3 | AN142: 0 | AO142: 3 | AP142: 3 | AQ142: W | AR142: 18 | AS142: 1 | AT142: 0 | AU142: 1 | AV142: -0.75 | AY142: 1 | AZ142: 0 | BA142: 1 | BB142: 0 | BC142: 1 | BD142: 3 | BE142: W | BF142: 18
A143: D | B143: 2018-07-14 | C143: Lambton Jaffas | D143: 3 - 0 | E143: Valentine Phoenix | F143: 1-0 | AK143: 3 | AL143: 0 | AM143: 3 | AN143: 0 | AO143: 3 | AP143: 3 | AQ143: W | AR143: 18 | AS143: 1 | AT143: 0 | AU143: 1 | AV143: -0.75 | AY143: 1 | AZ143: 0 | BA143: 1 | BB143: 0 | BC143: 1 | BD143: 3 | BE143: W | BF143: 18
A144: D | B144: 2018-06-30 | C144: Lambton Jaffas | D144: 2 - 1 | E144: Charlestown City B | F144: 1-1 | AK144: 2 | AL144: 1 | AM144: 2 | AN144: 1 | AO144: 3 | AP144: 3 | AQ144: W | AR144: 18 | AS144: 1 | AT144: 1 | AU144: 1 | AV144: 0 | AY144: 1 | AZ144: 1 | BA144: 1 | BB144: 1 | BC144: 2 | BD144: 1 | BE144: D | BF144: 6
A145: D | B145: 2018-06-16 | C145: Lambton Jaffas | D145: 1 - 1 | E145: Broadmeadow Magic | F145: 0-1 | AK145: 1 | AL145: 1 | AM145: 1 | AN145: 1 | AO145: 2 | AP145: 1 | AQ145: D | AR145: 6 | AS145: 0 | AT145: 1 | AU145: 0 | AV145: -0.75 | AY145: 0 | AZ145: 1 | BA145: 0 | BB145: 1 | BC145: 1 | BD145: 0 | BE145: L | BF145: 0
B146: G | C146: B | D146: M | E146: AG | F146: YG
A147: İlk Yarı | B147: 14 | C147: 11 | D147: 3 | E147: 32 | F147: 16
A148: Maç Sonu | B148: 18 | C148: 7 | D148: 5 | E148: 66 | F148: 32 | AJ148: =IF(AJ182>13,"MS1",IF(AJ182>0,"ÇŞ 1-X ",IF(AJ182<-17,"MS2",IF(AJ168<-1,"ÇŞ X-2 ","MSX")))) -> MS1 | AM148: =SUM(AM116:AM147) -> 66 | AN148: =SUM(AN116:AN147) -> 32 | AR148: =SUM(AR116:AR147) -> 366 | AS148: =SUM(AS116:AS119) -> 2 | AT148: =SUM(AT116:AT119) -> 4 | AU148: =SUM(AU116:AU119) -> 2 | AV148: =SUM(AV116:AV119) -> -1.5 | AX148: =IF(AX182>13,"İY1",IF(AX182>0,"İY 1-X ",IF(AX182<-17,"İY2",IF(AX168<-1,"İY X-2 ","İYX")))) -> İY1 | BA148: =SUM(BA116:BA147) -> 32 | BB148: =SUM(BB116:BB147) -> 16 | BF148: =SUM(BF116:BF147) -> 330
B149: Tarih | C149: EvSahibi | D149: MS | E149: Deplasman | F149: İY | AJ149: =A46 -> Edgeworth Eagles | AK149: MS | AS149: 2.5 Ü | AT149: KG | AU149: 2.5 A | AV149: KGY2.5A | AX149: =AJ149 -> Edgeworth Eagles | AY149: İY
A150: D | B150: 2022-05-29 | C150: Valentine Phoenix | D150: 1 - 0 | E150: Edgeworth Eagles | F150: 1-0 | AK150: =IFERROR(IF(D150="","0",IFERROR(VALUE(TRIM(MID(D150,1,IFERROR(FIND("-",D150,1),FIND("-",D150,1))-1))),"")),"") -> 1 | AL150: =IFERROR(IF(D150="","0",IFERROR(VALUE(TRIM(MID(D150,IFERROR(FIND("-",D150,1),FIND("-",D150,1))+1,500))),"")),"") -> 0 | AM150: =IFERROR(IF(OR(AK150="",AL150=""),"",IF(C150=$AJ$149,AK150,AL150)),"") -> 0 | AN150: =IFERROR(IF(OR(AK150="",AL150=""),"",IF(C150=$AJ$149,AL150,AK150)),"") -> 1 | AO150: =IFERROR(AM150+AN150,"") -> 1 | AP150: =IFERROR(IF(OR(AM150="",AN150=""),"",IF(AM150>AN150,3,IF(AM150<AN150,0,1))),"") -> 0 | AQ150: =IFERROR(IF(AP150="","",IF(AP150=1,"D",IF(AP150=0,"L",IF(AP150=3,"W")))),"") -> L | AR150: =IFERROR(IF(AM150>AN150,18,IF(AM150=AN150,6,0)),"") -> 0 | AS150: =IF(AO150>=3,1,0) -> 0 | AT150: =IF((IF((IF(AM150>=1,1,0))>=1,1,0)+IF((IF(AN150>=1,1,0))>=1,1,0))>=2,1,0) -> 0 | AU150: =IF(AO150>=3,1,0) -> 0 | AV150: =((IF(AM150>=1,0,-0.75))+(IF(AN150>=1,0,-0.75))+IF(AO150<3,-0.75,0)) -> -1.5 | AY150: =IFERROR(IF(F150="","0",IFERROR(VALUE(TRIM(MID(F150,1,IFERROR(FIND("-",F150,1),FIND("-",F150,1))-1))),"")),"") -> 1 | AZ150: =IFERROR(IF(F150="","0",IFERROR(VALUE(TRIM(MID(F150,IFERROR(FIND("-",F150,1),FIND("-",F150,1))+1,500))),"")),"") -> 0 | BA150: =IFERROR(IF(OR(AY150="",AZ150=""),"",IF(C150=$AJ$149,AY150,AZ150)),"") -> 0 | BB150: =IFERROR(IF(OR(AY150="",AZ150=""),"",IF(C150=$AJ$149,AZ150,AY150)),"") -> 1 | BC150: =IFERROR(BA150+BB150,"") -> 1 | BD150: =IFERROR(IF(OR(BA150="",BB150=""),"",IF(BA150>BB150,3,IF(BA150<BB150,0,1))),"") -> 0 | BE150: =IFERROR(IF(BD150="","",IF(BD150=1,"D",IF(BD150=0,"L",IF(BD150=3,"W")))),"") -> L | BF150: =IFERROR(IF(BA150>BB150,18,IF(BA150=BB150,6,0)),"") -> 0
A151: D | B151: 2022-05-01 | C151: Lake Macquarie | D151: 2 - 4 | E151: Edgeworth Eagles | F151: 0-3 | AK151: =IFERROR(IF(D151="","0",IFERROR(VALUE(TRIM(MID(D151,1,IFERROR(FIND("-",D151,1),FIND("-",D151,1))-1))),"")),"") -> 2 | AL151: =IFERROR(IF(D151="","0",IFERROR(VALUE(TRIM(MID(D151,IFERROR(FIND("-",D151,1),FIND("-",D151,1))+1,500))),"")),"") -> 4 | AM151: =IFERROR(IF(OR(AK151="",AL151=""),"",IF(C151=$AJ$149,AK151,AL151)),"") -> 4 | AN151: =IFERROR(IF(OR(AK151="",AL151=""),"",IF(C151=$AJ$149,AL151,AK151)),"") -> 2 | AO151: =IFERROR(AM151+AN151,"") -> 6 | AP151: =IFERROR(IF(OR(AM151="",AN151=""),"",IF(AM151>AN151,3,IF(AM151<AN151,0,1))),"") -> 3 | AQ151: =IFERROR(IF(AP151="","",IF(AP151=1,"D",IF(AP151=0,"L",IF(AP151=3,"W")))),"") -> W | AR151: =IFERROR(IF(AM151>AN151,18,IF(AM151=AN151,6,0)),"") -> 18 | AS151: =IF(AO151>=3,1,0) -> 1 | AT151: =IF((IF((IF(AM151>=1,1,0))>=1,1,0)+IF((IF(AN151>=1,1,0))>=1,1,0))>=2,1,0) -> 1 | AU151: =IF(AO151>=3,1,0) -> 1 | AV151: =((IF(AM151>=1,0,-0.75))+(IF(AN151>=1,0,-0.75))+IF(AO151<3,-0.75,0)) -> 0 | AY151: 0 | AZ151: 3 | BA151: 3 | BB151: 0 | BC151: =IFERROR(BA151+BB151,"") -> 3 | BD151: =IFERROR(IF(OR(BA151="",BB151=""),"",IF(BA151>BB151,3,IF(BA151<BB151,0,1))),"") -> 3 | BE151: =IFERROR(IF(BD151="","",IF(BD151=1,"D",IF(BD151=0,"L",IF(BD151=3,"W")))),"") -> W | BF151: =IFERROR(IF(BA151>BB151,18,IF(BA151=BB151,6,0)),"") -> 18
A152: D | B152: 2022-04-10 | C152: Charlestown City B | D152: 6 - 2 | E152: Edgeworth Eagles | F152: 3-1 | AK152: 6 | AL152: 2 | AM152: 2 | AN152: 6 | AO152: 8 | AP152: 0 | AQ152: L | AR152: 0 | AS152: 1 | AT152: 1 | AU152: 1 | AV152: 0 | AY152: 3 | AZ152: 1 | BA152: 1 | BB152: 3 | BC152: 4 | BD152: 0 | BE152: L | BF152: 0
A153: D | B153: 2022-04-02 | C153: Broadmeadow Magic | D153: 3 - 1 | E153: Edgeworth Eagles | F153: 1-0 | AK153: 3 | AL153: 1 | AM153: 1 | AN153: 3 | AO153: 4 | AP153: 0 | AQ153: L | AR153: 0 | AS153: 1 | AT153: 1 | AU153: 1 | AV153: 0 | AY153: 1 | AZ153: 0 | BA153: 0 | BB153: 1 | BC153: 1 | BD153: 0 | BE153: L | BF153: 0
A154: D | B154: 2022-03-12 | C154: Adamstown Rosebuds | D154: 0 - 1 | E154: Edgeworth Eagles | F154: 0-0 | AK154: 0 | AL154: 1 | AM154: 1 | AN154: 0 | AO154: 1 | AP154: 3 | AQ154: W | AR154: 18 | AS154: 0 | AT154: 0 | AU154: 0 | AV154: -1.5 | AY154: 0 | AZ154: 0 | BA154: 0 | BB154: 0 | BC154: 0 | BD154: 1 | BE154: D | BF154: 6
A155: D | B155: 2021-07-04 | C155: Newcastle Olympic | D155: 1 - 2 | E155: Edgeworth Eagles | F155: 0-2 | AK155: 1 | AL155: 2 | AM155: 2 | AN155: 1 | AO155: 3 | AP155: 3 | AQ155: W | AR155: 18 | AS155: 1 | AT155: 1 | AU155: 1 | AV155: 0 | AY155: 0 | AZ155: 2 | BA155: 2 | BB155: 0 | BC155: 2 | BD155: 3 | BE155: W | BF155: 18
A156: D | B156: 2021-06-05 | C156: Maitland | D156: 2 - 4 | E156: Edgeworth Eagles | F156: 2-1 | AK156: 2 | AL156: 4 | AM156: 4 | AN156: 2 | AO156: 6 | AP156: 3 | AQ156: W | AR156: 18 | AS156: 1 | AT156: 1 | AU156: 1 | AV156: 0 | AY156: 2 | AZ156: 1 | BA156: 1 | BB156: 2 | BC156: 3 | BD156: 0 | BE156: L | BF156: 0
A157: D | B157: 2021-05-30 | C157: Broadmeadow Magic | D157: 2 - 1 | E157: Edgeworth Eagles | F157: 1-0 | AK157: 2 | AL157: 1 | AM157: 1 | AN157: 2 | AO157: 3 | AP157: 0 | AQ157: L | AR157: 0 | AS157: 1 | AT157: 1 | AU157: 1 | AV157: 0 | AY157: 1 | AZ157: 0 | BA157: 0 | BB157: 1 | BC157: 1 | BD157: 0 | BE157: L | BF157: 0
A158: D | B158: 2021-05-16 | C158: Valentine Phoenix | D158: 0 - 4 | E158: Edgeworth Eagles | F158: 0-2 | AK158: 0 | AL158: 4 | AM158: 4 | AN158: 0 | AO158: 4 | AP158: 3 | AQ158: W | AR158: 18 | AS158: 1 | AT158: 0 | AU158: 1 | AV158: -0.75 | AY158: 0 | AZ158: 2 | BA158: 2 | BB158: 0 | BC158: 2 | BD158: 3 | BE158: W | BF158: 18
A159: D | B159: 2021-04-24 | C159: Charlestown City B | D159: 0 - 2 | E159: Edgeworth Eagles | F159: 0-0 | AK159: 0 | AL159: 2 | AM159: 2 | AN159: 0 | AO159: 2 | AP159: 3 | AQ159: W | AR159: 18 | AS159: 0 | AT159: 0 | AU159: 0 | AV159: -1.5 | AY159: 0 | AZ159: 0 | BA159: 0 | BB159: 0 | BC159: 0 | BD159: 1 | BE159: D | BF159: 6
A160: D | B160: 2021-04-11 | C160: Lake Macquarie | D160: 3 - 2 | E160: Edgeworth Eagles | F160: 1-2 | AK160: 3 | AL160: 2 | AM160: 2 | AN160: 3 | AO160: 5 | AP160: 0 | AQ160: L | AR160: 0 | AS160: 1 | AT160: 1 | AU160: 1 | AV160: 0 | AY160: 1 | AZ160: 2 | BA160: 2 | BB160: 1 | BC160: 3 | BD160: 3 | BE160: W | BF160: 18
A161: D | B161: 2021-04-02 | C161: Lambton Jaffas | D161: 0 - 2 | E161: Edgeworth Eagles | F161: 0-1 | AK161: 0 | AL161: 2 | AM161: 2 | AN161: 0 | AO161: 2 | AP161: 3 | AQ161: W | AR161: 18 | AS161: 0 | AT161: 0 | AU161: 0 | AV161: -1.5 | AY161: 0 | AZ161: 1 | BA161: 1 | BB161: 0 | BC161: 1 | BD161: 3 | BE161: W | BF161: 18
A162: D | B162: 2020-09-26 | C162: Maitland | D162: 2 - 1 | E162: Edgeworth Eagles | F162: 0-1 | AK162: 2 | AL162: 1 | AM162: 1 | AN162: 2 | AO162: 3 | AP162: 0 | AQ162: L | AR162: 0 | AS162: 1 | AT162: 1 | AU162: 1 | AV162: 0 | AY162: 0 | AZ162: 1 | BA162: 1 | BB162: 0 | BC162: 1 | BD162: 3 | BE162: W | BF162: 18
A163: D | B163: 2020-09-20 | C163: Hamilton Olympic | D163: 1 - 3 | E163: Edgeworth Eagles | F163: 0-1 | AK163: 1 | AL163: 3 | AM163: 3 | AN163: 1 | AO163: 4 | AP163: 3 | AQ163: W | AR163: 18 | AS163: 1 | AT163: 1 | AU163: 1 | AV163: 0 | AY163: 0 | AZ163: 1 | BA163: 1 | BB163: 0 | BC163: 1 | BD163: 3 | BE163: W | BF163: 18
A164: D | B164: 2020-09-06 | C164: Lambton Jaffas | D164: 3 - 1 | E164: Edgeworth Eagles | F164: 3-1 | AK164: 3 | AL164: 1 | AM164: 1 | AN164: 3 | AO164: 4 | AP164: 0 | AQ164: L | AR164: 0 | AS164: 1 | AT164: 1 | AU164: 1 | AV164: 0 | AY164: 3 | AZ164: 1 | BA164: 1 | BB164: 3 | BC164: 4 | BD164: 0 | BE164: L | BF164: 0
A165: D | B165: 2020-08-23 | C165: Valentine Phoenix | D165: 0 - 2 | E165: Edgeworth Eagles | F165: 0-0 | AK165: 0 | AL165: 2 | AM165: 2 | AN165: 0 | AO165: 2 | AP165: 3 | AQ165: W | AR165: 18 | AS165: 0 | AT165: 0 | AU165: 0 | AV165: -1.5 | AY165: 0 | AZ165: 0 | BA165: 0 | BB165: 0 | BC165: 0 | BD165: 1 | BE165: D | BF165: 6
A166: D | B166: 2020-08-09 | C166: Lake Macquarie | D166: 0 - 3 | E166: Edgeworth Eagles | F166: 0-3 | AK166: 0 | AL166: 3 | AM166: 3 | AN166: 0 | AO166: 3 | AP166: 3 | AQ166: W | AR166: 18 | AS166: 1 | AT166: 0 | AU166: 1 | AV166: -0.75 | AY166: 0 | AZ166: 3 | BA166: 3 | BB166: 0 | BC166: 3 | BD166: 3 | BE166: W | BF166: 18
A167: D | B167: 2020-08-02 | C167: Broadmeadow Magic | D167: 0 - 1 | E167: Edgeworth Eagles | F167: 0-0 | AK167: 0 | AL167: 1 | AM167: 1 | AN167: 0 | AO167: 1 | AP167: 3 | AQ167: W | AR167: 18 | AS167: 0 | AT167: 0 | AU167: 0 | AV167: -1.5 | AY167: 0 | AZ167: 0 | BA167: 0 | BB167: 0 | BC167: 0 | BD167: 1 | BE167: D | BF167: 6
A168: D | B168: 2020-07-19 | C168: Adamstown Rosebuds | D168: 1 - 3 | E168: Edgeworth Eagles | F168: 0-2 | AK168: 1 | AL168: 3 | AM168: 3 | AN168: 1 | AO168: 4 | AP168: 3 | AQ168: W | AR168: 18 | AS168: 1 | AT168: 1 | AU168: 1 | AV168: 0 | AY168: 0 | AZ168: 2 | BA168: 2 | BB168: 0 | BC168: 2 | BD168: 3 | BE168: W | BF168: 18
A169: D | B169: 2019-08-25 | C169: Lambton Jaffas | D169: 3 - 0 | E169: Edgeworth Eagles | F169: 2-0 | AK169: 3 | AL169: 0 | AM169: 0 | AN169: 3 | AO169: 3 | AP169: 0 | AQ169: L | AR169: 0 | AS169: 1 | AT169: 0 | AU169: 1 | AV169: -0.75 | AY169: 2 | AZ169: 0 | BA169: 0 | BB169: 2 | BC169: 2 | BD169: 0 | BE169: L | BF169: 0
A170: D | B170: 2019-08-04 | C170: Valentine Phoenix | D170: 3 - 1 | E170: Edgeworth Eagles | F170: 1-0 | AK170: 3 | AL170: 1 | AM170: 1 | AN170: 3 | AO170: 4 | AP170: 0 | AQ170: L | AR170: 0 | AS170: 1 | AT170: 1 | AU170: 1 | AV170: 0 | AY170: 1 | AZ170: 0 | BA170: 0 | BB170: 1 | BC170: 1 | BD170: 0 | BE170: L | BF170: 0
A171: D | B171: 2019-07-24 | C171: Darwin Olympic | D171: 0 - 3 | E171: Edgeworth Eagles | F171: 0-2 | AK171: 0 | AL171: 3 | AM171: 3 | AN171: 0 | AO171: 3 | AP171: 3 | AQ171: W | AR171: 18 | AS171: 1 | AT171: 0 | AU171: 1 | AV171: -0.75 | AY171: 0 | AZ171: 2 | BA171: 2 | BB171: 0 | BC171: 2 | BD171: 3 | BE171: W | BF171: 18
A172: D | B172: 2019-07-13 | C172: Adamstown Rosebuds | D172: 0 - 1 | E172: Edgeworth Eagles | F172: 0-1 | AK172: 0 | AL172: 1 | AM172: 1 | AN172: 0 | AO172: 1 | AP172: 3 | AQ172: W | AR172: 18 | AS172: 0 | AT172: 0 | AU172: 0 | AV172: -1.5 | AY172: 0 | AZ172: 1 | BA172: 1 | BB172: 0 | BC172: 1 | BD172: 3 | BE172: W | BF172: 18
A173: D | B173: 2019-07-06 | C173: Hamilton Olympic | D173: 1 - 4 | E173: Edgeworth Eagles | F173: 1-0 | AK173: 1 | AL173: 4 | AM173: 4 | AN173: 1 | AO173: 5 | AP173: 3 | AQ173: W | AR173: 18 | AS173: 1 | AT173: 1 | AU173: 1 | AV173: 0 | AY173: 1 | AZ173: 0 | BA173: 0 | BB173: 1 | BC173: 1 | BD173: 0 | BE173: L | BF173: 0
A174: D | B174: 2019-06-23 | C174: Newcastle Jets II | D174: 1 - 2 | E174: Edgeworth Eagles | F174: 1-1 | AK174: 1 | AL174: 2 | AM174: 2 | AN174: 1 | AO174: 3 | AP174: 3 | AQ174: W | AR174: 18 | AS174: 1 | AT174: 1 | AU174: 1 | AV174: 0 | AY174: 1 | AZ174: 1 | BA174: 1 | BB174: 1 | BC174: 2 | BD174: 1 | BE174: D | BF174: 6
A175: D | B175: 2019-06-16 | C175: Charlestown City B | D175: 1 - 0 | E175: Edgeworth Eagles | F175: 0-0 | AK175: 1 | AL175: 0 | AM175: 0 | AN175: 1 | AO175: 1 | AP175: 0 | AQ175: L | AR175: 0 | AS175: 0 | AT175: 0 | AU175: 0 | AV175: -1.5 | AY175: 0 | AZ175: 0 | BA175: 0 | BB175: 0 | BC175: 0 | BD175: 1 | BE175: D | BF175: 6
A176: D | B176: 2019-05-19 | C176: Weston Bears | D176: 2 - 1 | E176: Edgeworth Eagles | F176: 0-0 | AK176: 2 | AL176: 1 | AM176: 1 | AN176: 2 | AO176: 3 | AP176: 0 | AQ176: L | AR176: 0 | AS176: 1 | AT176: 1 | AU176: 1 | AV176: 0 | AY176: 0 | AZ176: 0 | BA176: 0 | BB176: 0 | BC176: 0 | BD176: 1 | BE176: D | BF176: 6
A177: D | B177: 2018-08-19 | C177: Valentine Phoenix | D177: 0 - 1 | E177: Edgeworth Eagles | F177: 0-0 | AK177: 0 | AL177: 1 | AM177: 1 | AN177: 0 | AO177: 1 | AP177: 3 | AQ177: W | AR177: 18 | AS177: 0 | AT177: 0 | AU177: 0 | AV177: -1.5 | AY177: 0 | AZ177: 0 | BA177: 0 | BB177: 0 | BC177: 0 | BD177: 1 | BE177: D | BF177: 6
A178: D | B178: 2018-08-05 | C178: Adamstown Rosebuds | D178: 0 - 1 | E178: Edgeworth Eagles | F178: 0-0 | AK178: 0 | AL178: 1 | AM178: 1 | AN178: 0 | AO178: 1 | AP178: 3 | AQ178: W | AR178: 18 | AS178: 0 | AT178: 0 | AU178: 0 | AV178: -1.5 | AY178: 0 | AZ178: 0 | BA178: 0 | BB178: 0 | BC178: 0 | BD178: 1 | BE178: D | BF178: 6
A179: D | B179: 2018-07-22 | C179: Charlestown City B | D179: 0 - 2 | E179: Edgeworth Eagles | F179: 0-1 | AK179: 0 | AL179: 2 | AM179: 2 | AN179: 0 | AO179: 2 | AP179: 3 | AQ179: W | AR179: 18 | AS179: 0 | AT179: 0 | AU179: 0 | AV179: -1.5 | AY179: 0 | AZ179: 1 | BA179: 1 | BB179: 0 | BC179: 1 | BD179: 3 | BE179: W | BF179: 18
B180: G | C180: B | D180: M | E180: AG | F180: YG
A181: İlk Yarı | B181: 12 | C181: 9 | D181: 9 | E181: 25 | F181: 17
A182: Maç Sonu | B182: 19 | C182: 0 | D182: 11 | E182: 55 | F182: 38 | AJ182: =AR148-AR182 -> 24 | AM182: =SUM(AM150:AM181) -> 55 | AN182: =SUM(AN150:AN181) -> 38 | AR182: =SUM(AR150:AR181) -> 342 | AS182: =SUM(AS150:AS153) -> 3 | AT182: =SUM(AT150:AT153) -> 3 | AU182: =SUM(AU150:AU153) -> 3 | AV182: =SUM(AV150:AV153) -> -1.5 | AX182: =BF148-BF182 -> 60 | BA182: =SUM(BA150:BA181) -> 25 | BB182: =SUM(BB150:BB181) -> 17 | BF182: =SUM(BF150:BF181) -> 270
A183: Rekabet Analizi
B184: Tarih | C184: EvSahibi | D184: MS | E184: Deplasman | F184: İY | G184: Lig
A185: Detay | B185: 2021-04-02 | C185: Lambton Jaffas | D185: 0 - 2 | E185: Edgeworth Eagles | F185: 0-1 | G185: Avustralya-Ulusal Premier Lig Kuzey YGG
A186: Detay | B186: 2020-09-06 | C186: Lambton Jaffas | D186: 3 - 1 | E186: Edgeworth Eagles | F186: 3-1 | G186: Avustralya-Ulusal Premier Lig Kuzey YGG
A187: Detay | B187: 2019-08-25 | C187: Lambton Jaffas | D187: 3 - 0 | E187: Edgeworth Eagles | F187: 2-0 | G187: Avustralya-Ulusal Premier Lig Kuzey YGG
A188: Detay | B188: 2018-03-17 | C188: Lambton Jaffas | D188: 4 - 3 | E188: Edgeworth Eagles | F188: 2-1 | G188: Avustralya - Ulusal Premier Lig Kuzey YGG
A189: Detay | B189: 2017-06-10 | C189: Lambton Jaffas | D189: 0 - 5 | E189: Edgeworth Eagles | G189: Avustralya - FFA Kupasi 6.Tur
A190: Detay | B190: 2017-03-29 | C190: Lambton Jaffas | D190: 2 - 1 | E190: Edgeworth Eagles | F190: 0-0 | G190: Avustralya - Ulusal Premier Lig Kuzey YGG
A191: Detay | B191: 2016-04-09 | C191: Lambton Jaffas | D191: 1 - 2 | E191: Edgeworth Eagles | F191: 0-0 | G191: Avustralya - Ulusal Premier Lig Kuzey YGG
A192: Detay | B192: 2015-07-25 | C192: Lambton Jaffas | D192: 1 - 2 | E192: Edgeworth Eagles | G192: Avustralya - Ulusal Premier Lig Kuzey YGG
A193: Detay | B193: 2014-05-10 | C193: Lambton Jaffas | D193: 0 - 0 | E193: Edgeworth Eagles | F193: 0-0 | G193: Avustralya - Ulusal Premier Lig Kuzey YGG
A194: Detay | B194: 2013-07-20 | C194: Lambton Jaffas | D194: 4 - 3 | E194: Edgeworth Eagles | F194: 2-2 | G194: Avustralya - Ulusal Premier Lig Kuzey YGG
A195: Bahis oynayan tüm bireyler, bulunduğu ülkenin kural ve yasalarından sorumludur
A198: Detay | B198: 2013-08-25 | C198: Cooma Tigers | D198: 2 - 7 | E198: Canberra FC | F198: 1-4 | G198: Avustralya - Ulusal Premier Lig Baskent Bölgesi
A199: Detay | B199: 2012-08-19 | C199: Cooma Tigers | D199: 0 - 0 | E199: Canberra FC | G199: Avustralya - Ulusal Premier Lig Baskent Bölgesi
A200: Detay | B200: 2012-05-13 | C200: Cooma Tigers | D200: 1 - 1 | E200: Canberra FC | G200: Avustralya - Ulusal Premier Lig Baskent Bölgesi
A201: Detay | B201: 2011-07-31 | C201: Cooma Tigers | D201: 3 - 3 | E201: Canberra FC | G201: Avustralya - Ulusal Premier Lig Baskent Bölgesi
A202: Detay | B202: 2010-05-08 | C202: Cooma Tigers | D202: 1 - 1 | E202: Canberra FC | G202: Avustralya - Ulusal Premier Lig Baskent Bölgesi
A203: Bahis oynayan tüm bireyler, bulunduğu ülkenin kural ve yasalarından sorumludur
A205: Detay | B205: 2010-09-26 | C205: Bolivar | D205: 1 - 0 | E205: Blooming | F205: 0-0 | G205: Bolivya - LFPB Clausura
A206: Detay | B206: 2009-10-22 | C206: Bolivar | D206: 1 - 1 | E206: Blooming | F206: 1-1 | G206: Bolivya - LFPB Clausura Play Off
A207: Detay | B207: 2009-09-17 | C207: Bolivar | D207: 4 - 1 | E207: Blooming | F207: 2-1 | G207: Bolivya - LFPB Clausura
A208: Detay | B208: 2009-04-19 | C208: Bolivar | D208: 0 - 0 | E208: Blooming | F208: 0-0 | G208: Bolivya - LFPB Apertura
A209: Detay | B209: 2008-05-01 | C209: Bolivar | D209: 0 - 0 | E209: Blooming | G209: Bolivya - LFPB Apertura
A210: Detay | B210: 2007-05-17 | C210: Bolivar | D210: 3 - 2 | E210: Blooming | F210: 3-0 | G210: Bolivya - LFPB Apertura
A211: Detay | B211: 2006-11-27 | C211: Bolivar | D211: 2 - 2 | E211: Blooming | G211: Bolivya - LFPB Hexagonal Final
A212: Detay | B212: 2006-04-23 | C212: Bolivar | D212: 2 - 1 | E212: Blooming | G212: Bolivya - LFPB Clausura
A213: Detay | B213: 2005-11-23 | C213: Bolivar | D213: 4 - 2 | E213: Blooming | G213: Bolivya - LFPB Hexagonal Final
A214: Detay | B214: 2005-04-07 | C214: Bolivar | D214: 5 - 0 | E214: Blooming | F214: 0-0 | G214: Bolivya - LFPB Torneo Adecuacion
A215: Detay | B215: 2004-11-10 | C215: Bolivar | D215: 6 - 2 | E215: Blooming | F215: 0-0 | G215: Bolivya - LFPB Clausura 2.Tur
A216: Detay | B216: 2004-05-19 | C216: Bolivar | D216: 4 - 0 | E216: Blooming | F216: 0-0 | G216: Bolivya - LFPB Apertura
A217: Bahis oynayan tüm bireyler, bulunduğu ülkenin kural ve yasalarından sorumludur

Sheet Veri3
B2: Standings | M2: İLK YARI SONUCU | AC2: ANALİZ SONUÇLARI | AD2: =$B$3 -> [4] Lambton Jarvis | AG2: =$B$14 -> [5] Edgeworth Eagles FC | AJ2: BTT/KG VE HT/FT-İY/MS
B3: [4] Lambton Jarvis | M3: EV SAHİBİ | N3: O | O3: G | P3: B | Q3: M | R3: A | S3: Y | T3: G | U3: B | V3: M | W3: A | X3: Y | Y3: AV | Z3: TOPL. PU | AA3: ORT. PU | AD3: HT/İY | AG3: FT/MS
B4: FT | C4: Matches | D4: Win | E4: Draw | F4: Loss | G4: Scored | H4: Conceded | I4: Pts | J4: Rank | K4: Rate | M4: GENEL | N4: =C10 -> 7 | O4: 3 | P4: 3 | Q4: 1 | R4: 5 | S4: 3 | T4: =IF(N4=0,0,O4/N4) -> 0.4285714286 | U4: =IF(N4=0,0,P4/N4) -> 0.4285714286 | V4: =IF(N4=0,0,Q4/N4) -> 0.1428571429 | W4: =IF(N4=0,0,R4/N4) -> 0.7142857143 | X4: =IF(N4=0,0,S4/N4) -> 0.4285714286 | Y4: =R4-S4 -> 2 | Z4: =(O4*3)+(P4*1)+(Q4*0) -> 12 | AA4: =Z4/N4 -> 1.714285714 | AD4: 1-X-2 | AE4: SKOR | AF4: ALT-ÜST | AG4: 1-X-2 | AH4: SKOR | AI4: ALT-ÜST | AJ4: BTT/KG VAR | AK4: SONUÇ
B5: Total | C5: 7 | D5: 4 | E5: 2 | F5: 1 | G5: 10 | H5: 7 | I5: 14 | J5: 4 | K5: 57.1% | M5: İÇERDE | N5: 3 | O5: 1 | P5: 2 | Q5: 0 | R5: 2 | S5: 1 | T5: =IF(N5=0,0,O5/N5) -> 0.3333333333 | U5: =IF(N5=0,0,P5/N5) -> 0.6666666667 | V5: =IF(N5=0,0,Q5/N5) -> 0 | W5: =IF(N5=0,0,R5/N5) -> 0.6666666667 | X5: =IF(N5=0,0,S5/N5) -> 0.3333333333 | Y5: =R5-S5 -> 1 | Z5: =(O5*3)+(P5*1)+(Q5*0) -> 5 | AA5: =Z5/N5 -> 1.666666667 | AC5: GENEL ANALİZ | AD5: =LEFT(NW!$K$10,1) -> X | AE5: =NW!H10 -> 1 - 1 | AF5: =NW!H19 -> 1.5 GOL ÜST | AG5: =RIGHT(NW!$K$10,1) -> 1 | AH5: =NW!P10 -> 2 - 1 | AI5: =NW!M19 -> 2.5 GOL ÜST | AJ5: =NW!K8 -> VAR | AK5: =NW!K10 -> X / 1
B6: Home | C6: 3 | D6: 1 | E6: 2 | F6: 0 | G6: 4 | H6: 3 | I6: 5 | J6: 7 | K6: 33.3% | M6: DIŞARDA | N6: 4 | O6: 2 | P6: 1 | Q6: 1 | R6: 3 | S6: 2 | T6: =IF(N6=0,0,O6/N6) -> 0.5 | U6: =IF(N6=0,0,P6/N6) -> 0.25 | V6: =IF(N6=0,0,Q6/N6) -> 0.25 | W6: =IF(N6=0,0,R6/N6) -> 0.75 | X6: =IF(N6=0,0,S6/N6) -> 0.5 | Y6: =R6-S6 -> 1 | Z6: =(O6*3)+(P6*1)+(Q6*0) -> 7 | AA6: =Z6/N6 -> 1.75 | AC6: İÇ-DIŞ ANALİZ | AD6: =LEFT(NW!$AJ$10,1) -> 1 | AE6: =NW!AG10 -> 1 - 0 | AF6: =NW!AG19 -> 1.5 GOL ÜST | AG6: =RIGHT(NW!$AJ$10,1) -> 1 | AH6: =NW!AO10 -> 2 - 1 | AI6: =NW!AL19 -> 2.5 GOL ÜST | AJ6: =NW!AJ8 -> VAR | AK6: =NW!AJ10 -> 1 / 1
B7: Away | C7: 4 | D7: 3 | E7: 0 | F7: 1 | G7: 6 | H7: 4 | I7: 9 | J7: 3 | K7: 75.0% | M7: SON 6 MAÇ | N7: 6 | O7: 3 | P7: 2 | Q7: 1 | R7: 5 | S7: 3 | T7: =IF(N7=0,0,O7/N7) -> 0.5 | U7: =IF(N7=0,0,P7/N7) -> 0.3333333333 | V7: =IF(N7=0,0,Q7/N7) -> 0.1666666667 | W7: =IF(N7=0,0,R7/N7) -> 0.8333333333 | X7: =IF(N7=0,0,S7/N7) -> 0.5 | Y7: =R7-S7 -> 2 | Z7: =(O7*3)+(P7*1)+(Q7*0) -> 11 | AA7: =Z7/N7 -> 1.833333333 | AC7: SON 6 ANALİZİ | AD7: =LEFT(NW!$BG$10,1) -> X | AE7: =NW!BD10 -> 1 - 1 | AF7: =NW!BD19 -> 1.5 GOL ÜST | AG7: =RIGHT(NW!$BG$10,1) -> 1 | AH7: =NW!BL10 -> 2 - 1 | AI7: =NW!BI19 -> 2.5 GOL ÜST | AJ7: =NW!BG8 -> VAR | AK7: =NW!BG10 -> X / 1
B8: Last 6 | C8: 6 | D8: 3 | E8: 2 | F8: 1 | G8: 8 | H8: 6 | I8: 11 | K8: 50.0%
B9: HT | C9: Matches | D9: Win | E9: Draw | F9: Loss | G9: Scored | H9: Conceded | I9: Pts | J9: Rank | K9: Rate | M9: DEPLASMAN | N9: O | O9: G | P9: B | Q9: M | R9: A | S9: Y | T9: G | U9: B | V9: M | W9: A | X9: Y | Y9: AV | Z9: TOPL. PU | AA9: ORT. PU
B10: Total | C10: 7 | D10: 3 | E10: 3 | F10: 1 | G10: 5 | H10: 3 | I10: 12 | J10: 4 | K10: 42.9% | M10: GENEL | N10: =C21 -> 9 | O10: 3 | P10: 2 | Q10: 4 | R10: 8 | S10: 6 | T10: =IF(N10=0,0,O10/N10) -> 0.3333333333 | U10: =IF(N10=0,0,P10/N10) -> 0.2222222222 | V10: =IF(N10=0,0,Q10/N10) -> 0.4444444444 | W10: =IF(N10=0,0,R10/N10) -> 0.8888888889 | X10: =IF(N10=0,0,S10/N10) -> 0.6666666667 | Y10: =R10-S10 -> 2 | Z10: =(O10*3)+(P10*1)+(Q10*0) -> 11 | AA10: =Z10/N10 -> 1.222222222
B11: Home | C11: 3 | D11: 1 | E11: 2 | F11: 0 | G11: 2 | H11: 1 | I11: 5 | J11: 8 | K11: 33.3% | M11: İÇERDE | N11: 4 | O11: 2 | P11: 1 | Q11: 1 | R11: 4 | S11: 1 | T11: =IF(N11=0,0,O11/N11) -> 0.5 | U11: =IF(N11=0,0,P11/N11) -> 0.25 | V11: =IF(N11=0,0,Q11/N11) -> 0.25 | W11: =IF(N11=0,0,R11/N11) -> 1 | X11: =IF(N11=0,0,S11/N11) -> 0.25 | Y11: =R11-S11 -> 3 | Z11: =(O11*3)+(P11*1)+(Q11*0) -> 7 | AA11: =Z11/N11 -> 1.75
B12: Away | C12: 4 | D12: 2 | E12: 1 | F12: 1 | G12: 3 | H12: 2 | I12: 7 | J12: 2 | K12: 50.0% | M12: DIŞARDA | N12: 5 | O12: 1 | P12: 1 | Q12: 3 | R12: 4 | S12: 5 | T12: =IF(N12=0,0,O12/N12) -> 0.2 | U12: =IF(N12=0,0,P12/N12) -> 0.2 | V12: =IF(N12=0,0,Q12/N12) -> 0.6 | W12: =IF(N12=0,0,R12/N12) -> 0.8 | X12: =IF(N12=0,0,S12/N12) -> 1 | Y12: =R12-S12 -> -1 | Z12: =(O12*3)+(P12*1)+(Q12*0) -> 4 | AA12: =Z12/N12 -> 0.8
B13: Last 6 | C13: 6 | D13: 3 | E13: 2 | F13: 1 | G13: 5 | H13: 3 | I13: 11 | K13: 50.0% | M13: SON 6 MAÇ | N13: 6 | O13: 3 | P13: 0 | Q13: 3 | R13: 8 | S13: 5 | T13: =IF(N13=0,0,O13/N13) -> 0.5 | U13: =IF(N13=0,0,P13/N13) -> 0 | V13: =IF(N13=0,0,Q13/N13) -> 0.5 | W13: =IF(N13=0,0,R13/N13) -> 1.333333333 | X13: =IF(N13=0,0,S13/N13) -> 0.8333333333 | Y13: =R13-S13 -> 3 | Z13: =(O13*3)+(P13*1)+(Q13*0) -> 9 | AA13: =Z13/N13 -> 1.5
B14: [5] Edgeworth Eagles FC
B15: FT | C15: Matches | D15: Win | E15: Draw | F15: Loss | G15: Scored | H15: Conceded | I15: Pts | J15: Rank | K15: Rate | M15: MAÇ SONUCU
B16: Total | C16: 9 | D16: 4 | E16: 1 | F16: 4 | G16: 14 | H16: 16 | I16: 13 | J16: 5 | K16: 44.4% | M16: EV SAHİBİ | N16: O | O16: G | P16: B | Q16: M | R16: A | S16: Y | T16: G | U16: B | V16: M | W16: A | X16: Y | Y16: AV | Z16: TOPL. PU | AA16: ORT. PU
B17: Home | C17: 4 | D17: 2 | E17: 1 | F17: 1 | G17: 6 | H17: 4 | I17: 7 | J17: 5 | K17: 50.0% | M17: GENEL | N17: =C5 -> 7 | O17: 4 | P17: 2 | Q17: 1 | R17: 10 | S17: 7 | T17: =IF(N17=0,0,O17/N17) -> 0.5714285714 | U17: =IF(N17=0,0,P17/N17) -> 0.2857142857 | V17: =IF(N17=0,0,Q17/N17) -> 0.1428571429 | W17: =IF(N17=0,0,R17/N17) -> 1.428571429 | X17: =IF(N17=0,0,S17/N17) -> 1 | Y17: =R17-S17 -> 3 | Z17: =(O17*3)+(P17*1)+(Q17*0) -> 14 | AA17: =Z17/N17 -> 2
B18: Away | C18: 5 | D18: 2 | E18: 0 | F18: 3 | G18: 8 | H18: 12 | I18: 6 | J18: 5 | K18: 40.0% | M18: İÇERDE | N18: 3 | O18: 1 | P18: 2 | Q18: 0 | R18: 4 | S18: 3 | T18: =IF(N18=0,0,O18/N18) -> 0.3333333333 | U18: =IF(N18=0,0,P18/N18) -> 0.6666666667 | V18: =IF(N18=0,0,Q18/N18) -> 0 | W18: =IF(N18=0,0,R18/N18) -> 1.333333333 | X18: =IF(N18=0,0,S18/N18) -> 1 | Y18: =R18-S18 -> 1 | Z18: =(O18*3)+(P18*1)+(Q18*0) -> 5 | AA18: =Z18/N18 -> 1.666666667
B19: Last 6 | C19: 6 | D19: 3 | E19: 1 | F19: 2 | G19: 12 | H19: 11 | I19: 10 | K19: 50.0% | M19: DIŞARDA | N19: 4 | O19: 3 | P19: 0 | Q19: 1 | R19: 6 | S19: 4 | T19: =IF(N19=0,0,O19/N19) -> 0.75 | U19: =IF(N19=0,0,P19/N19) -> 0 | V19: =IF(N19=0,0,Q19/N19) -> 0.25 | W19: =IF(N19=0,0,R19/N19) -> 1.5 | X19: =IF(N19=0,0,S19/N19) -> 1 | Y19: =R19-S19 -> 2 | Z19: =(O19*3)+(P19*1)+(Q19*0) -> 9 | AA19: =Z19/N19 -> 2.25
B20: HT | C20: Matches | D20: Win | E20: Draw | F20: Loss | G20: Scored | H20: Conceded | I20: Pts | J20: Rank | K20: Rate | M20: SON 6 MAÇ | N20: 6 | O20: 3 | P20: 2 | Q20: 1 | R20: 8 | S20: 6 | T20: =IF(N20=0,0,O20/N20) -> 0.5 | U20: =IF(N20=0,0,P20/N20) -> 0.3333333333 | V20: =IF(N20=0,0,Q20/N20) -> 0.1666666667 | W20: =IF(N20=0,0,R20/N20) -> 1.333333333 | X20: =IF(N20=0,0,S20/N20) -> 1 | Y20: =R20-S20 -> 2 | Z20: =(O20*3)+(P20*1)+(Q20*0) -> 11 | AA20: =Z20/N20 -> 1.833333333
B21: Total | C21: 9 | D21: 3 | E21: 2 | F21: 4 | G21: 8 | H21: 6 | I21: 11 | J21: 6 | K21: 33.3%
B22: Home | C22: 4 | D22: 2 | E22: 1 | F22: 1 | G22: 4 | H22: 1 | I22: 7 | J22: 5 | K22: 50.0% | M22: DEPLASMAN | N22: O | O22: G | P22: B | Q22: M | R22: A | S22: Y | T22: G | U22: B | V22: M | W22: A | X22: Y | Y22: AV | Z22: TOPL. PU | AA22: ORT. PU
B23: Away | C23: 5 | D23: 1 | E23: 1 | F23: 3 | G23: 4 | H23: 5 | I23: 4 | J23: 7 | K23: 20.0% | M23: GENEL | N23: =C16 -> 9 | O23: 4 | P23: 1 | Q23: 4 | R23: 14 | S23: 16 | T23: =IF(N23=0,0,O23/N23) -> 0.4444444444 | U23: =IF(N23=0,0,P23/N23) -> 0.1111111111 | V23: =IF(N23=0,0,Q23/N23) -> 0.4444444444 | W23: =IF(N23=0,0,R23/N23) -> 1.555555556 | X23: =IF(N23=0,0,S23/N23) -> 1.777777778 | Y23: =R23-S23 -> -2 | Z23: =(O23*3)+(P23*1)+(Q23*0) -> 13 | AA23: =Z23/N23 -> 1.444444444
B24: Last 6 | C24: 6 | D24: 3 | E24: 0 | F24: 3 | G24: 8 | H24: 5 | I24: 9 | K24: 50.0% | M24: İÇERDE | N24: 4 | O24: 2 | P24: 1 | Q24: 1 | R24: 6 | S24: 4 | T24: =IF(N24=0,0,O24/N24) -> 0.5 | U24: =IF(N24=0,0,P24/N24) -> 0.25 | V24: =IF(N24=0,0,Q24/N24) -> 0.25 | W24: =IF(N24=0,0,R24/N24) -> 1.5 | X24: =IF(N24=0,0,S24/N24) -> 1 | Y24: =R24-S24 -> 2 | Z24: =(O24*3)+(P24*1)+(Q24*0) -> 7 | AA24: =Z24/N24 -> 1.75
M25: DIŞARDA | N25: 5 | O25: 2 | P25: 0 | Q25: 3 | R25: 8 | S25: 12 | T25: =IF(N25=0,0,O25/N25) -> 0.4 | U25: =IF(N25=0,0,P25/N25) -> 0 | V25: =IF(N25=0,0,Q25/N25) -> 0.6 | W25: =IF(N25=0,0,R25/N25) -> 1.6 | X25: =IF(N25=0,0,S25/N25) -> 2.4 | Y25: =R25-S25 -> -4 | Z25: =(O25*3)+(P25*1)+(Q25*0) -> 6 | AA25: =Z25/N25 -> 1.2
M26: SON 6 MAÇ | N26: 6 | O26: 3 | P26: 1 | Q26: 2 | R26: 12 | S26: 11 | T26: =IF(N26=0,0,O26/N26) -> 0.5 | U26: =IF(N26=0,0,P26/N26) -> 0.1666666667 | V26: =IF(N26=0,0,Q26/N26) -> 0.3333333333 | W26: =IF(N26=0,0,R26/N26) -> 2 | X26: =IF(N26=0,0,S26/N26) -> 1.833333333 | Y26: =R26-S26 -> 1 | Z26: =(O26*3)+(P26*1)+(Q26*0) -> 10 | AA26: =Z26/N26 -> 1.666666667

Sheet Most
G1: PIF - EIF * 08.06.2022 / 12:00 * Avustralya-Ulusal Premier Lig Kuzey YGG | AI1: Tarih | AJ1: EvSahibi | AK1: MS | AL1: Deplasman | AM1: İY | AO1: Tarih | AP1: EvSahibi | AQ1: MS | AR1: Deplasman | AS1: İY
B2: =G11 -> Lambton Jaffas | G2: PLAYER | Q2: =N11 -> Edgeworth Eagles | AH2: =Veri2!A116 -> D | AI2: =Veri2!B116 -> 2022-06-04 | AJ2: =Veri2!C116 -> Lambton Jaffas | AK2: =IF(Veri2!D116="","0 - 0",Veri2!D116) -> 1 - 1 | AL2: =Veri2!E116 -> Weston Bears | AM2: =IF(Veri2!F116="","0-0",Veri2!F116) -> 1-0 | AN2: =Veri2!A150 -> D | AO2: =Veri2!B150 -> 2022-05-29 | AP2: =Veri2!C150 -> Valentine Phoenix | AQ2: =IF(Veri2!D150="","0 - 0",Veri2!D150) -> 1 - 0 | AR2: =Veri2!E150 -> Edgeworth Eagles | AS2: =IF(Veri2!F150="","0-0",Veri2!F150) -> 1-0
G3: http://betistuta.club/Futbol.aspx | AH3: =Veri2!A117 -> D | AI3: =Veri2!B117 -> 2022-05-04 | AJ3: =Veri2!C117 -> Lambton Jaffas | AK3: =IF(Veri2!D117="","0 - 0",Veri2!D117) -> 1 - 1 | AL3: =Veri2!E117 -> Newcastle Olympic | AM3: =IF(Veri2!F117="","0-0",Veri2!F117) -> 1-1 | AN3: =Veri2!A151 -> D | AO3: =Veri2!B151 -> 2022-05-01 | AP3: =Veri2!C151 -> Lake Macquarie | AQ3: =IF(Veri2!D151="","0 - 0",Veri2!D151) -> 2 - 4 | AR3: =Veri2!E151 -> Edgeworth Eagles | AS3: =IF(Veri2!F151="","0-0",Veri2!F151) -> 0-3
B4: =G11 -> Lambton Jaffas | C4: =I11 -> Edgeworth Eagles | D4: Ortalama | J4: UNDER / OVER | Q4: =L11 -> Lambton Jaffas | R4: =N11 -> Edgeworth Eagles | S4: Ortalama | AH4: =Veri2!A118 -> D | AI4: =Veri2!B118 -> 2022-03-20 | AJ4: =Veri2!C118 -> Lambton Jaffas | AK4: =IF(Veri2!D118="","0 - 0",Veri2!D118) -> 2 - 1 | AL4: =Veri2!E118 -> Broadmeadow Magic | AM4: =IF(Veri2!F118="","0-0",Veri2!F118) -> 0-0 | AN4: =Veri2!A152 -> D | AO4: =Veri2!B152 -> 2022-04-10 | AP4: =Veri2!C152 -> Charlestown City B | AQ4: =IF(Veri2!D152="","0 - 0",Veri2!D152) -> 6 - 2 | AR4: =Veri2!E152 -> Edgeworth Eagles | AS4: =IF(Veri2!F152="","0-0",Veri2!F152) -> 3-1
B5: =AK43+0.005 -> 0.605 | C5: =AQ43+0.005 -> 1.005 | D5: gPS | E5: Number of Positions Entered | J5: BTTS / KARŞILIKLI GOL | Q5: =AI57+0.005 -> 2.205 | R5: =AO57+0.005 -> 2.405 | S5: gPS | T5: Number of Positions Entered | AH5: =Veri2!A119 -> D | AI5: =Veri2!B119 -> 2021-08-01 | AJ5: =Veri2!C119 -> Lambton Jaffas | AK5: =IF(Veri2!D119="","0 - 0",Veri2!D119) -> 2 - 1 | AL5: =Veri2!E119 -> Broadmeadow Magic | AM5: =IF(Veri2!F119="","0-0",Veri2!F119) -> 1-0 | AN5: =Veri2!A153 -> D | AO5: =Veri2!B153 -> 2022-04-02 | AP5: =Veri2!C153 -> Broadmeadow Magic | AQ5: =IF(Veri2!D153="","0 - 0",Veri2!D153) -> 3 - 1 | AR5: =Veri2!E153 -> Edgeworth Eagles | AS5: =IF(Veri2!F153="","0-0",Veri2!F153) -> 1-0
B6: =AL43+0.005 -> 0.205 | C6: =AR43+0.005 -> 0.805 | D6: vPS | E6: Number of Positions Given | J6: =IF(AND(Q22>=1,R22>=1),"VAR","YOK") -> VAR | Q6: =AJ57+0.005 -> 1.005 | R6: =AP57+0.005 -> 1.605 | S6: vPS | T6: Number of Positions Given | AH6: =Veri2!A120 -> D | AI6: =Veri2!B120 -> 2021-07-10 | AJ6: =Veri2!C120 -> Lambton Jaffas | AK6: =IF(Veri2!D120="","0 - 0",Veri2!D120) -> 5 - 1 | AL6: =Veri2!E120 -> Adamstown Rosebuds | AM6: =IF(Veri2!F120="","0-0",Veri2!F120) -> 0-0 | AN6: =Veri2!A154 -> D | AO6: =Veri2!B154 -> 2022-03-12 | AP6: =Veri2!C154 -> Adamstown Rosebuds | AQ6: =IF(Veri2!D154="","0 - 0",Veri2!D154) -> 0 - 1 | AR6: =Veri2!E154 -> Edgeworth Eagles | AS6: =IF(Veri2!F154="","0-0",Veri2!F154) -> 0-0
B7: =((B5+1)/(B6+1))+0.005 -> 1.336950207 | C7: =((C5+1)/(C6+1))+0.005 -> 1.115803324 | D7: pBAS | E7: Number Per Position | J7: HT / FT | Q7: =((Q5+1)/(Q6+1))+0.005 -> 1.603503741 | R7: =((R5+1)/(R6+1))+0.005 -> 1.312101727 | S7: pBAS | T7: Number Per Position | AH7: =Veri2!A121 -> D | AI7: =Veri2!B121 -> 2021-06-05 | AJ7: =Veri2!C121 -> Lambton Jaffas | AK7: =IF(Veri2!D121="","0 - 0",Veri2!D121) -> 4 - 1 | AL7: =Veri2!E121 -> Weston Bears | AM7: =IF(Veri2!F121="","0-0",Veri2!F121) -> 2-1 | AN7: =Veri2!A155 -> D | AO7: =Veri2!B155 -> 2021-07-04 | AP7: =Veri2!C155 -> Newcastle Olympic | AQ7: =IF(Veri2!D155="","0 - 0",Veri2!D155) -> 1 - 2 | AR7: =Veri2!E155 -> Edgeworth Eagles | AS7: =IF(Veri2!F155="","0-0",Veri2!F155) -> 0-2
B8: =((B6+1)/(B5+1))+0.005 -> 0.7557788162 | C8: =((C6+1)/(C5+1))+0.005 -> 0.9052493766 | D8: pBYS | E8: Number Eats Per Position | J8: =IF(AND((G12>I12),(L12>N12)),"1 / 1",IF(AND((G12=I12),(L12>N12)),"X / 1",IF(AND((G12<I12),(L12>N12)),"2 / 1",IF(AND((G12>I12),(L12=N12)),"1 / X",IF(AND((G12=I12),(L12=N12)),"X / X",IF(AND((G12<I12),(L12=N12)),"2 / X",IF(AND((G12>I12),(L12<N12)),"1 / 2",IF(AND((G12=I12),(L12<N12)),"X / 2",IF(AND((G12<I12),(L12<N12)),"2 / 2"))))))))) -> X / 1 | Q8: =((Q6+1)/(Q5+1))+0.005 -> 0.6305850234 | R8: =((R6+1)/(R5+1))+0.005 -> 0.770051395 | S8: pBYS | T8: Number Eats Per Position | AH8: =Veri2!A122 -> D | AI8: =Veri2!B122 -> 2021-05-29 | AJ8: =Veri2!C122 -> Lambton Jaffas | AK8: =IF(Veri2!D122="","0 - 0",Veri2!D122) -> 2 - 1 | AL8: =Veri2!E122 -> Maitland | AM8: =IF(Veri2!F122="","0-0",Veri2!F122) -> 1-1 | AN8: =Veri2!A156 -> D | AO8: =Veri2!B156 -> 2021-06-05 | AP8: =Veri2!C156 -> Maitland | AQ8: =IF(Veri2!D156="","0 - 0",Veri2!D156) -> 2 - 4 | AR8: =Veri2!E156 -> Edgeworth Eagles | AS8: =IF(Veri2!F156="","0-0",Veri2!F156) -> 2-1
G9: =CONCATENATE(G12," - ",I12) -> 1 - 1 | H9: =LEFT(J8,1) -> X | N9: =RIGHT(J8,2) -> 1 | O9: =CONCATENATE(L12," - ",N12) -> 2 - 1 | AH9: =Veri2!A123 -> D | AI9: =Veri2!B123 -> 2021-05-08 | AJ9: =Veri2!C123 -> Lambton Jaffas | AK9: =IF(Veri2!D123="","0 - 0",Veri2!D123) -> 1 - 2 | AL9: =Veri2!E123 -> Newcastle Olympic | AM9: =IF(Veri2!F123="","0-0",Veri2!F123) -> 1-0 | AN9: =Veri2!A157 -> D | AO9: =Veri2!B157 -> 2021-05-30 | AP9: =Veri2!C157 -> Broadmeadow Magic | AQ9: =IF(Veri2!D157="","0 - 0",Veri2!D157) -> 2 - 1 | AR9: =Veri2!E157 -> Edgeworth Eagles | AS9: =IF(Veri2!F157="","0-0",Veri2!F157) -> 1-0
B10: Max A | C10: Max B | D10: Min A | E10: Min B | G10: HT / İLK YARI | L10: FT / MAÇ SONU | Q10: Max A | R10: Max B | S10: Min A | T10: Min B | AH10: =Veri2!A124 -> D | AI10: =Veri2!B124 -> 2021-04-17 | AJ10: =Veri2!C124 -> Lambton Jaffas | AK10: =IF(Veri2!D124="","0 - 0",Veri2!D124) -> 2 - 1 | AL10: =Veri2!E124 -> Lake Macquarie | AM10: =IF(Veri2!F124="","0-0",Veri2!F124) -> 1-1 | AN10: =Veri2!A158 -> D | AO10: =Veri2!B158 -> 2021-05-16 | AP10: =Veri2!C158 -> Valentine Phoenix | AQ10: =IF(Veri2!D158="","0 - 0",Veri2!D158) -> 0 - 4 | AR10: =Veri2!E158 -> Edgeworth Eagles | AS10: =IF(Veri2!F158="","0-0",Veri2!F158) -> 0-2
B11: =MAX(C6,B5)+0.005 -> 0.81 | C11: =MAX(C5,B6)+0.005 -> 1.01 | D11: =MIN(C6,B5)+0.005 -> 0.61 | E11: =MIN(C5,B6)+0.005 -> 0.21 | G11: =AJ2 -> Lambton Jaffas | I11: =AR2 -> Edgeworth Eagles | L11: =G11 -> Lambton Jaffas | N11: =I11 -> Edgeworth Eagles | Q11: =MAX(R6,Q5)+0.005 -> 2.21 | R11: =MAX(R5,Q6)+0.005 -> 2.41 | S11: =MIN(R6,Q5)+0.005 -> 1.61 | T11: =MIN(R5,Q6)+0.005 -> 1.01 | AH11: =Veri2!A125 -> D | AI11: =Veri2!B125 -> 2021-04-11 | AJ11: =Veri2!C125 -> Lambton Jaffas | AK11: =IF(Veri2!D125="","0 - 0",Veri2!D125) -> 1 - 0 | AL11: =Veri2!E125 -> Valentine Phoenix | AM11: =IF(Veri2!F125="","0-0",Veri2!F125) -> 0-0 | AN11: =Veri2!A159 -> D | AO11: =Veri2!B159 -> 2021-04-24 | AP11: =Veri2!C159 -> Charlestown City B | AQ11: =IF(Veri2!D159="","0 - 0",Veri2!D159) -> 0 - 2 | AR11: =Veri2!E159 -> Edgeworth Eagles | AS11: =IF(Veri2!F159="","0-0",Veri2!F159) -> 0-0
B12: =MAX(B7,C8)+0.005 -> 1.341950207 | C12: =MAX(C7,B8)+0.005 -> 1.120803324 | D12: =MIN(B7,C8)+0.005 -> 0.9102493766 | E12: =MIN(C7,B8)+0.005 -> 0.7607788162 | G12: =B22 -> 1 | I12: =C22 -> 1 | L12: =Q22 -> 2 | N12: =R22 -> 1 | Q12: =MAX(Q7,R8)+0.005 -> 1.608503741 | R12: =MAX(R7,Q8)+0.005 -> 1.317101727 | S12: =MIN(Q7,R8)+0.005 -> 0.775051395 | T12: =MIN(R7,Q8)+0.005 -> 0.6355850234 | AH12: =Veri2!A126 -> D | AI12: =Veri2!B126 -> 2021-04-02 | AJ12: =Veri2!C126 -> Lambton Jaffas | AK12: =IF(Veri2!D126="","0 - 0",Veri2!D126) -> 0 - 2 | AL12: =Veri2!E126 -> Edgeworth Eagles | AM12: =IF(Veri2!F126="","0-0",Veri2!F126) -> 0-1 | AN12: =Veri2!A160 -> D | AO12: =Veri2!B160 -> 2021-04-11 | AP12: =Veri2!C160 -> Lake Macquarie | AQ12: =IF(Veri2!D160="","0 - 0",Veri2!D160) -> 3 - 2 | AR12: =Veri2!E160 -> Edgeworth Eagles | AS12: =IF(Veri2!F160="","0-0",Veri2!F160) -> 1-2
B13: =B11*B12+0.005 -> 1.091979668 | C13: =C11*C12+0.005 -> 1.137011357 | D13: =D11*D12+0.005 -> 0.5602521197 | E13: =E11*E12+0.005 -> 0.1647635514 | Q13: =Q11*Q12+0.005 -> 3.559793267 | R13: =R11*R12+0.005 -> 3.179215163 | S13: =S11*S12+0.005 -> 1.252832746 | T13: =T11*T12+0.005 -> 0.6469408736 | AH13: =Veri2!A127 -> D | AI13: =Veri2!B127 -> 2020-09-26 | AJ13: =Veri2!C127 -> Lambton Jaffas | AK13: =IF(Veri2!D127="","0 - 0",Veri2!D127) -> 3 - 0 | AL13: =Veri2!E127 -> Lake Macquarie | AM13: =IF(Veri2!F127="","0-0",Veri2!F127) -> 1-0 | AN13: =Veri2!A161 -> D | AO13: =Veri2!B161 -> 2021-04-02 | AP13: =Veri2!C161 -> Lambton Jaffas | AQ13: =IF(Veri2!D161="","0 - 0",Veri2!D161) -> 0 - 2 | AR13: =Veri2!E161 -> Edgeworth Eagles | AS13: =IF(Veri2!F161="","0-0",Veri2!F161) -> 0-1
B14: =B13+0.005 -> 1.096979668 | C14: =C13+0.005 -> 1.142011357 | D14: =D13+0.005 -> 0.5652521197 | E14: =E13+0.005 -> 0.1697635514 | Q14: =Q13+0.005 -> 3.564793267 | R14: =R13+0.005 -> 3.184215163 | S14: =S13+0.005 -> 1.257832746 | T14: =T13+0.005 -> 0.6519408736 | AH14: =Veri2!A128 -> D | AI14: =Veri2!B128 -> 2020-09-12 | AJ14: =Veri2!C128 -> Lambton Jaffas | AK14: =IF(Veri2!D128="","0 - 0",Veri2!D128) -> 0 - 0 | AL14: =Veri2!E128 -> Charlestown City B | AM14: =IF(Veri2!F128="","0-0",Veri2!F128) -> 0-0 | AN14: =Veri2!A162 -> D | AO14: =Veri2!B162 -> 2020-09-26 | AP14: =Veri2!C162 -> Maitland | AQ14: =IF(Veri2!D162="","0 - 0",Veri2!D162) -> 2 - 1 | AR14: =Veri2!E162 -> Edgeworth Eagles | AS14: =IF(Veri2!F162="","0-0",Veri2!F162) -> 0-1
B15: =G11 -> Lambton Jaffas | C15: =AVERAGE(B14,D14)+0.005 -> 0.8361158939 | D15: =I11 -> Edgeworth Eagles | E15: =AVERAGE(C14,E14)+0.005 -> 0.6608874544 | Q15: =L11 -> Lambton Jaffas | R15: =AVERAGE(Q14,S14)+0.005 -> 2.416313006 | S15: =N11 -> Edgeworth Eagles | T15: =AVERAGE(R14,T14)+0.005 -> 1.923078018 | AH15: =Veri2!A129 -> D | AI15: =Veri2!B129 -> 2020-09-06 | AJ15: =Veri2!C129 -> Lambton Jaffas | AK15: =IF(Veri2!D129="","0 - 0",Veri2!D129) -> 3 - 1 | AL15: =Veri2!E129 -> Edgeworth Eagles | AM15: =IF(Veri2!F129="","0-0",Veri2!F129) -> 3-1 | AN15: =Veri2!A163 -> D | AO15: =Veri2!B163 -> 2020-09-20 | AP15: =Veri2!C163 -> Hamilton Olympic | AQ15: =IF(Veri2!D163="","0 - 0",Veri2!D163) -> 1 - 3 | AR15: =Veri2!E163 -> Edgeworth Eagles | AS15: =IF(Veri2!F163="","0-0",Veri2!F163) -> 0-1
AH16: =Veri2!A130 -> D | AI16: =Veri2!B130 -> 2020-08-22 | AJ16: =Veri2!C130 -> Lambton Jaffas | AK16: =IF(Veri2!D130="","0 - 0",Veri2!D130) -> 6 - 3 | AL16: =Veri2!E130 -> Adamstown Rosebuds | AM16: =IF(Veri2!F130="","0-0",Veri2!F130) -> 3-1 | AN16: =Veri2!A164 -> D | AO16: =Veri2!B164 -> 2020-09-06 | AP16: =Veri2!C164 -> Lambton Jaffas | AQ16: =IF(Veri2!D164="","0 - 0",Veri2!D164) -> 3 - 1 | AR16: =Veri2!E164 -> Edgeworth Eagles | AS16: =IF(Veri2!F164="","0-0",Veri2!F164) -> 3-1
B17: A_ort | C17: B_ort | D17: Mean A | E17: Mean B | G17: =IF(AND(SUM(B22,C22)>0,SUM(B22,C22)<2),"0.5 GOL ÜST",IF(AND(SUM(B22,C22)>=2,SUM(B22,C22)<3),"1.5 GOL ÜST",IF(AND(SUM(B22,C22)>=3,SUM(B22,C22)<4),"2.5 GOL ÜST",IF(AND(SUM(B22,C22)>=4,SUM(B22,C22)<5),"3.5 GOL ÜST",IF(AND(SUM(B22,C22)>=5,SUM(B22,C22)<6),"4.5 GOL ÜST",IF(AND(SUM(B22,C22)>=6,SUM(B22,C22)<7),"5.5 GOL ÜST",IF(AND(SUM(B22,C22)>=7,SUM(B22,C22)<8),"6.5 GOL ÜST",IF(SUM(B22,C22)>=8,"7+ GOL ÜST","BAHİS OYNAMA")))))))) -> 1.5 GOL ÜST | L17: =IF(AND(SUM(Q22,R22)>0,SUM(Q22,R22)<2),"0.5 GOL ÜST",IF(AND(SUM(Q22,R22)>=2,SUM(Q22,R22)<3),"1.5 GOL ÜST",IF(AND(SUM(Q22,R22)>=3,SUM(Q22,R22)<4),"2.5 GOL ÜST",IF(AND(SUM(Q22,R22)>=4,SUM(Q22,R22)<5),"3.5 GOL ÜST",IF(AND(SUM(Q22,R22)>=5,SUM(Q22,R22)<6),"4.5 GOL ÜST",IF(AND(SUM(Q22,R22)>=6,SUM(Q22,R22)<7),"5.5 GOL ÜST",IF(AND(SUM(Q22,R22)>=7,SUM(Q22,R22)<8),"6.5 GOL ÜST",IF(SUM(Q22,R22)>=8,"7+ GOL ÜST","BAHİS OYNAMA")))))))) -> 2.5 GOL ÜST | Q17: A_ort | R17: B_ort | S17: Mean A | T17: Mean B | AH17: =Veri2!A131 -> D | AI17: =Veri2!B131 -> 2020-08-08 | AJ17: =Veri2!C131 -> Lambton Jaffas | AK17: =IF(Veri2!D131="","0 - 0",Veri2!D131) -> 2 - 3 | AL17: =Veri2!E131 -> Broadmeadow Magic | AM17: =IF(Veri2!F131="","0-0",Veri2!F131) -> 0-0 | AN17: =Veri2!A165 -> D | AO17: =Veri2!B165 -> 2020-08-23 | AP17: =Veri2!C165 -> Valentine Phoenix | AQ17: =IF(Veri2!D165="","0 - 0",Veri2!D165) -> 0 - 2 | AR17: =Veri2!E165 -> Edgeworth Eagles | AS17: =IF(Veri2!F165="","0-0",Veri2!F165) -> 0-0
B18: =B5*B7+0.005 -> 0.8138548755 | C18: =C5*C7+0.005 -> 1.126382341 | D18: =B7+0.005 -> 1.341950207 | E18: =C7+0.005 -> 1.120803324 | Q18: =Q5*Q7+0.005 -> 3.540725748 | R18: =R5*R7+0.005 -> 3.160604655 | S18: =Q7+0.005 -> 1.608503741 | T18: =R7+0.005 -> 1.317101727 | AH18: =Veri2!A132 -> D | AI18: =Veri2!B132 -> 2020-08-01 | AJ18: =Veri2!C132 -> Lambton Jaffas | AK18: =IF(Veri2!D132="","0 - 0",Veri2!D132) -> 2 - 2 | AL18: =Veri2!E132 -> Hamilton Olympic | AM18: =IF(Veri2!F132="","0-0",Veri2!F132) -> 2-1 | AN18: =Veri2!A166 -> D | AO18: =Veri2!B166 -> 2020-08-09 | AP18: =Veri2!C166 -> Lake Macquarie | AQ18: =IF(Veri2!D166="","0 - 0",Veri2!D166) -> 0 - 3 | AR18: =Veri2!E166 -> Edgeworth Eagles | AS18: =IF(Veri2!F166="","0-0",Veri2!F166) -> 0-3
B19: =B5*C8+0.005 -> 0.5526758728 | C19: =C5*B8+0.005 -> 0.7645577103 | D19: =B7+0.005 -> 1.341950207 | E19: =C7+0.005 -> 1.120803324 | Q19: =Q5*R8+0.005 -> 1.702963326 | R19: =R5*Q8+0.005 -> 1.521556981 | S19: =Q7+0.005 -> 1.608503741 | T19: =R7+0.005 -> 1.317101727 | AH19: =Veri2!A133 -> D | AI19: =Veri2!B133 -> 2020-07-18 | AJ19: =Veri2!C133 -> Lambton Jaffas | AK19: =IF(Veri2!D133="","0 - 0",Veri2!D133) -> 2 - 3 | AL19: =Veri2!E133 -> Weston Bears | AM19: =IF(Veri2!F133="","0-0",Veri2!F133) -> 2-2 | AN19: =Veri2!A167 -> D | AO19: =Veri2!B167 -> 2020-08-02 | AP19: =Veri2!C167 -> Broadmeadow Magic | AQ19: =IF(Veri2!D167="","0 - 0",Veri2!D167) -> 0 - 1 | AR19: =Veri2!E167 -> Edgeworth Eagles | AS19: =IF(Veri2!F167="","0-0",Veri2!F167) -> 0-0
B20: =C6*B7+0.005 -> 1.081244917 | C20: =B6*C7+0.005 -> 0.2337396814 | D20: =B8+0.005 -> 0.7607788162 | E20: =C8+0.005 -> 0.9102493766 | G20: =Veri2!AX93 -> İY1 | L20: =Veri2!AJ93 -> MS1 | Q20: =R6*Q7+0.005 -> 2.578623504 | R20: =Q6*R7+0.005 -> 1.323662236 | S20: =Q8+0.005 -> 0.6355850234 | T20: =R8+0.005 -> 0.775051395 | AH20: =Veri2!A134 -> D | AI20: =Veri2!B134 -> 2019-08-25 | AJ20: =Veri2!C134 -> Lambton Jaffas | AK20: =IF(Veri2!D134="","0 - 0",Veri2!D134) -> 3 - 0 | AL20: =Veri2!E134 -> Edgeworth Eagles | AM20: =IF(Veri2!F134="","0-0",Veri2!F134) -> 2-0 | AN20: =Veri2!A168 -> D | AO20: =Veri2!B168 -> 2020-07-19 | AP20: =Veri2!C168 -> Adamstown Rosebuds | AQ20: =IF(Veri2!D168="","0 - 0",Veri2!D168) -> 1 - 3 | AR20: =Veri2!E168 -> Edgeworth Eagles | AS20: =IF(Veri2!F168="","0-0",Veri2!F168) -> 0-2
B21: =C6*B8+0.005 -> 0.613401947 | C21: =B6*C8+0.005 -> 0.1905761222 | D21: =B8+0.005 -> 0.7607788162 | E21: =C8+0.005 -> 0.9102493766 | Q21: =R6*R8+0.005 -> 1.240932489 | R21: =Q6*Q8+0.005 -> 0.6387379485 | S21: =Q8+0.005 -> 0.6355850234 | T21: =R8+0.005 -> 0.775051395 | AH21: =Veri2!A135 -> D | AI21: =Veri2!B135 -> 2019-08-07 | AJ21: =Veri2!C135 -> Lambton Jaffas | AK21: =IF(Veri2!D135="","0 - 0",Veri2!D135) -> 1 - 1 | AL21: =Veri2!E135 -> Maitland | AM21: =IF(Veri2!F135="","0-0",Veri2!F135) -> 1-1 | AN21: =Veri2!A169 -> D | AO21: =Veri2!B169 -> 2019-08-25 | AP21: =Veri2!C169 -> Lambton Jaffas | AQ21: =IF(Veri2!D169="","0 - 0",Veri2!D169) -> 3 - 0 | AR21: =Veri2!E169 -> Edgeworth Eagles | AS21: =IF(Veri2!F169="","0-0",Veri2!F169) -> 2-0
B22: =ROUND(AVERAGE(B18:B21),0) -> 1 | C22: =ROUND(AVERAGE(C18:C21),0) -> 1 | D22: =ROUND(AVERAGE(D18:D21),0) -> 1 | E22: 1 | Q22: =ROUNDDOWN(AVERAGE(Q18:Q21),0) -> 2 | R22: =ROUNDDOWN(AVERAGE(R18:R21),0) -> 1 | S22: =ROUND(AVERAGE(S18:S21),0) -> 1 | T22: 1 | AH22: =Veri2!A136 -> D | AI22: =Veri2!B136 -> 2019-08-03 | AJ22: =Veri2!C136 -> Lambton Jaffas | AK22: =IF(Veri2!D136="","0 - 0",Veri2!D136) -> 2 - 0 | AL22: =Veri2!E136 -> Broadmeadow Magic | AM22: =IF(Veri2!F136="","0-0",Veri2!F136) -> 0-0 | AN22: =Veri2!A170 -> D | AO22: =Veri2!B170 -> 2019-08-04 | AP22: =Veri2!C170 -> Valentine Phoenix | AQ22: =IF(Veri2!D170="","0 - 0",Veri2!D170) -> 3 - 1 | AR22: =Veri2!E170 -> Edgeworth Eagles | AS22: =IF(Veri2!F170="","0-0",Veri2!F170) -> 1-0
AH23: =Veri2!A137 -> D | AI23: =Veri2!B137 -> 2019-07-27 | AJ23: =Veri2!C137 -> Lambton Jaffas | AK23: =IF(Veri2!D137="","0 - 0",Veri2!D137) -> 3 - 0 | AL23: =Veri2!E137 -> Newcastle Jets II | AM23: =IF(Veri2!F137="","0-0",Veri2!F137) -> 1-0 | AN23: =Veri2!A171 -> D | AO23: =Veri2!B171 -> 2019-07-24 | AP23: =Veri2!C171 -> Darwin Olympic | AQ23: =IF(Veri2!D171="","0 - 0",Veri2!D171) -> 0 - 3 | AR23: =Veri2!E171 -> Edgeworth Eagles | AS23: =IF(Veri2!F171="","0-0",Veri2!F171) -> 0-2
AH24: =Veri2!A138 -> D | AI24: =Veri2!B138 -> 2019-07-13 | AJ24: =Veri2!C138 -> Lambton Jaffas | AK24: =IF(Veri2!D138="","0 - 0",Veri2!D138) -> 5 - 2 | AL24: =Veri2!E138 -> Valentine Phoenix | AM24: =IF(Veri2!F138="","0-0",Veri2!F138) -> 4-2 | AN24: =Veri2!A172 -> D | AO24: =Veri2!B172 -> 2019-07-13 | AP24: =Veri2!C172 -> Adamstown Rosebuds | AQ24: =IF(Veri2!D172="","0 - 0",Veri2!D172) -> 0 - 1 | AR24: =Veri2!E172 -> Edgeworth Eagles | AS24: =IF(Veri2!F172="","0-0",Veri2!F172) -> 0-1
AH25: =Veri2!A139 -> D | AI25: =Veri2!B139 -> 2019-06-15 | AJ25: =Veri2!C139 -> Lambton Jaffas | AK25: =IF(Veri2!D139="","0 - 0",Veri2!D139) -> 2 - 0 | AL25: =Veri2!E139 -> Hamilton Olympic | AM25: =IF(Veri2!F139="","0-0",Veri2!F139) -> 2-0 | AN25: =Veri2!A173 -> D | AO25: =Veri2!B173 -> 2019-07-06 | AP25: =Veri2!C173 -> Hamilton Olympic | AQ25: =IF(Veri2!D173="","0 - 0",Veri2!D173) -> 1 - 4 | AR25: =Veri2!E173 -> Edgeworth Eagles | AS25: =IF(Veri2!F173="","0-0",Veri2!F173) -> 1-0
AH26: =Veri2!A140 -> D | AI26: =Veri2!B140 -> 2019-05-18 | AJ26: =Veri2!C140 -> Lambton Jaffas | AK26: =IF(Veri2!D140="","0 - 0",Veri2!D140) -> 2 - 2 | AL26: =Veri2!E140 -> Charlestown City B | AM26: =IF(Veri2!F140="","0-0",Veri2!F140) -> 0-0 | AN26: =Veri2!A174 -> D | AO26: =Veri2!B174 -> 2019-06-23 | AP26: =Veri2!C174 -> Newcastle Jets II | AQ26: =IF(Veri2!D174="","0 - 0",Veri2!D174) -> 1 - 2 | AR26: =Veri2!E174 -> Edgeworth Eagles | AS26: =IF(Veri2!F174="","0-0",Veri2!F174) -> 1-1
AH27: =Veri2!A141 -> D | AI27: =Veri2!B141 -> 2018-08-11 | AJ27: =Veri2!C141 -> Lambton Jaffas | AK27: =IF(Veri2!D141="","0 - 0",Veri2!D141) -> 0 - 1 | AL27: =Veri2!E141 -> Maitland | AM27: =IF(Veri2!F141="","0-0",Veri2!F141) -> 0-1 | AN27: =Veri2!A175 -> D | AO27: =Veri2!B175 -> 2019-06-16 | AP27: =Veri2!C175 -> Charlestown City B | AQ27: =IF(Veri2!D175="","0 - 0",Veri2!D175) -> 1 - 0 | AR27: =Veri2!E175 -> Edgeworth Eagles | AS27: =IF(Veri2!F175="","0-0",Veri2!F175) -> 0-0
AH28: =Veri2!A142 -> D | AI28: =Veri2!B142 -> 2018-07-24 | AJ28: =Veri2!C142 -> Lambton Jaffas | AK28: =IF(Veri2!D142="","0 - 0",Veri2!D142) -> 3 - 0 | AL28: =Veri2!E142 -> Newcastle Jets U21 | AM28: =IF(Veri2!F142="","0-0",Veri2!F142) -> 1-0 | AN28: =Veri2!A176 -> D | AO28: =Veri2!B176 -> 2019-05-19 | AP28: =Veri2!C176 -> Weston Bears | AQ28: =IF(Veri2!D176="","0 - 0",Veri2!D176) -> 2 - 1 | AR28: =Veri2!E176 -> Edgeworth Eagles | AS28: =IF(Veri2!F176="","0-0",Veri2!F176) -> 0-0
AH29: =Veri2!A143 -> D | AI29: =Veri2!B143 -> 2018-07-14 | AJ29: =Veri2!C143 -> Lambton Jaffas | AK29: =IF(Veri2!D143="","0 - 0",Veri2!D143) -> 3 - 0 | AL29: =Veri2!E143 -> Valentine Phoenix | AM29: =IF(Veri2!F143="","0-0",Veri2!F143) -> 1-0 | AN29: =Veri2!A177 -> D | AO29: =Veri2!B177 -> 2018-08-19 | AP29: =Veri2!C177 -> Valentine Phoenix | AQ29: =IF(Veri2!D177="","0 - 0",Veri2!D177) -> 0 - 1 | AR29: =Veri2!E177 -> Edgeworth Eagles | AS29: =IF(Veri2!F177="","0-0",Veri2!F177) -> 0-0
AH30: =Veri2!A144 -> D | AI30: =Veri2!B144 -> 2018-06-30 | AJ30: =Veri2!C144 -> Lambton Jaffas | AK30: =IF(Veri2!D144="","0 - 0",Veri2!D144) -> 2 - 1 | AL30: =Veri2!E144 -> Charlestown City B | AM30: =IF(Veri2!F144="","0-0",Veri2!F144) -> 1-1 | AN30: =Veri2!A178 -> D | AO30: =Veri2!B178 -> 2018-08-05 | AP30: =Veri2!C178 -> Adamstown Rosebuds | AQ30: =IF(Veri2!D178="","0 - 0",Veri2!D178) -> 0 - 1 | AR30: =Veri2!E178 -> Edgeworth Eagles | AS30: =IF(Veri2!F178="","0-0",Veri2!F178) -> 0-0
AH31: =Veri2!A145 -> D | AI31: =Veri2!B145 -> 2018-06-16 | AJ31: =Veri2!C145 -> Lambton Jaffas | AK31: =IF(Veri2!D145="","0 - 0",Veri2!D145) -> 1 - 1 | AL31: =Veri2!E145 -> Broadmeadow Magic | AM31: =IF(Veri2!F145="","0-0",Veri2!F145) -> 0-1 | AN31: =Veri2!A179 -> D | AO31: =Veri2!B179 -> 2018-07-22 | AP31: =Veri2!C179 -> Charlestown City B | AQ31: =IF(Veri2!D179="","0 - 0",Veri2!D179) -> 0 - 2 | AR31: =Veri2!E179 -> Edgeworth Eagles | AS31: =IF(Veri2!F179="","0-0",Veri2!F179) -> 0-1
AI32: G | AJ32: B | AK32: M | AL32: AG | AM32: YG | AO32: G | AP32: B | AQ32: M | AR32: AG | AS32: YG
AH33: İlk Yarı | AI33: =Veri2!B147 -> 14 | AJ33: =Veri2!C147 -> 11 | AK33: =Veri2!D147 -> 3 | AL33: =Veri2!E147 -> 32 | AM33: =Veri2!F147 -> 16 | AN33: İlk Yarı | AO33: =Veri2!B181 -> 12 | AP33: =Veri2!C181 -> 9 | AQ33: =Veri2!D181 -> 9 | AR33: =Veri2!E181 -> 25 | AS33: =Veri2!F181 -> 17
AH34: Maç Sonu | AI34: =Veri2!B148 -> 18 | AJ34: =Veri2!C148 -> 7 | AK34: =Veri2!D148 -> 5 | AL34: =Veri2!E148 -> 66 | AM34: =Veri2!F148 -> 32 | AN34: Maç Sonu | AO34: =Veri2!B182 -> 19 | AP34: =Veri2!C182 -> 0 | AQ34: =Veri2!D182 -> 11 | AR34: =Veri2!E182 -> 55 | AS34: =Veri2!F182 -> 38
AI36: =AI47 -> 1 | AJ36: =AJ47 -> 1 | AK36: =AK47 -> 1 | AL36: =AL47 -> 0 | AO36: =AO47 -> 1 | AP36: =AP47 -> 0 | AQ36: =AQ47 -> 1 | AR36: 0
AI37: =AI48 -> 1 | AJ37: 1 | AK37: 1 | AL37: 1 | AO37: =AO48 -> 2 | AP37: 4 | AQ37: 0 | AR37: 3
AI38: 2 | AJ38: 1 | AK38: 0 | AL38: 0 | AO38: 6 | AP38: 2 | AQ38: 3 | AR38: 1
AI39: 2 | AJ39: 1 | AK39: 1 | AL39: 0 | AO39: 3 | AP39: 1 | AQ39: 1 | AR39: 0
AI40: =AI51 -> 5 | AJ40: 1 | AK40: =AK51 -> 0 | AL40: 0 | AO40: 0 | AP40: =AP51 -> 1 | AQ40: 0 | AR40: 0
AI43: =(AI36+AI37+AI38+AI39+AI40+AI41+AI42)/5 -> 2.2 | AJ43: =(AJ36+AJ37+AJ38+AJ39+AJ40+AJ41+AJ42)/5 -> 1 | AK43: =(AK36+AK37+AK38+AK39+AK40+AK41+AK42)/5 -> 0.6 | AL43: =(AL36+AL37+AL38+AL39+AL40+AL41+AL42)/5 -> 0.2 | AO43: =(AO36+AO37+AO38+AO39+AO40+AO41+AO42)/5 -> 2.4 | AP43: =(AP36+AP37+AP38+AP39+AP40+AP41+AP42)/5 -> 1.6 | AQ43: =(AQ36+AQ37+AQ38+AQ39+AQ40+AQ41+AQ42)/5 -> 1 | AR43: 0.8
AH47: =IF(AK2=""," ",SEARCH("-",AK2)) -> 3 | AI47: =IF(AK2="","0",LEFT(AK2,AH47-1)) -> 1 | AJ47: =IF(AK2="","0",MID(AK2,AH47+1,4)) -> 1 | AK47: =IF(AM2="","0",LEFT(AM2,AM47-1)) -> 1 | AL47: =IF(AM2="","0",MID(AM2,AM47+1,4)) -> 0 | AM47: =IF(AM2=""," ",SEARCH("-",AM2)) -> 2 | AN47: =IF(AQ2="","0",SEARCH("-",AQ2)) -> 3 | AO47: =IF(AQ2="","0",LEFT(AQ2,AN47-1)) -> 1 | AP47: =IF(AQ2="","0",MID(AQ2,AN47+1,4)) -> 0 | AQ47: =IF(AS2="","0",LEFT(AS2,AS47-1)) -> 1 | AR47: =IF(AS2="","0",MID(AS2,AS47+1,4)) -> 0 | AS47: =IF(AS2=""," ",SEARCH("-",AS2)) -> 2
AH48: =IF(AK3=""," ",SEARCH("-",AK3)) -> 3 | AI48: =IF(AK3="","0",LEFT(AK3,AH48-1)) -> 1 | AJ48: =IF(AK3="","0",MID(AK3,AH48+1,4)) -> 1 | AK48: =IF(AM3="","0",LEFT(AM3,AM48-1)) -> 1 | AL48: =IF(AM3="","0",MID(AM3,AM48+1,4)) -> 1 | AM48: =IF(AM3=""," ",SEARCH("-",AM3)) -> 2 | AN48: =IF(AQ3="","0",SEARCH("-",AQ3)) -> 3 | AO48: =IF(AQ3="","0",LEFT(AQ3,AN48-1)) -> 2 | AP48: =IF(AQ3="","0",MID(AQ3,AN48+1,4)) -> 4 | AQ48: =IF(AS3="","0",LEFT(AS3,AS48-1)) -> 0 | AR48: =IF(AS3="","0",MID(AS3,AS48+1,4)) -> 3 | AS48: =IF(AS3=""," ",SEARCH("-",AS3)) -> 2
AH49: 3 | AI49: 2 | AJ49: 1 | AK49: 0 | AL49: 0 | AM49: 2 | AN49: 3 | AO49: 6 | AP49: 2 | AQ49: 3 | AR49: 1 | AS49: =IF(AS4=""," ",SEARCH("-",AS4)) -> 2
AH50: 3 | AI50: 2 | AJ50: 1 | AK50: 1 | AL50: 0 | AM50: 2 | AN50: 3 | AO50: 3 | AP50: 1 | AQ50: 1 | AR50: 0 | AS50: 2
AH51: 3 | AI51: 5 | AJ51: 1 | AK51: =IF(AM6="","0",LEFT(AM6,AM51-1)) -> 0 | AL51: =IF(AM6="","0",MID(AM6,AM51+1,4)) -> 0 | AM51: =IF(AM6="","0-0",SEARCH("-",AM6)) -> 2 | AN51: 3 | AO51: 0 | AP51: 1 | AQ51: 0 | AR51: 0 | AS51: 2
AH52: 3 | AI52: 4 | AJ52: 1 | AK52: 2 | AL52: 1 | AM52: 2 | AN52: 3 | AO52: 1 | AP52: 2 | AQ52: 0 | AR52: 2 | AS52: 2
AH53: 3 | AI53: 2 | AJ53: 1 | AK53: 1 | AL53: 1 | AM53: 2 | AN53: 3 | AO53: 2 | AP53: 4 | AQ53: 2 | AR53: 1 | AS53: 2
AH54: 3 | AI54: 1 | AJ54: 2 | AK54: 1 | AL54: 0 | AM54: 2 | AN54: 3 | AO54: 2 | AP54: 1 | AQ54: 1 | AR54: 0 | AS54: 2
AI57: =IF(AI43>=4,AI43/1.3,AI43) -> 2.2 | AJ57: =IF(AJ43>=4,AJ43/1.3,AJ43) -> 1 | AO57: =IF(AO43>=4,AO43/1.3,AO43) -> 2.4 | AP57: =IF(AP43>=4,AP43/1.3,AP43) -> 1.6

Sheet NW (hidden)
B2: =H13 -> [4] Lambton Jarvis | H2: GENEL ANALİZ - SONUÇLARI | S2: =O13 -> [5] Edgeworth Eagles FC | Y2: =B2 -> [4] Lambton Jarvis | AG2: İÇ-DIŞ ANALİZ - SONUÇLARI | AR2: =S2 -> [5] Edgeworth Eagles FC | AX2: =BD13 -> [4] Lambton Jarvis | BD2: FORM SON 6 - SONUÇLARI | BO2: =BK13 -> [5] Edgeworth Eagles FC
B4: =Veri3!B3 -> [4] Lambton Jarvis | C4: =Veri3!B14 -> [5] Edgeworth Eagles FC | D4: Ortalama | H4: PLAYER | S4: =$B$4 -> [4] Lambton Jarvis | T4: =$C$4 -> [5] Edgeworth Eagles FC | U4: Ortalama | Y4: =Veri3!$B$3 -> [4] Lambton Jarvis | Z4: =Veri3!$B$14 -> [5] Edgeworth Eagles FC | AA4: Ortalama | AG4: PLAYER | AR4: =$B$4 -> [4] Lambton Jarvis | AS4: =$C$4 -> [5] Edgeworth Eagles FC | AT4: Ortalama | AX4: =$B$4 -> [4] Lambton Jarvis | AY4: =$C$4 -> [5] Edgeworth Eagles FC | AZ4: Ortalama | BD4: PLAYER | BO4: =$B$4 -> [4] Lambton Jarvis | BP4: =$C$4 -> [5] Edgeworth Eagles FC | BQ4: Ortalama
B5: =Veri3!W4 -> 0.7142857143 | C5: =Veri3!W10 -> 0.8888888889 | D5: gPS | E5: Number of Positions Entered | S5: =Veri3!W17 -> 1.428571429 | T5: =Veri3!W23 -> 1.555555556 | U5: gPS | V5: Number of Positions Entered | Y5: =Veri3!W5 -> 0.6666666667 | Z5: =Veri3!W12 -> 0.8 | AA5: gPS | AB5: Number of Positions Entered | AR5: =Veri3!W18 -> 1.333333333 | AS5: =Veri3!W25 -> 1.6 | AT5: gPS | AU5: Number of Positions Entered | AX5: =Veri3!W7 -> 0.8333333333 | AY5: =Veri3!W13 -> 1.333333333 | AZ5: gPS | BA5: Number of Positions Entered | BO5: =Veri3!W20 -> 1.333333333 | BP5: =Veri3!W26 -> 2 | BQ5: gPS | BR5: Number of Positions Entered
B6: =Veri3!X4 -> 0.4285714286 | C6: =Veri3!X10 -> 0.6666666667 | D6: vPS | E6: Number of Positions Given | K6: UNDER / OVER | S6: =Veri3!X17 -> 1 | T6: =Veri3!X23 -> 1.777777778 | U6: vPS | V6: Number of Positions Given | Y6: =Veri3!X5 -> 0.3333333333 | Z6: =Veri3!X12 -> 1 | AA6: vPS | AB6: Number of Positions Given | AJ6: UNDER / OVER | AR6: =Veri3!X18 -> 1 | AS6: =Veri3!X25 -> 2.4 | AT6: vPS | AU6: Number of Positions Given | AX6: =Veri3!X7 -> 0.5 | AY6: =Veri3!X13 -> 0.8333333333 | AZ6: vPS | BA6: Number of Positions Given | BG6: UNDER / OVER | BO6: =Veri3!X20 -> 1 | BP6: =Veri3!X26 -> 1.833333333 | BQ6: vPS | BR6: Number of Positions Given
B7: =(B5+1)/(B6+1) -> 1.2 | C7: =(C5+1)/(C6+1) -> 1.133333333 | D7: pBAS | E7: Number Per Position | K7: BTTS / KARŞILIKLI GOL | S7: =(S5+1)/(S6+1) -> 1.214285714 | T7: =(T5+1)/(T6+1) -> 0.92 | U7: pBAS | V7: Number Per Position | Y7: =(Y5+1)/(Y6+1) -> 1.25 | Z7: =(Z5+1)/(Z6+1) -> 0.9 | AA7: pBAS | AB7: Number Per Position | AJ7: BTTS / KARŞILIKLI GOL | AR7: =(AR5+1)/(AR6+1) -> 1.166666667 | AS7: =(AS5+1)/(AS6+1) -> 0.7647058824 | AT7: pBAS | AU7: Number Per Position | AX7: =(AX5+1)/(AX6+1) -> 1.222222222 | AY7: =(AY5+1)/(AY6+1) -> 1.272727273 | AZ7: pBAS | BA7: Number Per Position | BG7: BTTS / KARŞILIKLI GOL | BO7: =(BO5+1)/(BO6+1) -> 1.166666667 | BP7: =(BP5+1)/(BP6+1) -> 1.058823529 | BQ7: pBAS | BR7: Number Per Position
B8: =(B6+1)/(B5+1) -> 0.8333333333 | C8: =(C6+1)/(C5+1) -> 0.8823529412 | D8: pBYS | E8: Number Eats Per Position | K8: =IF(AND(S22>=1,T22>=1),"VAR","YOK") -> VAR | S8: =(S6+1)/(S5+1) -> 0.8235294118 | T8: =(T6+1)/(T5+1) -> 1.086956522 | U8: pBYS | V8: Number Eats Per Position | Y8: =(Y6+1)/(Y5+1) -> 0.8 | Z8: =(Z6+1)/(Z5+1) -> 1.111111111 | AA8: pBYS | AB8: Number Eats Per Position | AJ8: =IF(AND(AR22>=1,AS22>=1),"VAR","YOK") -> VAR | AR8: =(AR6+1)/(AR5+1) -> 0.8571428571 | AS8: =(AS6+1)/(AS5+1) -> 1.307692308 | AT8: pBYS | AU8: Number Eats Per Position | AX8: =(AX6+1)/(AX5+1) -> 0.8181818182 | AY8: =(AY6+1)/(AY5+1) -> 0.7857142857 | AZ8: pBYS | BA8: Number Eats Per Position | BG8: =IF(AND(BO22>=1,BP22>=1),"VAR","YOK") -> VAR | BO8: =(BO6+1)/(BO5+1) -> 0.8571428571 | BP8: =(BP6+1)/(BP5+1) -> 0.9444444444 | BQ8: pBYS | BR8: Number Eats Per Position
K9: HT/FT | AJ9: HT/FT | BG9: HT/FT
B10: Max A | C10: Max B | D10: Min A | E10: Min B | H10: =H14&" - "&J14 -> 1 - 1 | K10: =IF(AND((H14>J14),(M14>O14)),"1 / 1",IF(AND((H14=J14),(M14>O14)),"X / 1",IF(AND((H14<J14),(M14>O14)),"2 / 1",IF(AND((H14>J14),(M14=O14)),"1 / X",IF(AND((H14=J14),(M14=O14)),"X / X",IF(AND((H14<J14),(M14=O14)),"2 / X",IF(AND((H14>J14),(M14<O14)),"1 / 2",IF(AND((H14=J14),(M14<O14)),"X / 2",IF(AND((H14<J14),(M14<O14)),"2 / 2"))))))))) -> X / 1 | P10: =M14&" - "&O14 -> 2 - 1 | S10: Max A | T10: Max B | U10: Min A | V10: Min B | Y10: Max A | Z10: Max B | AA10: Min A | AB10: Min B | AG10: =AG14&" - "&AI14 -> 1 - 0 | AJ10: =IF(AND((AG14>AI14),(AL14>AN14)),"1 / 1",IF(AND((AG14=AI14),(AL14>AN14)),"X / 1",IF(AND((AG14<AI14),(AL14>AN14)),"2 / 1",IF(AND((AG14>AI14),(AL14=AN14)),"1 / X",IF(AND((AG14=AI14),(AL14=AN14)),"X / X",IF(AND((AG14<AI14),(AL14=AN14)),"2 / X",IF(AND((AG14>AI14),(AL14<AN14)),"1 / 2",IF(AND((AG14=AI14),(AL14<AN14)),"X / 2",IF(AND((AG14<AI14),(AL14<AN14)),"2 / 2"))))))))) -> 1 / 1 | AO10: =AL14&" - "&AN14 -> 2 - 1 | AR10: Max A | AS10: Max B | AT10: Min A | AU10: Min B | AX10: Max A | AY10: Max B | AZ10: Min A | BA10: Min B | BD10: =BD14&" - "&BF14 -> 1 - 1 | BG10: =IF(AND((BD14>BF14),(BI14>BK14)),"1 / 1",IF(AND((BD14=BF14),(BI14>BK14)),"X / 1",IF(AND((BD14<BF14),(BI14>BK14)),"2 / 1",IF(AND((BD14>BF14),(BI14=BK14)),"1 / X",IF(AND((BD14=BF14),(BI14=BK14)),"X / X",IF(AND((BD14<BF14),(BI14=BK14)),"2 / X",IF(AND((BD14>BF14),(BI14<BK14)),"1 / 2",IF(AND((BD14=BF14),(BI14<BK14)),"X / 2",IF(AND((BD14<BF14),(BI14<BK14)),"2 / 2"))))))))) -> X / 1 | BL10: =BI14&" - "&BK14 -> 2 - 1 | BO10: Max A | BP10: Max B | BQ10: Min A | BR10: Min B
B11: =MAX(C6,B5) -> 0.7142857143 | C11: =MAX(C5,B6) -> 0.8888888889 | D11: =MIN(C6,B5) -> 0.6666666667 | E11: =MIN(C5,B6) -> 0.4285714286 | S11: =MAX(T6,S5) -> 1.777777778 | T11: =MAX(T5,S6) -> 1.555555556 | U11: =MIN(T6,S5) -> 1.428571429 | V11: =MIN(T5,S6) -> 1 | Y11: =MAX(Z6,Y5) -> 1 | Z11: =MAX(Z5,Y6) -> 0.8 | AA11: =MIN(Z6,Y5) -> 0.6666666667 | AB11: =MIN(Z5,Y6) -> 0.3333333333 | AR11: =MAX(AS6,AR5) -> 2.4 | AS11: =MAX(AS5,AR6) -> 1.6 | AT11: =MIN(AS6,AR5) -> 1.333333333 | AU11: =MIN(AS5,AR6) -> 1 | AX11: =MAX(AY6,AX5) -> 0.8333333333 | AY11: =MAX(AY5,AX6) -> 1.333333333 | AZ11: =MIN(AY6,AX5) -> 0.8333333333 | BA11: =MIN(AY5,AX6) -> 0.5 | BO11: =MAX(BP6,BO5) -> 1.833333333 | BP11: =MAX(BP5,BO6) -> 2 | BQ11: =MIN(BP6,BO5) -> 1.333333333 | BR11: =MIN(BP5,BO6) -> 1
B12: =MAX(B7,C8) -> 1.2 | C12: =MAX(C7,B8) -> 1.133333333 | D12: =MIN(B7,C8) -> 0.8823529412 | E12: =MIN(C7,B8) -> 0.8333333333 | H12: HT / İLK YARI | M12: FT / MAÇ SONU | S12: =MAX(S7,T8) -> 1.214285714 | T12: =MAX(T7,S8) -> 0.92 | U12: =MIN(S7,T8) -> 1.086956522 | V12: =MIN(T7,S8) -> 0.8235294118 | Y12: =MAX(Y7,Z8) -> 1.25 | Z12: =MAX(Z7,Y8) -> 0.9 | AA12: =MIN(Y7,Z8) -> 1.111111111 | AB12: =MIN(Z7,Y8) -> 0.8 | AG12: HT / İLK YARI | AL12: FT / MAÇ SONU | AR12: =MAX(AR7,AS8) -> 1.307692308 | AS12: =MAX(AS7,AR8) -> 0.8571428571 | AT12: =MIN(AR7,AS8) -> 1.166666667 | AU12: =MIN(AS7,AR8) -> 0.7647058824 | AX12: =MAX(AX7,AY8) -> 1.222222222 | AY12: =MAX(AY7,AX8) -> 1.272727273 | AZ12: =MIN(AX7,AY8) -> 0.7857142857 | BA12: =MIN(AY7,AX8) -> 0.8181818182 | BD12: HT / İLK YARI | BI12: FT / MAÇ SONU | BO12: =MAX(BO7,BP8) -> 1.166666667 | BP12: =MAX(BP7,BO8) -> 1.058823529 | BQ12: =MIN(BO7,BP8) -> 0.9444444444 | BR12: =MIN(BP7,BO8) -> 0.8571428571
B13: =B11*B12 -> 0.8571428571 | C13: =C11*C12 -> 1.007407407 | D13: =D11*D12 -> 0.5882352941 | E13: =E11*E12 -> 0.3571428571 | H13: =B4 -> [4] Lambton Jarvis | J13: =C4 -> [5] Edgeworth Eagles FC | M13: =H13 -> [4] Lambton Jarvis | O13: =J13 -> [5] Edgeworth Eagles FC | S13: =S11*S12 -> 2.158730159 | T13: =T11*T12 -> 1.431111111 | U13: =U11*U12 -> 1.552795031 | V13: =V11*V12 -> 0.8235294118 | Y13: =Y11*Y12 -> 1.25 | Z13: =Z11*Z12 -> 0.72 | AA13: =AA11*AA12 -> 0.7407407407 | AB13: =AB11*AB12 -> 0.2666666667 | AG13: =Y4 -> [4] Lambton Jarvis | AI13: =Z4 -> [5] Edgeworth Eagles FC | AL13: =AG13 -> [4] Lambton Jarvis | AN13: =AI13 -> [5] Edgeworth Eagles FC | AR13: =AR11*AR12 -> 3.138461538 | AS13: =AS11*AS12 -> 1.371428571 | AT13: =AT11*AT12 -> 1.555555556 | AU13: =AU11*AU12 -> 0.7647058824 | AX13: =AX11*AX12 -> 1.018518519 | AY13: =AY11*AY12 -> 1.696969697 | AZ13: =AZ11*AZ12 -> 0.6547619048 | BA13: =BA11*BA12 -> 0.4090909091 | BD13: =AX4 -> [4] Lambton Jarvis | BF13: =AY4 -> [5] Edgeworth Eagles FC | BI13: =BD13 -> [4] Lambton Jarvis | BK13: =BF13 -> [5] Edgeworth Eagles FC | BO13: =BO11*BO12 -> 2.138888889 | BP13: =BP11*BP12 -> 2.117647059 | BQ13: =BQ11*BQ12 -> 1.259259259 | BR13: =BR11*BR12 -> 0.8571428571
B14: =B13 -> 0.8571428571 | C14: =C13 -> 1.007407407 | D14: =D13 -> 0.5882352941 | E14: =E13 -> 0.3571428571 | H14: =B22 -> 1 | J14: =C22 -> 1 | M14: =S22 -> 2 | O14: =T22 -> 1 | S14: =S13 -> 2.158730159 | T14: =T13 -> 1.431111111 | U14: =U13 -> 1.552795031 | V14: =V13 -> 0.8235294118 | Y14: =Y13 -> 1.25 | Z14: =Z13 -> 0.72 | AA14: =AA13 -> 0.7407407407 | AB14: =AB13 -> 0.2666666667 | AG14: =Y22 -> 1 | AI14: =Z22 -> 0 | AL14: =AR22 -> 2 | AN14: =AS22 -> 1 | AR14: =AR13 -> 3.138461538 | AS14: =AS13 -> 1.371428571 | AT14: =AT13 -> 1.555555556 | AU14: =AU13 -> 0.7647058824 | AX14: =AX13 -> 1.018518519 | AY14: =AY13 -> 1.696969697 | AZ14: =AZ13 -> 0.6547619048 | BA14: =BA13 -> 0.4090909091 | BD14: =AX22 -> 1 | BF14: =AY22 -> 1 | BI14: =BO22 -> 2 | BK14: =BP22 -> 1 | BO14: =BO13 -> 2.138888889 | BP14: =BP13 -> 2.117647059 | BQ14: =BQ13 -> 1.259259259 | BR14: =BR13 -> 0.8571428571
B15: =H13 -> [4] Lambton Jarvis | C15: =AVERAGE(B14,D14) -> 0.7226890756 | D15: =J13 -> [5] Edgeworth Eagles FC | E15: =AVERAGE(C14,E14) -> 0.6822751323 | S15: =M13 -> [4] Lambton Jarvis | T15: =AVERAGE(S14,U14) -> 1.855762595 | U15: =O13 -> [5] Edgeworth Eagles FC | V15: =AVERAGE(T14,V14) -> 1.127320261 | Y15: =AG13 -> [4] Lambton Jarvis | Z15: =AVERAGE(Y14,AA14) -> 0.9953703704 | AA15: =AI13 -> [5] Edgeworth Eagles FC | AB15: =AVERAGE(Z14,AB14) -> 0.4933333333 | AR15: =AL13 -> [4] Lambton Jarvis | AS15: =AVERAGE(AR14,AT14) -> 2.347008547 | AT15: =AN13 -> [5] Edgeworth Eagles FC | AU15: =AVERAGE(AS14,AU14) -> 1.068067227 | AX15: =BD13 -> [4] Lambton Jarvis | AY15: =AVERAGE(AX14,AZ14) -> 0.8366402116 | AZ15: =BF13 -> [5] Edgeworth Eagles FC | BA15: =AVERAGE(AY14,BA14) -> 1.053030303 | BO15: =BI13 -> [4] Lambton Jarvis | BP15: =AVERAGE(BO14,BQ14) -> 1.699074074 | BQ15: =BK13 -> [5] Edgeworth Eagles FC | BR15: =AVERAGE(BP14,BR14) -> 1.487394958
B17: A_ort | C17: B_ort | D17: Mean A | E17: Mean B | S17: A_ort | T17: B_ort | U17: Mean A | V17: Mean B | Y17: A_ort | Z17: B_ort | AA17: Mean A | AB17: Mean B | AR17: A_ort | AS17: B_ort | AT17: Mean A | AU17: Mean B | AX17: A_ort | AY17: B_ort | AZ17: Mean A | BA17: Mean B | BO17: A_ort | BP17: B_ort | BQ17: Mean A | BR17: Mean B
B18: =B5*B7 -> 0.8571428571 | C18: =C5*C7 -> 1.007407407 | D18: =B7+0.02 -> 1.22 | E18: =C7+0.02 -> 1.153333333 | S18: =S5*S7 -> 1.734693878 | T18: =T5*T7 -> 1.431111111 | U18: =S7+0.02 -> 1.234285714 | V18: =T7+0.02 -> 0.94 | Y18: =Y5*Y7 -> 0.8333333333 | Z18: =Z5*Z7 -> 0.72 | AA18: =Y7+0.02 -> 1.27 | AB18: =Z7+0.02 -> 0.92 | AR18: =AR5*AR7 -> 1.555555556 | AS18: =AS5*AS7 -> 1.223529412 | AT18: =AR7+0.02 -> 1.186666667 | AU18: =AS7+0.02 -> 0.7847058824 | AX18: =AX5*AX7 -> 1.018518519 | AY18: =AY5*AY7 -> 1.696969697 | AZ18: =AX7+0.02 -> 1.242222222 | BA18: =AY7+0.02 -> 1.292727273 | BO18: =BO5*BO7 -> 1.555555556 | BP18: =BP5*BP7 -> 2.117647059 | BQ18: =BO7+0.02 -> 1.186666667 | BR18: =BP7+0.02 -> 1.078823529
B19: =B5*C8 -> 0.6302521008 | C19: =C5*B8 -> 0.7407407407 | D19: =B7-0.02 -> 1.18 | E19: =C7-0.02 -> 1.113333333 | H19: =IF(AND(SUM(B22,C22)>0,SUM(B22,C22)<2),"0.5 GOL ÜST",IF(AND(SUM(B22,C22)>=2,SUM(B22,C22)<3),"1.5 GOL ÜST",IF(AND(SUM(B22,C22)>=3,SUM(B22,C22)<4),"2.5 GOL ÜST",IF(AND(SUM(B22,C22)>=4,SUM(B22,C22)<5),"3.5 GOL ÜST",IF(AND(SUM(B22,C22)>=5,SUM(B22,C22)<6),"4.5 GOL ÜST",IF(AND(SUM(B22,C22)>=6,SUM(B22,C22)<7),"5.5 GOL ÜST",IF(AND(SUM(B22,C22)>=7,SUM(B22,C22)<8),"6.5 GOL ÜST",IF(SUM(B22,C22)>=8,"7+","BAHİS OYNAMA")))))))) -> 1.5 GOL ÜST | M19: =IF(AND(SUM(S22,T22)>0,SUM(S22,T22)<2),"0.5 GOL ÜST",IF(AND(SUM(S22,T22)>=2,SUM(S22,T22)<3),"1.5 GOL ÜST",IF(AND(SUM(S22,T22)>=3,SUM(S22,T22)<4),"2.5 GOL ÜST",IF(AND(SUM(S22,T22)>=4,SUM(S22,T22)<5),"3.5 GOL ÜST",IF(AND(SUM(S22,T22)>=5,SUM(S22,T22)<6),"4.5 GOL ÜST",IF(AND(SUM(S22,T22)>=6,SUM(S22,T22)<7),"5.5 GOL ÜST",IF(AND(SUM(S22,T22)>=7,SUM(S22,T22)<8),"6.5 GOL ÜST",IF(SUM(S22,T22)>=8,"7+","BAHİS OYNAMA")))))))) -> 2.5 GOL ÜST | S19: =S5*T8 -> 1.552795031 | T19: =T5*S8 -> 1.281045752 | U19: =S7-0.02 -> 1.194285714 | V19: =T7-0.02 -> 0.9 | Y19: =Y5*Z8 -> 0.7407407407 | Z19: =Z5*Y8 -> 0.64 | AA19: =Y7-0.02 -> 1.23 | AB19: =Z7-0.02 -> 0.88 | AG19: =IF(AND(SUM(AA22,AB22)>0,SUM(AA22,AB22)<2),"0.5 GOL ÜST",IF(AND(SUM(AA22,AB22)>=2,SUM(AA22,AB22)<3),"1.5 GOL ÜST",IF(AND(SUM(AA22,AB22)>=3,SUM(AA22,AB22)<4),"2.5 GOL ÜST",IF(AND(SUM(AA22,AB22)>=4,SUM(AA22,AB22)<5),"3.5 GOL ÜST",IF(AND(SUM(AA22,AB22)>=5,SUM(AA22,AB22)<6),"4.5 GOL ÜST",IF(AND(SUM(AA22,AB22)>=6,SUM(AA22,AB22)<7),"5.5 GOL ÜST",IF(AND(SUM(AA22,AB22)>=7,SUM(AA22,AB22)<8),"6.5 GOL ÜST",IF(SUM(AA22,AB22)>=8,"7+","BAHİS OYNAMA")))))))) -> 1.5 GOL ÜST | AL19: =IF(AND(SUM(AR22,AS22)>0,SUM(AR22,AS22)<2),"0.5 GOL ÜST",IF(AND(SUM(AR22,AS22)>=2,SUM(AR22,AS22)<3),"1.5 GOL ÜST",IF(AND(SUM(AR22,AS22)>=3,SUM(AR22,AS22)<4),"2.5 GOL ÜST",IF(AND(SUM(AR22,AS22)>=4,SUM(AR22,AS22)<5),"3.5 GOL ÜST",IF(AND(SUM(AR22,AS22)>=5,SUM(AR22,AS22)<6),"4.5 GOL ÜST",IF(AND(SUM(AR22,AS22)>=6,SUM(AR22,AS22)<7),"5.5 GOL ÜST",IF(AND(SUM(AR22,AS22)>=7,SUM(AR22,AS22)<8),"6.5 GOL ÜST",IF(SUM(AR22,AS22)>=8,"7+","BAHİS OYNAMA")))))))) -> 2.5 GOL ÜST | AR19: =AR5*AS8 -> 1.743589744 | AS19: =AS5*AR8 -> 1.371428571 | AT19: =AR7-0.02 -> 1.146666667 | AU19: =AS7-0.02 -> 0.7447058824 | AX19: =AX5*AY8 -> 0.6547619048 | AY19: =AY5*AX8 -> 1.090909091 | AZ19: =AX7-0.02 -> 1.202222222 | BA19: =AY7-0.02 -> 1.252727273 | BD19: =IF(AND(SUM(AX22,AY22)>0,SUM(AX22,AY22)<2),"0.5 GOL ÜST",IF(AND(SUM(AX22,AY22)>=2,SUM(AX22,AY22)<3),"1.5 GOL ÜST",IF(AND(SUM(AX22,AY22)>=3,SUM(AX22,AY22)<4),"2.5 GOL ÜST",IF(AND(SUM(AX22,AY22)>=4,SUM(AX22,AY22)<5),"3.5 GOL ÜST",IF(AND(SUM(AX22,AY22)>=5,SUM(AX22,AY22)<6),"4.5 GOL ÜST",IF(AND(SUM(AX22,AY22)>=6,SUM(AX22,AY22)<7),"5.5 GOL ÜST",IF(AND(SUM(AX22,AY22)>=7,SUM(AX22,AY22)<8),"6.5 GOL ÜST",IF(SUM(AX22,AY22)>=8,"7+","BAHİS OYNAMA")))))))) -> 1.5 GOL ÜST | BI19: =IF(AND(SUM(BO22,BP22)>0,SUM(BO22,BP22)<2),"0.5 GOL ÜST",IF(AND(SUM(BO22,BP22)>=2,SUM(BO22,BP22)<3),"1.5 GOL ÜST",IF(AND(SUM(BO22,BP22)>=3,SUM(BO22,BP22)<4),"2.5 GOL ÜST",IF(AND(SUM(BO22,BP22)>=4,SUM(BO22,BP22)<5),"3.5 GOL ÜST",IF(AND(SUM(BO22,BP22)>=5,SUM(BO22,BP22)<6),"4.5 GOL ÜST",IF(AND(SUM(BO22,BP22)>=6,SUM(BO22,BP22)<7),"5.5 GOL ÜST",IF(AND(SUM(BO22,BP22)>=7,SUM(BO22,BP22)<8),"6.5 GOL ÜST",IF(SUM(BO22,BP22)>=8,"7+","BAHİS OYNAMA")))))))) -> 2.5 GOL ÜST | BO19: =BO5*BP8 -> 1.259259259 | BP19: =BP5*BO8 -> 1.714285714 | BQ19: =BO7-0.02 -> 1.146666667 | BR19: =BP7-0.02 -> 1.038823529
B20: =C6*B7 -> 0.8 | C20: =B6*C7 -> 0.4857142857 | D20: =B8+0.02 -> 0.8533333333 | E20: =C8+0.02 -> 0.9023529412 | S20: =T6*S7 -> 2.158730159 | T20: =S6*T7 -> 0.92 | U20: =S8+0.02 -> 0.8435294118 | V20: =T8+0.02 -> 1.106956522 | Y20: =Z6*Y7 -> 1.25 | Z20: =Y6*Z7 -> 0.3 | AA20: =Y8+0.02 -> 0.82 | AB20: =Z8+0.02 -> 1.131111111 | AR20: =AS6*AR7 -> 2.8 | AS20: =AR6*AS7 -> 0.7647058824 | AT20: =AR8+0.02 -> 0.8771428571 | AU20: =AS8+0.02 -> 1.327692308 | AX20: =AY6*AX7 -> 1.018518519 | AY20: =AX6*AY7 -> 0.6363636364 | AZ20: =AX8+0.02 -> 0.8381818182 | BA20: =AY8+0.02 -> 0.8057142857 | BO20: =BP6*BO7 -> 2.138888889 | BP20: =BO6*BP7 -> 1.058823529 | BQ20: =BO8+0.02 -> 0.8771428571 | BR20: =BP8+0.02 -> 0.9644444444
B21: =C6*C8 -> 0.5882352941 | C21: =B6*B8 -> 0.3571428571 | D21: =B8-0.02 -> 0.8133333333 | E21: =C8-0.02 -> 0.8623529412 | S21: =T6*T8 -> 1.93236715 | T21: =S6*S8 -> 0.8235294118 | U21: =S8-0.02 -> 0.8035294118 | V21: =T8-0.02 -> 1.066956522 | Y21: =Z6*Z8 -> 1.111111111 | Z21: =Y6*Y8 -> 0.2666666667 | AA21: =Y8-0.02 -> 0.78 | AB21: =Z8-0.02 -> 1.091111111 | AR21: =AS6*AS8 -> 3.138461538 | AS21: =AR6*AR8 -> 0.8571428571 | AT21: =AR8-0.02 -> 0.8371428571 | AU21: =AS8-0.02 -> 1.287692308 | AX21: =AY6*AY8 -> 0.6547619048 | AY21: =AX6*AX8 -> 0.4090909091 | AZ21: =AX8-0.02 -> 0.7981818182 | BA21: =AY8-0.02 -> 0.7657142857 | BO21: =BP6*BP8 -> 1.731481481 | BP21: =BO6*BO8 -> 0.8571428571 | BQ21: =BO8-0.02 -> 0.8371428571 | BR21: =BP8-0.02 -> 0.9244444444
B22: =ROUND(AVERAGE(B18:B21),0) -> 1 | C22: =ROUND(AVERAGE(C18:C21),0) -> 1 | D22: =ROUND(AVERAGE(D18:D21),0) -> 1 | E22: =ROUND(AVERAGE(E18:E21),0) -> 1 | S22: =ROUND(AVERAGE(S18:S21),0) -> 2 | T22: =ROUND(AVERAGE(T18:T21),0) -> 1 | U22: =ROUND(AVERAGE(U18:U21),0) -> 1 | V22: =ROUND(AVERAGE(V18:V21),0) -> 1 | Y22: =ROUND(AVERAGE(Y18:Y21),0) -> 1 | Z22: =ROUND(AVERAGE(Z18:Z21),0) -> 0 | AA22: =ROUND(AVERAGE(AA18:AA21),0) -> 1 | AB22: =ROUND(AVERAGE(AB18:AB21),0) -> 1 | AR22: =ROUND(AVERAGE(AR18:AR21),0) -> 2 | AS22: =ROUND(AVERAGE(AS18:AS21),0) -> 1 | AT22: =ROUND(AVERAGE(AT18:AT21),0) -> 1 | AU22: =ROUND(AVERAGE(AU18:AU21),0) -> 1 | AX22: =ROUND(AVERAGE(AX18:AX21),0) -> 1 | AY22: =ROUND(AVERAGE(AY18:AY21),0) -> 1 | AZ22: =ROUND(AVERAGE(AZ18:AZ21),0) -> 1 | BA22: =ROUND(AVERAGE(BA18:BA21),0) -> 1 | BO22: =ROUND(AVERAGE(BO18:BO21),0) -> 2 | BP22: =ROUND(AVERAGE(BP18:BP21),0) -> 1 | BQ22: =ROUND(AVERAGE(BQ18:BQ21),0) -> 1 | BR22: =ROUND(AVERAGE(BR18:BR21),0) -> 1
